Workbook

Sheet 資料勿動 (hidden)
A1: BillToCode | B1: BillToShortName | C1: 第一組 | D1: 第二組 | E1: 部門名稱 | F1: 區 | G1: 區1 | H1: BUYING_GROUP | I1: BUYING_GROUP-1 | J1: SalesChannelName | K1: SalesAR | L1: ARSalesChannel | M1: =SUM(K:K) -> 1778958326 | N1: 使用狀態 | O1: Promotion_total | P1: Promotion_bill | Q1: Promotion_buy | R1: Pricing Group
A2: TW002512001B | B2: ONETIMECUSTOMER | G2: ETC | H2: ETC | I2: ETC_TT | J2: TW002512001B | K2: =VLOOKUP(A2,'[3]工作表4 (2)'!$A$2:$D$539,4,0) -> 79457 | L2: ETC | M2: 1778958326 | N2: A | O2: =IF(N2="I","無往來",IF(SUM(P2:Q2)>0,"OK","沒有promotion")) ->  | P2: =COUNTIF([4]BALANCE!$A$1:$A$65536,[4]notouch!$A2) ->  | Q2: =COUNTIF([4]BALANCE!$A$1:$A$65536,[4]notouch!$H2) ->  | R2: =VLOOKUP(A2,[5]LIST!$D$1:$G$9762,4,0) -> ETC
A3: TW006291001B | B3: ONETIMECUSTOMER | G3: ETC | H3: ETC | I3: ETC_TT | J3: TW006291001B | M3: =M1-M2 -> 0 | N3: A | O3: =IF(N3="I","無往來",IF(SUM(P3:Q3)>0,"OK","沒有promotion")) ->  | P3: =COUNTIF([4]BALANCE!$A$1:$A$65536,[4]notouch!$A3) ->  | Q3: =COUNTIF([4]BALANCE!$A$1:$A$65536,[4]notouch!$H3) ->  | R3: =VLOOKUP(A3,[5]LIST!$D$1:$G$9762,4,0) -> ETC
A4: TW002605001B | B4: =VLOOKUP(A4,'[2]Bill+Ship to Code (Active) 12'!$B$1:$D$3073,3,0) -> ONE TIME SERVICE FOR TYPE 2 | G4: ETC | H4: ETC | I4: ETC_TT | J4: TW002605001B | K4: =VLOOKUP(A4,'[3]工作表4 (2)'!$A$2:$D$539,4,0) -> 4803870 | L4: SVC | N4: A | O4: 沒有promotion | R4: =VLOOKUP(A4,[5]LIST!$D$1:$G$9762,4,0) -> ETC
A5: TW003659001B | B5: =VLOOKUP(A5,'[2]Bill+Ship to Code (Active) 12'!$B$1:$D$3073,3,0) -> ONE TIME SERVICE E-INVOICE FOR TYPE2 | G5: ETC | H5: ETC | I5: ETC_TT | J5: TW003659001B | K5: =VLOOKUP(A5,'[3]工作表4 (2)'!$A$2:$D$539,4,0) -> 432270 | L5: SVC | N5: A | O5: 沒有promotion | R5: =VLOOKUP(A5,[5]LIST!$D$1:$G$9762,4,0) -> ETC
A6: TW005429001B | B6: =VLOOKUP(A6,'[2]Bill+Ship to Code (Active) 12'!$B$1:$D$3073,3,0) -> One time_SVC | G6: SVC | H6: SVC | I6: SVC | J6: TW005429001B | K6: =VLOOKUP(A6,'[3]工作表4 (2)'!$A$2:$D$539,4,0) -> 2426399 | L6: SVC | N6: A | O6: 沒有promotion | R6: =VLOOKUP(A6,[5]LIST!$D$1:$G$9762,4,0) -> ETC
A7: TW005433001B | G7: ETC | H7: ETC | I7: ETC_TT | J7: TW005433001B | K7: =VLOOKUP(A7,'[3]工作表4 (2)'!$A$2:$D$539,4,0) -> 4533086 | L7: ETC | N7: A | O7: 沒有promotion | R7: =VLOOKUP(A7,[5]LIST!$D$1:$G$9762,4,0) -> ETC
A8: TW004851001B | B8: 億電通國際 | G8: SVC | H8: SVC | I8: SVC | J8: TW004851001B | K8: =VLOOKUP(A8,'[3]工作表4 (2)'!$A$2:$D$539,4,0) -> 704545 | L8: SVC | N8: A | O8: 沒有promotion | R8: =VLOOKUP(A8,[5]LIST!$D$1:$G$9762,4,0) -> ETC
A9: TW007120001B | B9: 通達智能 | G9: SVC | H9: SVC | I9: SVC | J9: TW007120001B | L9: SVC | N9: A | O9: 沒有promotion | R9: =VLOOKUP(A9,[5]LIST!$D$1:$G$9762,4,0) -> ETC
A10: CN000116066B | G10: ETC | H10: ETC | I10: ETC_TT | J10: CN000116066B | L10: ETC | N10: A | P10: =COUNTIF([4]BALANCE!$A$1:$A$65536,[4]notouch!$A10) ->  | Q10: =COUNTIF([4]BALANCE!$A$1:$A$65536,[4]notouch!$H10) ->  | R10: =VLOOKUP(A10,[5]LIST!$D$1:$G$9762,4,0) -> 
A11: KR000001066B | B11: LGEHQ | G11: ETC | H11: ETC | I11: ETC_TT | J11: KR000001066B | K11: =VLOOKUP(A11,'[3]工作表4 (2)'!$A$2:$D$539,4,0) -> 572507 | L11: ETC | N11: A | O11: =IF(N11="I","無往來",IF(SUM(P11:Q11)>0,"OK","沒有promotion")) ->  | P11: =COUNTIF([4]BALANCE!$A$1:$A$65536,[4]notouch!$A11) ->  | Q11: =COUNTIF([4]BALANCE!$A$1:$A$65536,[4]notouch!$H11) ->  | R11: =VLOOKUP(A11,[5]LIST!$D$1:$G$9762,4,0) -> 
A12: PH000001009B | B12: LGEPH | G12: ETC | H12: ETC | I12: ETC_TT | J12: PH000001009B | N12: A | P12: =COUNTIF([4]BALANCE!$A$1:$A$65536,[4]notouch!$A12) ->  | Q12: =COUNTIF([4]BALANCE!$A$1:$A$65536,[4]notouch!$H12) ->  | R12: =VLOOKUP(A12,[5]LIST!$D$1:$G$9762,4,0) -> 
A13: VN007883040B | B13: LGEVH | G13: ETC | H13: ETC | I13: ETC_TT | J13: VN007883040B | N13: A | P13: =COUNTIF([4]BALANCE!$A$1:$A$65536,[4]notouch!$A13) ->  | Q13: =COUNTIF([4]BALANCE!$A$1:$A$65536,[4]notouch!$H13) ->  | R13: =VLOOKUP(A13,[5]LIST!$D$1:$G$9762,4,0) -> 
A14: ZA000001060B | B14: LGESA | G14: ETC | H14: ETC | I14: ETC_TT | J14: ZA000001060B | L14: ETC | N14: A | P14: =COUNTIF([4]BALANCE!$A$1:$A$65536,[4]notouch!$A14) ->  | Q14: =COUNTIF([4]BALANCE!$A$1:$A$65536,[4]notouch!$H14) ->  | R14: =VLOOKUP(A14,[5]LIST!$D$1:$G$9762,4,0) -> 
A15: MX011038033B | B15: LGEMN | G15: ETC | H15: ETC | I15: ETC_TT | J15: MX011038033B | K15: =VLOOKUP(A15,'[3]工作表4 (2)'!$A$2:$D$539,4,0) -> 865406 | L15: ETC | N15: A | O15: =IF(N15="I","無往來",IF(SUM(P15:Q15)>0,"OK","沒有promotion")) ->  | P15: =COUNTIF([4]BALANCE!$A$1:$A$65536,[4]notouch!$A15) ->  | Q15: =COUNTIF([4]BALANCE!$A$1:$A$65536,[4]notouch!$H15) ->  | R15: =VLOOKUP(A15,[5]LIST!$D$1:$G$9762,4,0) -> 
A16: CN000135060B | B16: LGEPN | G16: ETC | H16: ETC | I16: ETC_TT | J16: CN000135060B | L16: ETC | N16: A | O16: =IF(N16="I","無往來",IF(SUM(P16:Q16)>0,"OK","沒有promotion")) ->  | P16: =COUNTIF([4]BALANCE!$A$1:$A$65536,[4]notouch!$A16) ->  | Q16: =COUNTIF([4]BALANCE!$A$1:$A$65536,[4]notouch!$H16) ->  | R16: =VLOOKUP(A16,[5]LIST!$D$1:$G$9762,4,0) -> 
A17: SG001062061B | G17: ETC | H17: ETC | I17: ETC_TT | J17: SG001062061B | N17: A | O17: =IF(N17="I","無往來",IF(SUM(P17:Q17)>0,"OK","沒有promotion")) ->  | P17: =COUNTIF([4]BALANCE!$A$1:$A$65536,[4]notouch!$A17) ->  | Q17: =COUNTIF([4]BALANCE!$A$1:$A$65536,[4]notouch!$H17) ->  | R17: =VLOOKUP(A17,[5]LIST!$D$1:$G$9762,4,0) -> 
A18: ID000002065B | B18: PT. LG ELECTRONICS INDONESIA | G18: ETC | H18: ETC | I18: ETC_TT | J18: ID000002065B | N18: A | P18: =COUNTIF([4]BALANCE!$A$1:$A$65536,[4]notouch!$A18) ->  | Q18: =COUNTIF([4]BALANCE!$A$1:$A$65536,[4]notouch!$H18) ->  | R18: =VLOOKUP(A18,[5]LIST!$D$1:$G$9762,4,0) -> 
A19: TW002070001B | B19: 來福電器商行 | C19: 19600401 | D19: 08026783 | E19: 高屏營銷處 | F19: GWB | G19: 高屏 | H19: DEALER_TT | I19: DLC_TT | J19: TW002070001B | K19: =VLOOKUP(A19,'[3]工作表4 (2)'!$A$2:$D$539,4,0) -> 0 | L19: 高屏營銷處 | N19: A | P19: =COUNTIF([4]BALANCE!$A$1:$A$65536,[4]notouch!$A19) ->  | Q19: =COUNTIF([4]BALANCE!$A$1:$A$65536,[4]notouch!$H19) ->  | R19: =VLOOKUP(A19,[5]LIST!$D$1:$G$9762,4,0) -> 一般
A20: TW002073001B | B20: 貴櫻音響 | C20: 19660906 | D20: 95987415 | E20: 高屏營銷處 | F20: GWB | G20: 高屏 | H20: DEALER_TT | I20: DLC_TT | N20: I | O20: 無往來 | P20: =COUNTIF([4]BALANCE!$A$1:$A$65536,[4]notouch!$A20) ->  | Q20: =COUNTIF([4]BALANCE!$A$1:$A$65536,[4]notouch!$H20) ->  | R20: =VLOOKUP(A20,[5]LIST!$D$1:$G$9762,4,0) -> Inactive
A21: TW002076001B | B21: 億興電業行 | C21: 19640715 | D21: 70940630 | E21: 高屏營銷處 | F21: GWB | G21: 高屏 | H21: DEALER_TT | I21: DLC_TT | J21: TW002076001B | K21: =VLOOKUP(A21,'[3]工作表4 (2)'!$A$2:$D$539,4,0) -> 0 | L21: 高屏營銷處 | N21: A | P21: =COUNTIF([4]BALANCE!$A$1:$A$65536,[4]notouch!$A21) ->  | Q21: =COUNTIF([4]BALANCE!$A$1:$A$65536,[4]notouch!$H21) ->  | R21: =VLOOKUP(A21,[5]LIST!$D$1:$G$9762,4,0) -> 一般
A22: TW002077001B | B22: 信一電器行 | C22: 19520302 | D22: 91730759 | E22: 高屏營銷處 | F22: GWB | G22: 高屏 | H22: DEALER_TT | I22: DLC_TT | J22: TW002077001B | K22: =VLOOKUP(A22,'[3]工作表4 (2)'!$A$2:$D$539,4,0) -> 0 | L22: 高屏營銷處 | N22: A | P22: =COUNTIF([4]BALANCE!$A$1:$A$65536,[4]notouch!$A22) ->  | Q22: =COUNTIF([4]BALANCE!$A$1:$A$65536,[4]notouch!$H22) ->  | R22: =VLOOKUP(A22,[5]LIST!$D$1:$G$9762,4,0) -> 一般
A23: TW002079001B | B23: 立陞電器 | C23: 19600710 | D23: 23956174 | E23: 高屏營銷處 | F23: GWB | G23: 高屏 | H23: DEALER_TT | I23: DLC_TT | J23: TW002079001B | K23: =VLOOKUP(A23,'[3]工作表4 (2)'!$A$2:$D$539,4,0) -> 58190 | L23: 高屏營銷處 | N23: A | P23: =COUNTIF([4]BALANCE!$A$1:$A$65536,[4]notouch!$A23) ->  | Q23: =COUNTIF([4]BALANCE!$A$1:$A$65536,[4]notouch!$H23) ->  | R23: =VLOOKUP(A23,[5]LIST!$D$1:$G$9762,4,0) -> 一般
A24: TW002083001B | B24: 路得企業有限公司 | C24: 19600503 | D24: 84672419 | E24: 高屏營銷處 | F24: GWB | G24: 高屏 | H24: DEALER_TT | I24: SPD_TT | J24: TW002083001B | K24: =VLOOKUP(A24,'[3]工作表4 (2)'!$A$2:$D$539,4,0) -> 148051 | L24: 高屏營銷處 | N24: A | P24: =COUNTIF([4]BALANCE!$A$1:$A$65536,[4]notouch!$A24) ->  | Q24: =COUNTIF([4]BALANCE!$A$1:$A$65536,[4]notouch!$H24) ->  | R24: =VLOOKUP(A24,[5]LIST!$D$1:$G$9762,4,0) -> 專售
A25: TW002084001B | B25: 新進發企業行 | C25: 19520414 | D25: 90802950 | E25: 高屏營銷處 | F25: GWB | G25: 高屏 | H25: DEALER_TT | I25: DLC_TT | N25: I | O25: 無往來 | P25: =COUNTIF([4]BALANCE!$A$1:$A$65536,[4]notouch!$A25) ->  | Q25: =COUNTIF([4]BALANCE!$A$1:$A$65536,[4]notouch!$H25) ->  | R25: =VLOOKUP(A25,[5]LIST!$D$1:$G$9762,4,0) -> Inactive
A26: TW002085001B | B26: 皇昇電器行 | C26: 19600320 | D26: 08069071 | E26: 高屏營銷處 | F26: GWB | G26: 高屏 | H26: DEALER_TT | I26: DLC_TT | N26: I | O26: 無往來 | P26: =COUNTIF([4]BALANCE!$A$1:$A$65536,[4]notouch!$A26) ->  | Q26: =COUNTIF([4]BALANCE!$A$1:$A$65536,[4]notouch!$H26) ->  | R26: =VLOOKUP(A26,[5]LIST!$D$1:$G$9762,4,0) -> Inactive
A27: TW002090001B | B27: 慶旺電器有限公司 | C27: hw7498625 | D27: hw16826605 | E27: 高屏營銷處 | F27: GWB | G27: 高屏 | H27: DEALER_TT | I27: DLC_TT | J27: TW002090001B | K27: =VLOOKUP(A27,'[3]工作表4 (2)'!$A$2:$D$539,4,0) -> 0 | L27: 高屏營銷處 | N27: A | P27: =COUNTIF([4]BALANCE!$A$1:$A$65536,[4]notouch!$A27) ->  | Q27: =COUNTIF([4]BALANCE!$A$1:$A$65536,[4]notouch!$H27) ->  | R27: =VLOOKUP(A27,[5]LIST!$D$1:$G$9762,4,0) -> 一般
A28: TW002091001B | B28: 人友電器行 | C28: 19601028 | D28: 77003547 | E28: 高屏營銷處 | F28: GWB | G28: 高屏 | H28: DEALER_TT | I28: DLC_TT | J28: TW002091001B | L28: 高屏營銷處 | N28: A | P28: =COUNTIF([4]BALANCE!$A$1:$A$65536,[4]notouch!$A28) ->  | Q28: =COUNTIF([4]BALANCE!$A$1:$A$65536,[4]notouch!$H28) ->  | R28: =VLOOKUP(A28,[5]LIST!$D$1:$G$9762,4,0) -> 一般
A29: TW002093001B | B29: 鴻嘉電化商行 | C29: 19480106 | D29: 06696505 | E29: 高屏營銷處 | F29: GWB | G29: 高屏 | H29: DEALER_TT | I29: DCS_TT | J29: TW002093001B | K29: =VLOOKUP(A29,'[3]工作表4 (2)'!$A$2:$D$539,4,0) -> 0 | L29: 高屏營銷處 | N29: A | P29: =COUNTIF([4]BALANCE!$A$1:$A$65536,[4]notouch!$A29) ->  | Q29: =COUNTIF([4]BALANCE!$A$1:$A$65536,[4]notouch!$H29) ->  | R29: =VLOOKUP(A29,[5]LIST!$D$1:$G$9762,4,0) -> DC
A30: TW002094001B | B30: 力利企業有限公司 | C30: 19660912 | D30: 16683445 | E30: 高屏營銷處 | F30: GWB | G30: 高屏 | H30: DEALER_TT | I30: DCS_TT | J30: TW002094001B | K30: =VLOOKUP(A30,'[3]工作表4 (2)'!$A$2:$D$539,4,0) -> 117172 | L30: 高屏營銷處 | N30: A | P30: =COUNTIF([4]BALANCE!$A$1:$A$65536,[4]notouch!$A30) ->  | Q30: =COUNTIF([4]BALANCE!$A$1:$A$65536,[4]notouch!$H30) ->  | R30: =VLOOKUP(A30,[5]LIST!$D$1:$G$9762,4,0) -> DC
A31: TW002099001B | B31: 淙勝電器有限公司 | C31: 19580807 | D31: 16476213 | E31: 高屏營銷處 | F31: GWB | G31: 高屏 | H31: DEALER_TT | I31: DLC_TT | J31: TW002099001B | L31: 高屏營銷處 | N31: A | P31: =COUNTIF([4]BALANCE!$A$1:$A$65536,[4]notouch!$A31) ->  | Q31: =COUNTIF([4]BALANCE!$A$1:$A$65536,[4]notouch!$H31) ->  | R31: =VLOOKUP(A31,[5]LIST!$D$1:$G$9762,4,0) -> Inactive
A32: TW002104001B | B32: 三豐電器行 | C32: 19681110 | D32: 19661607 | E32: 高屏營銷處 | F32: GWB | G32: 高屏 | H32: DEALER_TT | I32: DLC_TT | J32: TW002104001B | K32: =VLOOKUP(A32,'[3]工作表4 (2)'!$A$2:$D$539,4,0) -> 22530 | L32: 高屏營銷處 | N32: A | P32: =COUNTIF([4]BALANCE!$A$1:$A$65536,[4]notouch!$A32) ->  | Q32: =COUNTIF([4]BALANCE!$A$1:$A$65536,[4]notouch!$H32) ->  | R32: =VLOOKUP(A32,[5]LIST!$D$1:$G$9762,4,0) -> 一般
A33: TW002105001B | B33: 上眾電器有限公司 | C33: 19600908 | D33: 97408406 | E33: 高屏營銷處 | F33: GWB | G33: 高屏 | H33: DEALER_TT | I33: DLC_TT | J33: TW002105001B | K33: =VLOOKUP(A33,'[3]工作表4 (2)'!$A$2:$D$539,4,0) -> 19920 | L33: 高屏營銷處 | N33: A | P33: =COUNTIF([4]BALANCE!$A$1:$A$65536,[4]notouch!$A33) ->  | Q33: =COUNTIF([4]BALANCE!$A$1:$A$65536,[4]notouch!$H33) ->  | R33: =VLOOKUP(A33,[5]LIST!$D$1:$G$9762,4,0) -> 一般
A34: TW002106001B | B34: 大時代量販家電 | C34: 19670921 | D34: 07910980 | E34: 高屏營銷處 | F34: GWB | G34: 高屏 | H34: DEALER_TT | I34: SPD_TT | J34: TW002106001B | K34: =VLOOKUP(A34,'[3]工作表4 (2)'!$A$2:$D$539,4,0) -> 315506 | L34: 高屏營銷處 | N34: A | P34: =COUNTIF([4]BALANCE!$A$1:$A$65536,[4]notouch!$A34) ->  | Q34: =COUNTIF([4]BALANCE!$A$1:$A$65536,[4]notouch!$H34) ->  | R34: =VLOOKUP(A34,[5]LIST!$D$1:$G$9762,4,0) -> 專售
A35: TW002108001B | B35: 春聲電器有限公司 | C35: 19590922 | D35: 86633356 | E35: 高屏營銷處 | F35: GWB | G35: 高屏 | H35: DEALER_TT | I35: DCS_TT | J35: TW002108001B | K35: =VLOOKUP(A35,'[3]工作表4 (2)'!$A$2:$D$539,4,0) -> 90721 | L35: 高屏營銷處 | N35: A | P35: =COUNTIF([4]BALANCE!$A$1:$A$65536,[4]notouch!$A35) ->  | Q35: =COUNTIF([4]BALANCE!$A$1:$A$65536,[4]notouch!$H35) ->  | R35: =VLOOKUP(A35,[5]LIST!$D$1:$G$9762,4,0) -> DC
A36: TW002118001B | B36: 福總電業社 | C36: 19551001 | D36: 08519549 | E36: 高屏營銷處 | F36: GWB | G36: 高屏 | H36: DEALER_TT | I36: DLC_TT | J36: TW002118001B | K36: =VLOOKUP(A36,'[3]工作表4 (2)'!$A$2:$D$539,4,0) -> 39313 | L36: 高屏營銷處 | N36: A | P36: =COUNTIF([4]BALANCE!$A$1:$A$65536,[4]notouch!$A36) ->  | Q36: =COUNTIF([4]BALANCE!$A$1:$A$65536,[4]notouch!$H36) ->  | R36: =VLOOKUP(A36,[5]LIST!$D$1:$G$9762,4,0) -> 一般
A37: TW002119001B | B37: 聯立貿易有限公司 | C37: 19520813 | D37: 70405187 | E37: 高屏營銷處 | F37: GWB | G37: 高屏 | H37: DEALER_TT | I37: DCS_TT | J37: TW002119001B | K37: =VLOOKUP(A37,'[3]工作表4 (2)'!$A$2:$D$539,4,0) -> 137708 | L37: 高屏營銷處 | N37: A | P37: =COUNTIF([4]BALANCE!$A$1:$A$65536,[4]notouch!$A37) ->  | Q37: =COUNTIF([4]BALANCE!$A$1:$A$65536,[4]notouch!$H37) ->  | R37: =VLOOKUP(A37,[5]LIST!$D$1:$G$9762,4,0) -> DC
A38: TW002130001B | B38: 百鈴電器影視有限公司 | C38: 19530824 | D38: 72192956 | E38: 嘉南營銷處 | F38: DNB | G38: 嘉南 | H38: DEALER_TT | I38: DLC_TT | J38: TW002130001B | K38: =VLOOKUP(A38,'[3]工作表4 (2)'!$A$2:$D$539,4,0) -> 23788 | L38: 嘉南營銷處 | N38: A | P38: =COUNTIF([4]BALANCE!$A$1:$A$65536,[4]notouch!$A38) ->  | Q38: =COUNTIF([4]BALANCE!$A$1:$A$65536,[4]notouch!$H38) ->  | R38: =VLOOKUP(A38,[5]LIST!$D$1:$G$9762,4,0) -> 一般
A39: TW002140001B | B39: 大時代量販家電 | C39: 19681011 | D39: 87692727 | E39: 嘉南營銷處 | F39: DNB | G39: 嘉南 | H39: DEALER_TT | I39: DCS_TT | J39: TW002140001B | K39: =VLOOKUP(A39,'[3]工作表4 (2)'!$A$2:$D$539,4,0) -> 495779 | L39: 嘉南營銷處 | N39: A | P39: =COUNTIF([4]BALANCE!$A$1:$A$65536,[4]notouch!$A39) ->  | Q39: =COUNTIF([4]BALANCE!$A$1:$A$65536,[4]notouch!$H39) ->  | R39: =VLOOKUP(A39,[5]LIST!$D$1:$G$9762,4,0) -> DC
A40: TW002141001B | B40: 冠銓電器有限公司 | C40: 19630606 | D40: 16860835 | E40: 嘉南營銷處 | F40: DNB | G40: 嘉南 | H40: DEALER_TT | I40: SPD_TT | J40: TW002141001B | K40: =VLOOKUP(A40,'[3]工作表4 (2)'!$A$2:$D$539,4,0) -> 146824 | L40: 嘉南營銷處 | N40: A | P40: =COUNTIF([4]BALANCE!$A$1:$A$65536,[4]notouch!$A40) ->  | Q40: =COUNTIF([4]BALANCE!$A$1:$A$65536,[4]notouch!$H40) ->  | R40: =VLOOKUP(A40,[5]LIST!$D$1:$G$9762,4,0) -> 專售
A41: TW002143001B | B41: 全省電器有限公司 | C41: 19701230 | D41: 69689334 | E41: 嘉南營銷處 | F41: DNB | G41: 嘉南 | H41: DEALER_TT | I41: SPD_TT | J41: TW002143001B | K41: =VLOOKUP(A41,'[3]工作表4 (2)'!$A$2:$D$539,4,0) -> 1710949 | L41: 嘉南營銷處 | N41: A | P41: =COUNTIF([4]BALANCE!$A$1:$A$65536,[4]notouch!$A41) ->  | Q41: =COUNTIF([4]BALANCE!$A$1:$A$65536,[4]notouch!$H41) ->  | R41: =VLOOKUP(A41,[5]LIST!$D$1:$G$9762,4,0) -> 專售
A42: TW002144001B | B42: 歐鋒電器行 | C42: 19630108 | D42: 78995756 | E42: 嘉南營銷處 | F42: DNB | G42: 嘉南 | H42: DEALER_TT | I42: DCS_TT | J42: TW002144001B | K42: =VLOOKUP(A42,'[3]工作表4 (2)'!$A$2:$D$539,4,0) -> 31779 | L42: 嘉南營銷處 | N42: A | P42: =COUNTIF([4]BALANCE!$A$1:$A$65536,[4]notouch!$A42) ->  | Q42: =COUNTIF([4]BALANCE!$A$1:$A$65536,[4]notouch!$H42) ->  | R42: =VLOOKUP(A42,[5]LIST!$D$1:$G$9762,4,0) -> DC
A43: TW002146001B | B43: 宇騰電器行 | C43: 19630910 | D43: 78630074 | E43: 嘉南營銷處 | F43: DNB | G43: 嘉南 | H43: DEALER_TT | I43: DCS_TT | N43: I | O43: 無往來 | P43: =COUNTIF([4]BALANCE!$A$1:$A$65536,[4]notouch!$A43) ->  | Q43: =COUNTIF([4]BALANCE!$A$1:$A$65536,[4]notouch!$H43) ->  | R43: =VLOOKUP(A43,[5]LIST!$D$1:$G$9762,4,0) -> Inactive
A44: TW002150001B | B44: 宏偉電器行 | C44: 19610121 | D44: 06504730 | E44: 嘉南營銷處 | F44: DNB | G44: 嘉南 | H44: DEALER_TT | I44: DCS_TT | J44: TW002150001B | K44: =VLOOKUP(A44,'[3]工作表4 (2)'!$A$2:$D$539,4,0) -> 113348 | L44: 嘉南營銷處 | N44: A | P44: =COUNTIF([4]BALANCE!$A$1:$A$65536,[4]notouch!$A44) ->  | Q44: =COUNTIF([4]BALANCE!$A$1:$A$65536,[4]notouch!$H44) ->  | R44: =VLOOKUP(A44,[5]LIST!$D$1:$G$9762,4,0) -> DC
A45: TW002151001B | B45: 松寶電器行 | C45: 19530411 | D45: 85741379 | E45: 嘉南營銷處 | F45: DNB | G45: 嘉南 | H45: DEALER_TT | I45: DLC_TT | J45: TW002151001B | K45: =VLOOKUP(A45,'[3]工作表4 (2)'!$A$2:$D$539,4,0) -> 23788 | L45: 嘉南營銷處 | N45: A | P45: =COUNTIF([4]BALANCE!$A$1:$A$65536,[4]notouch!$A45) ->  | Q45: =COUNTIF([4]BALANCE!$A$1:$A$65536,[4]notouch!$H45) ->  | R45: =VLOOKUP(A45,[5]LIST!$D$1:$G$9762,4,0) -> 一般
A46: TW002152001B | B46: 世英電業行 | C46: 19510120 | D46: 69310389 | E46: 嘉南營銷處 | F46: DNB | G46: 嘉南 | H46: DEALER_TT | I46: DCS_TT | N46: A | P46: =COUNTIF([4]BALANCE!$A$1:$A$65536,[4]notouch!$A46) ->  | Q46: =COUNTIF([4]BALANCE!$A$1:$A$65536,[4]notouch!$H46) ->  | R46: =VLOOKUP(A46,[5]LIST!$D$1:$G$9762,4,0) -> 
A47: TW002154001B | B47: 信福電器有限公司 | C47: 19710107 | D47: 69279211 | E47: 嘉南營銷處 | F47: DNB | G47: 嘉南 | H47: DEALER_TT | I47: DCS_TT | J47: TW002154001B | K47: =VLOOKUP(A47,'[3]工作表4 (2)'!$A$2:$D$539,4,0) -> 1931238 | L47: 嘉南營銷處 | N47: A | P47: =COUNTIF([4]BALANCE!$A$1:$A$65536,[4]notouch!$A47) ->  | Q47: =COUNTIF([4]BALANCE!$A$1:$A$65536,[4]notouch!$H47) ->  | R47: =VLOOKUP(A47,[5]LIST!$D$1:$G$9762,4,0) -> DC
A48: TW002155001B | B48: 老李電器企業有限公司 | C48: 19541025 | D48: 06375829 | E48: 嘉南營銷處 | F48: DNB | G48: 嘉南 | H48: DEALER_TT | I48: DLC_TT | J48: TW002155001B | K48: =VLOOKUP(A48,'[3]工作表4 (2)'!$A$2:$D$539,4,0) -> 0 | L48: 嘉南營銷處 | N48: A | P48: =COUNTIF([4]BALANCE!$A$1:$A$65536,[4]notouch!$A48) ->  | Q48: =COUNTIF([4]BALANCE!$A$1:$A$65536,[4]notouch!$H48) ->  | R48: =VLOOKUP(A48,[5]LIST!$D$1:$G$9762,4,0) -> 一般
A49: TW002158001B | B49: 中美電器行 | C49: 19640417 | D49: 20198584 | E49: 嘉南營銷處 | F49: DNB | G49: 嘉南 | H49: DEALER_TT | I49: DLC_TT | J49: TW002158001B | K49: =VLOOKUP(A49,'[3]工作表4 (2)'!$A$2:$D$539,4,0) -> 0 | L49: 嘉南營銷處 | N49: A | P49: =COUNTIF([4]BALANCE!$A$1:$A$65536,[4]notouch!$A49) ->  | Q49: =COUNTIF([4]BALANCE!$A$1:$A$65536,[4]notouch!$H49) ->  | R49: =VLOOKUP(A49,[5]LIST!$D$1:$G$9762,4,0) -> 一般
A50: TW002173001B | B50: 泰欣電器行 | C50: 19601208 | D50: 06556096 | E50: 嘉南營銷處 | F50: DNB | G50: 嘉南 | H50: DEALER_TT | I50: DCS_TT | J50: TW002173001B | K50: =VLOOKUP(A50,'[3]工作表4 (2)'!$A$2:$D$539,4,0) -> 121130 | L50: 嘉南營銷處 | N50: A | P50: =COUNTIF([4]BALANCE!$A$1:$A$65536,[4]notouch!$A50) ->  | Q50: =COUNTIF([4]BALANCE!$A$1:$A$65536,[4]notouch!$H50) ->  | R50: =VLOOKUP(A50,[5]LIST!$D$1:$G$9762,4,0) -> DC
A51: TW002174001B | B51: 強尼電器百貨大批發 | C51: 19651231 | D51: 06583544 | E51: 嘉南營銷處 | F51: DNB | G51: 嘉南 | H51: DEALER_TT | I51: DLC_TT | N51: A | P51: =COUNTIF([4]BALANCE!$A$1:$A$65536,[4]notouch!$A51) ->  | Q51: =COUNTIF([4]BALANCE!$A$1:$A$65536,[4]notouch!$H51) ->  | R51: =VLOOKUP(A51,[5]LIST!$D$1:$G$9762,4,0) -> 
A52: TW002176001B | B52: 益昌電氣行 | C52: 19720603 | D52: 72166747 | E52: 嘉南營銷處 | F52: DNB | G52: 嘉南 | H52: DEALER_TT | I52: DLC_TT | J52: TW002176001B | K52: =VLOOKUP(A52,'[3]工作表4 (2)'!$A$2:$D$539,4,0) -> 0 | L52: 嘉南營銷處 | N52: A | P52: =COUNTIF([4]BALANCE!$A$1:$A$65536,[4]notouch!$A52) ->  | Q52: =COUNTIF([4]BALANCE!$A$1:$A$65536,[4]notouch!$H52) ->  | R52: =VLOOKUP(A52,[5]LIST!$D$1:$G$9762,4,0) -> 一般
A53: TW002192001B | B53: 和春電器行 | C53: 19681015 | D53: 64910498 | E53: 嘉南營銷處 | F53: DNB | G53: 嘉南 | H53: DEALER_TT | I53: DLC_TT | J53: TW002192001B | K53: =VLOOKUP(A53,'[3]工作表4 (2)'!$A$2:$D$539,4,0) -> 29862 | L53: 嘉南營銷處 | N53: A | P53: =COUNTIF([4]BALANCE!$A$1:$A$65536,[4]notouch!$A53) ->  | Q53: =COUNTIF([4]BALANCE!$A$1:$A$65536,[4]notouch!$H53) ->  | R53: =VLOOKUP(A53,[5]LIST!$D$1:$G$9762,4,0) -> 一般
A54: TW002194001B | B54: 宏達電氣行 | C54: 19780611 | D54: 64862377 | E54: 台中營銷處 | F54: DJB | G54: 台中 | H54: DEALER_TT | I54: DCS_TT | J54: TW002194001B | K54: =VLOOKUP(A54,'[3]工作表4 (2)'!$A$2:$D$539,4,0) -> 166361 | L54: 台中營銷處 | N54: A | P54: =COUNTIF([4]BALANCE!$A$1:$A$65536,[4]notouch!$A54) ->  | Q54: =COUNTIF([4]BALANCE!$A$1:$A$65536,[4]notouch!$H54) ->  | R54: =VLOOKUP(A54,[5]LIST!$D$1:$G$9762,4,0) -> DC
A55: TW002201001B | B55: 中聯發國際企業有限公司 | C55: TW002201 | D55: 16402395 | E55: 台中營銷處 | F55: DJB | G55: 台中 | H55: DEALER_TT | I55: DLC_TT | J55: TW002201001B | K55: =VLOOKUP(A55,'[3]工作表4 (2)'!$A$2:$D$539,4,0) -> 159962 | L55: 台中營銷處 | N55: A | P55: =COUNTIF([4]BALANCE!$A$1:$A$65536,[4]notouch!$A55) ->  | Q55: =COUNTIF([4]BALANCE!$A$1:$A$65536,[4]notouch!$H55) ->  | R55: =VLOOKUP(A55,[5]LIST!$D$1:$G$9762,4,0) -> 一般
A56: TW002204001B | B56: 鑫昌電器有限公司 | C56: 22789515 | D56: 22791019 | E56: 台中營銷處 | F56: DJB | G56: 台中 | H56: DEALER_TT | I56: SPD_TT | J56: TW002204001B | L56: 台中營銷處 | N56: A | P56: =COUNTIF([4]BALANCE!$A$1:$A$65536,[4]notouch!$A56) ->  | Q56: =COUNTIF([4]BALANCE!$A$1:$A$65536,[4]notouch!$H56) ->  | R56: =VLOOKUP(A56,[5]LIST!$D$1:$G$9762,4,0) -> 
A57: TW002206001B | B57: 祥峰電器行 | C57: TW002206 | D57: 61841075 | E57: 台中營銷處 | F57: DJB | G57: 台中 | H57: DEALER_TT | I57: DLC_TT | J57: TW002206001B | K57: =VLOOKUP(A57,'[3]工作表4 (2)'!$A$2:$D$539,4,0) -> 24071 | L57: 台中營銷處 | N57: A | P57: =COUNTIF([4]BALANCE!$A$1:$A$65536,[4]notouch!$A57) ->  | Q57: =COUNTIF([4]BALANCE!$A$1:$A$65536,[4]notouch!$H57) ->  | R57: =VLOOKUP(A57,[5]LIST!$D$1:$G$9762,4,0) -> 一般
A58: TW002214001B | B58: 欣益電器行 | C58: TW002214 | D58: 12043905 | E58: 台中營銷處 | F58: DJB | G58: 台中 | H58: DEALER_TT | I58: SPD_TT | J58: TW002214001B | K58: =VLOOKUP(A58,'[3]工作表4 (2)'!$A$2:$D$539,4,0) -> 184780 | L58: 台中營銷處 | N58: A | P58: =COUNTIF([4]BALANCE!$A$1:$A$65536,[4]notouch!$A58) ->  | Q58: =COUNTIF([4]BALANCE!$A$1:$A$65536,[4]notouch!$H58) ->  | R58: =VLOOKUP(A58,[5]LIST!$D$1:$G$9762,4,0) -> 專售
A59: TW002223001B | B59: 長紅電子專賣店 | C59: 19680422 | D59: 92812618 | E59: 台中營銷處 | F59: DJB | G59: 台中 | H59: DEALER_TT | I59: DLC_TT | J59: TW002223001B | K59: =VLOOKUP(A59,'[3]工作表4 (2)'!$A$2:$D$539,4,0) -> 21734 | L59: 台中營銷處 | N59: A | P59: =COUNTIF([4]BALANCE!$A$1:$A$65536,[4]notouch!$A59) ->  | Q59: =COUNTIF([4]BALANCE!$A$1:$A$65536,[4]notouch!$H59) ->  | R59: =VLOOKUP(A59,[5]LIST!$D$1:$G$9762,4,0) -> 一般
A60: TW002228001B | B60: 嘉聲電器有限公司 | C60: TW002228 | D60: 22960798 | E60: 台中營銷處 | F60: DJB | G60: 台中 | H60: DEALER_TT | I60: DLC_TT | N60: I | O60: 無往來 | P60: =COUNTIF([4]BALANCE!$A$1:$A$65536,[4]notouch!$A60) ->  | Q60: =COUNTIF([4]BALANCE!$A$1:$A$65536,[4]notouch!$H60) ->  | R60: =VLOOKUP(A60,[5]LIST!$D$1:$G$9762,4,0) -> 一般
A61: TW002229001B | B61: 宏昌電器行 | C61: 19590618 | D61: 24151920 | E61: 台中營銷處 | F61: DJB | G61: 台中 | H61: DEALER_TT | I61: DLC_TT | J61: TW002229001B | K61: =VLOOKUP(A61,'[3]工作表4 (2)'!$A$2:$D$539,4,0) -> 51071 | L61: 台中營銷處 | N61: A | P61: =COUNTIF([4]BALANCE!$A$1:$A$65536,[4]notouch!$A61) ->  | Q61: =COUNTIF([4]BALANCE!$A$1:$A$65536,[4]notouch!$H61) ->  | R61: =VLOOKUP(A61,[5]LIST!$D$1:$G$9762,4,0) -> 一般
A62: TW002239001B | B62: 明信電子專賣店 | C62: 19641206 | D62: 77109680 | E62: 台中營銷處 | F62: DJB | G62: 台中 | H62: DEALER_TT | I62: DLC_TT | J62: TW002239001B | K62: =VLOOKUP(A62,'[3]工作表4 (2)'!$A$2:$D$539,4,0) -> 0 | L62: 台中營銷處 | N62: A | P62: =COUNTIF([4]BALANCE!$A$1:$A$65536,[4]notouch!$A62) ->  | Q62: =COUNTIF([4]BALANCE!$A$1:$A$65536,[4]notouch!$H62) ->  | R62: =VLOOKUP(A62,[5]LIST!$D$1:$G$9762,4,0) -> 一般
A63: TW002245001B | B63: 明嘉電器 | C63: TW002245 | D63: 23077347 | E63: 台中營銷處 | F63: DJB | G63: 台中 | H63: DEALER_TT | I63: DLC_TT | N63: I | O63: 無往來 | P63: =COUNTIF([4]BALANCE!$A$1:$A$65536,[4]notouch!$A63) ->  | Q63: =COUNTIF([4]BALANCE!$A$1:$A$65536,[4]notouch!$H63) ->  | R63: =VLOOKUP(A63,[5]LIST!$D$1:$G$9762,4,0) -> Inactive
A64: TW002248001B | B64: 盟音電器 | C64: TW002248 | D64: 84181461 | E64: 台中營銷處 | F64: DJB | G64: 台中 | H64: DEALER_TT | I64: DLC_TT | N64: I | O64: 無往來 | P64: =COUNTIF([4]BALANCE!$A$1:$A$65536,[4]notouch!$A64) ->  | Q64: =COUNTIF([4]BALANCE!$A$1:$A$65536,[4]notouch!$H64) ->  | R64: =VLOOKUP(A64,[5]LIST!$D$1:$G$9762,4,0) -> Inactive
A65: TW002250001B | B65: 格愛陞有限公司 | C65: TW002250 | D65: 84694814 | E65: 台中營銷處 | F65: DJB | G65: 台中 | H65: DEALER_TT | I65: DCS_TT | N65: I | O65: 無往來 | P65: =COUNTIF([4]BALANCE!$A$1:$A$65536,[4]notouch!$A65) ->  | Q65: =COUNTIF([4]BALANCE!$A$1:$A$65536,[4]notouch!$H65) ->  | R65: =VLOOKUP(A65,[5]LIST!$D$1:$G$9762,4,0) -> 
A66: TW002252001B | B66: 沅富電器行 | C66: 19611227 | D66: 18334578 | E66: 台中營銷處 | F66: DJB | G66: 台中 | H66: DEALER_TT | I66: SPD_TT | J66: TW002252001B | K66: =VLOOKUP(A66,'[3]工作表4 (2)'!$A$2:$D$539,4,0) -> 382183 | L66: 台中營銷處 | N66: A | P66: =COUNTIF([4]BALANCE!$A$1:$A$65536,[4]notouch!$A66) ->  | Q66: =COUNTIF([4]BALANCE!$A$1:$A$65536,[4]notouch!$H66) ->  | R66: =VLOOKUP(A66,[5]LIST!$D$1:$G$9762,4,0) -> 專售
A67: TW002257001B | B67: 恆信電器有限公司 | C67: TW002257 | D67: 89817694 | E67: 台中營銷處 | F67: DJB | G67: 台中 | H67: DEALER_TT | I67: DLC_TT | J67: TW002257001B | K67: =VLOOKUP(A67,'[3]工作表4 (2)'!$A$2:$D$539,4,0) -> 0 | L67: 台中營銷處 | N67: A | P67: =COUNTIF([4]BALANCE!$A$1:$A$65536,[4]notouch!$A67) ->  | Q67: =COUNTIF([4]BALANCE!$A$1:$A$65536,[4]notouch!$H67) ->  | R67: =VLOOKUP(A67,[5]LIST!$D$1:$G$9762,4,0) -> 一般
A68: TW002261001B | B68: 美齊富有限公司 | C68: 23893338 | D68: 23811788 | E68: 台中營銷處 | F68: DJB | G68: 台中 | H68: DEALER_TT | I68: DLC_TT | J68: TW002261001B | K68: =VLOOKUP(A68,'[3]工作表4 (2)'!$A$2:$D$539,4,0) -> 156021 | L68: 台中營銷處 | N68: A | P68: =COUNTIF([4]BALANCE!$A$1:$A$65536,[4]notouch!$A68) ->  | Q68: =COUNTIF([4]BALANCE!$A$1:$A$65536,[4]notouch!$H68) ->  | R68: =VLOOKUP(A68,[5]LIST!$D$1:$G$9762,4,0) -> 一般
A69: TW002261002B | B69: 美齊富有限公司 | C69: XXXXXXXX | D69: XXXXXXXX | E69: SAC | F69: ID&SAC | G69: SAC Sales | H69: B2B_TT | I69: CAC_TT | N69: I | O69: 無往來 | P69: =COUNTIF([4]BALANCE!$A$1:$A$65536,[4]notouch!$A69) ->  | Q69: =COUNTIF([4]BALANCE!$A$1:$A$65536,[4]notouch!$H69) ->  | R69: =VLOOKUP(A69,[5]LIST!$D$1:$G$9762,4,0) -> B2B
A70: TW002262001B | B70: 太子電業行 | C70: TW002262 | D70: 77685331 | E70: 台中營銷處 | F70: DJB | G70: 台中 | H70: DEALER_TT | I70: DCS_TT | J70: TW002262001B | K70: =VLOOKUP(A70,'[3]工作表4 (2)'!$A$2:$D$539,4,0) -> 334262 | L70: 台中營銷處 | N70: A | P70: =COUNTIF([4]BALANCE!$A$1:$A$65536,[4]notouch!$A70) ->  | Q70: =COUNTIF([4]BALANCE!$A$1:$A$65536,[4]notouch!$H70) ->  | R70: =VLOOKUP(A70,[5]LIST!$D$1:$G$9762,4,0) -> DC
A71: TW002265001B | B71: 大謄電器有限公司 | C71: TW002265 | D71: 22915458 | E71: 台中營銷處 | F71: DJB | G71: 台中 | H71: DEALER_TT | I71: DLC_TT | J71: TW002265001B | K71: =VLOOKUP(A71,'[3]工作表4 (2)'!$A$2:$D$539,4,0) -> 44290 | L71: 台中營銷處 | N71: A | P71: =COUNTIF([4]BALANCE!$A$1:$A$65536,[4]notouch!$A71) ->  | Q71: =COUNTIF([4]BALANCE!$A$1:$A$65536,[4]notouch!$H71) ->  | R71: =VLOOKUP(A71,[5]LIST!$D$1:$G$9762,4,0) -> 一般
A72: TW002267001B | B72: 東林電器有限公司 | C72: 19531101 | D72: 97482257 | E72: 台中營銷處 | F72: DJB | G72: 台中 | H72: DEALER_TT | I72: DLC_TT | J72: TW002267001B | L72: 台中營銷處 | N72: A | P72: =COUNTIF([4]BALANCE!$A$1:$A$65536,[4]notouch!$A72) ->  | Q72: =COUNTIF([4]BALANCE!$A$1:$A$65536,[4]notouch!$H72) ->  | R72: =VLOOKUP(A72,[5]LIST!$D$1:$G$9762,4,0) -> 一般
A73: TW002268001B | B73: 佳億電器量販 | C73: TW002268 | D73: 77249459 | E73: 台中營銷處 | F73: DJB | G73: 台中 | H73: DEALER_TT | I73: DLC_TT | N73: I | O73: 無往來 | P73: =COUNTIF([4]BALANCE!$A$1:$A$65536,[4]notouch!$A73) ->  | Q73: =COUNTIF([4]BALANCE!$A$1:$A$65536,[4]notouch!$H73) ->  | R73: =VLOOKUP(A73,[5]LIST!$D$1:$G$9762,4,0) -> Inactive
A74: TW002277001B | B74: 家晟電器 | C74: TW002277 | D74: 22401937 | E74: 台中營銷處 | F74: DJB | G74: 台中 | H74: DEALER_TT | I74: DLC_TT | N74: I | O74: 無往來 | P74: =COUNTIF([4]BALANCE!$A$1:$A$65536,[4]notouch!$A74) ->  | Q74: =COUNTIF([4]BALANCE!$A$1:$A$65536,[4]notouch!$H74) ->  | R74: =VLOOKUP(A74,[5]LIST!$D$1:$G$9762,4,0) -> Inactive
A75: TW002288001B | B75: 幸韻電器有限公司 | C75: 19661201 | D75: 89328106 | E75: 桃竹營銷處 | F75: DWB | G75: 桃竹 | H75: DEALER_TT | I75: SPD_TT | J75: TW002288001B | K75: =VLOOKUP(A75,'[3]工作表4 (2)'!$A$2:$D$539,4,0) -> 401803 | L75: 桃竹營銷處 | N75: A | P75: =COUNTIF([4]BALANCE!$A$1:$A$65536,[4]notouch!$A75) ->  | Q75: =COUNTIF([4]BALANCE!$A$1:$A$65536,[4]notouch!$H75) ->  | R75: =VLOOKUP(A75,[5]LIST!$D$1:$G$9762,4,0) -> 專售
A76: TW002291001B | B76: 金一電器有限公司 | C76: 19570623 | D76: 22137992 | E76: 桃竹營銷處 | F76: DWB | G76: 桃竹 | H76: DEALER_TT | I76: SPD_TT | J76: TW002291001B | K76: =VLOOKUP(A76,'[3]工作表4 (2)'!$A$2:$D$539,4,0) -> 100793 | L76: 桃竹營銷處 | N76: A | P76: =COUNTIF([4]BALANCE!$A$1:$A$65536,[4]notouch!$A76) ->  | Q76: =COUNTIF([4]BALANCE!$A$1:$A$65536,[4]notouch!$H76) ->  | R76: =VLOOKUP(A76,[5]LIST!$D$1:$G$9762,4,0) -> 專售
A77: TW002295001B | B77: 金昇電器有限公司 | C77: 19691111 | D77: 49651654 | E77: 桃竹營銷處 | F77: DWB | G77: 桃竹 | H77: DEALER_TT | I77: DLC_TT | N77: I | O77: 無往來 | P77: =COUNTIF([4]BALANCE!$A$1:$A$65536,[4]notouch!$A77) ->  | Q77: =COUNTIF([4]BALANCE!$A$1:$A$65536,[4]notouch!$H77) ->  | R77: =VLOOKUP(A77,[5]LIST!$D$1:$G$9762,4,0) -> 一般
A78: TW002305001B | B78: 皇典電器行 | C78: 19680201 | D78: 78544155 | E78: 桃竹營銷處 | F78: DWB | G78: 桃竹 | H78: DEALER_TT | I78: DLC_TT | J78: TW002305001B | K78: =VLOOKUP(A78,'[3]工作表4 (2)'!$A$2:$D$539,4,0) -> 0 | L78: 桃竹營銷處 | N78: A | O78: =IF(N78="I","無往來",IF(SUM(P78:Q78)>0,"OK","沒有promotion")) ->  | P78: =COUNTIF([4]BALANCE!$A$1:$A$65536,[4]notouch!$A78) ->  | Q78: =COUNTIF([4]BALANCE!$A$1:$A$65536,[4]notouch!$H78) ->  | R78: =VLOOKUP(A78,[5]LIST!$D$1:$G$9762,4,0) -> 一般
A79: TW002315001B | B79: 銓日電器行 | C79: 19670416 | D79: 73800090 | E79: 桃竹營銷處 | F79: DWB | G79: 桃竹 | H79: DEALER_TT | I79: DLC_TT | K79: =VLOOKUP(A79,'[3]工作表4 (2)'!$A$2:$D$539,4,0) -> 0 | L79: 桃竹營銷處 | N79: A | P79: =COUNTIF([4]BALANCE!$A$1:$A$65536,[4]notouch!$A79) ->  | Q79: =COUNTIF([4]BALANCE!$A$1:$A$65536,[4]notouch!$H79) ->  | R79: =VLOOKUP(A79,[5]LIST!$D$1:$G$9762,4,0) -> 一般
A80: TW002324001B | B80: 兆宏電業行 | C80: 19640130 | D80: 47039765 | E80: 桃竹營銷處 | F80: DWB | G80: 桃竹 | H80: DEALER_TT | I80: DLC_TT | J80: TW002324001B | K80: =VLOOKUP(A80,'[3]工作表4 (2)'!$A$2:$D$539,4,0) -> 59679 | L80: 桃竹營銷處 | N80: A | P80: =COUNTIF([4]BALANCE!$A$1:$A$65536,[4]notouch!$A80) ->  | Q80: =COUNTIF([4]BALANCE!$A$1:$A$65536,[4]notouch!$H80) ->  | R80: =VLOOKUP(A80,[5]LIST!$D$1:$G$9762,4,0) -> 一般
A81: TW002331001B | B81: 同慶電氣行 | C81: 19530412 | D81: 43779752 | E81: 桃竹營銷處 | F81: DWB | G81: 桃竹 | H81: DEALER_TT | I81: DLC_TT | J81: TW002331001B | K81: =VLOOKUP(A81,'[3]工作表4 (2)'!$A$2:$D$539,4,0) -> 0 | L81: 桃竹營銷處 | N81: A | P81: =COUNTIF([4]BALANCE!$A$1:$A$65536,[4]notouch!$A81) ->  | Q81: =COUNTIF([4]BALANCE!$A$1:$A$65536,[4]notouch!$H81) ->  | R81: =VLOOKUP(A81,[5]LIST!$D$1:$G$9762,4,0) -> 一般
A82: TW002338001B | B82: 福娥電業行 | C82: 19580811 | D82: 13513828 | E82: 桃竹營銷處 | F82: DWB | G82: 桃竹 | H82: DEALER_TT | I82: DCS_TT | J82: TW002338001B | K82: =VLOOKUP(A82,'[3]工作表4 (2)'!$A$2:$D$539,4,0) -> 80683 | L82: 桃竹營銷處 | N82: A | P82: =COUNTIF([4]BALANCE!$A$1:$A$65536,[4]notouch!$A82) ->  | Q82: =COUNTIF([4]BALANCE!$A$1:$A$65536,[4]notouch!$H82) ->  | R82: =VLOOKUP(A82,[5]LIST!$D$1:$G$9762,4,0) -> DC
A83: TW002343001B | B83: 名富電器行 | C83: 19500615 | D83: 45162367 | E83: 桃竹營銷處 | F83: DWB | G83: 桃竹 | H83: DEALER_TT | I83: DCS_TT | J83: TW002343001B | K83: =VLOOKUP(A83,'[3]工作表4 (2)'!$A$2:$D$539,4,0) -> 449638 | L83: 桃竹營銷處 | N83: A | P83: =COUNTIF([4]BALANCE!$A$1:$A$65536,[4]notouch!$A83) ->  | Q83: =COUNTIF([4]BALANCE!$A$1:$A$65536,[4]notouch!$H83) ->  | R83: =VLOOKUP(A83,[5]LIST!$D$1:$G$9762,4,0) -> DC
A84: TW002347001B | B84: 得興電器有限公司 | C84: 19690802 | D84: 89730711 | E84: 桃竹營銷處 | F84: DWB | G84: 桃竹 | H84: DEALER_TT | I84: DCS_TT | J84: TW002347001B | K84: =VLOOKUP(A84,'[3]工作表4 (2)'!$A$2:$D$539,4,0) -> 1402884 | L84: 桃竹營銷處 | N84: A | P84: =COUNTIF([4]BALANCE!$A$1:$A$65536,[4]notouch!$A84) ->  | Q84: =COUNTIF([4]BALANCE!$A$1:$A$65536,[4]notouch!$H84) ->  | R84: =VLOOKUP(A84,[5]LIST!$D$1:$G$9762,4,0) -> DC
A85: TW002349001B | B85: 金長益電器有限公司 | C85: 19640714 | D85: 16908253 | E85: 桃竹營銷處 | F85: DWB | G85: 桃竹 | H85: DEALER_TT | I85: DLC_TT | J85: TW002349001B | K85: =VLOOKUP(A85,'[3]工作表4 (2)'!$A$2:$D$539,4,0) -> 284849 | L85: 桃竹營銷處 | N85: A | P85: =COUNTIF([4]BALANCE!$A$1:$A$65536,[4]notouch!$A85) ->  | Q85: =COUNTIF([4]BALANCE!$A$1:$A$65536,[4]notouch!$H85) ->  | R85: =VLOOKUP(A85,[5]LIST!$D$1:$G$9762,4,0) -> 一般
A86: TW002351001B | B86: 雅光有限公司 | C86: 19590805 | D86: 01189353 | E86: 台北營銷處 | F86: TPH | G86: 台北 | H86: DEALER_TT | I86: SPD_TT | J86: TW002351001B | K86: =VLOOKUP(A86,'[3]工作表4 (2)'!$A$2:$D$539,4,0) -> 2536972 | L86: 台北營銷處 | N86: A | P86: =COUNTIF([4]BALANCE!$A$1:$A$65536,[4]notouch!$A86) ->  | Q86: =COUNTIF([4]BALANCE!$A$1:$A$65536,[4]notouch!$H86) ->  | R86: =VLOOKUP(A86,[5]LIST!$D$1:$G$9762,4,0) -> 專售
A87: TW002351002B | B87: 雅光有限公司 | C87: XXXXXXXX | D87: XXXXXXXX | E87: SAC | F87: ID&SAC | G87: SAC Sales | H87: B2B_TT | I87: CAC_TT | N87: I | O87: 無往來 | P87: =COUNTIF([4]BALANCE!$A$1:$A$65536,[4]notouch!$A87) ->  | Q87: =COUNTIF([4]BALANCE!$A$1:$A$65536,[4]notouch!$H87) ->  | R87: =VLOOKUP(A87,[5]LIST!$D$1:$G$9762,4,0) -> B2B
A88: TW002352001B | B88: 佳禾貿易有限公司 | C88: 19501112 | D88: 97310065 | E88: 台北營銷處 | F88: TPH | G88: 台北 | H88: DEALER_TT | I88: DLC_TT | J88: TW002352001B | K88: =VLOOKUP(A88,'[3]工作表4 (2)'!$A$2:$D$539,4,0) -> 0 | L88: 台北營銷處 | N88: A | P88: =COUNTIF([4]BALANCE!$A$1:$A$65536,[4]notouch!$A88) ->  | Q88: =COUNTIF([4]BALANCE!$A$1:$A$65536,[4]notouch!$H88) ->  | R88: =VLOOKUP(A88,[5]LIST!$D$1:$G$9762,4,0) -> 一般
A89: TW002359001B | B89: 宏仁電器行 | C89: 19690518 | D89: 92883893 | E89: 台北營銷處 | F89: TPH | G89: 台北 | H89: DEALER_TT | I89: DLC_TT | J89: TW002359001B | L89: 台北營銷處 | N89: A | P89: =COUNTIF([4]BALANCE!$A$1:$A$65536,[4]notouch!$A89) ->  | Q89: =COUNTIF([4]BALANCE!$A$1:$A$65536,[4]notouch!$H89) ->  | R89: =VLOOKUP(A89,[5]LIST!$D$1:$G$9762,4,0) -> Inactive
A90: TW002363001B | B90: 吳頡興電器企業有限公司 | C90: 19551115 | D90: 22905634 | E90: 台北營銷處 | F90: TPH | G90: 台北 | H90: DEALER_TT | I90: DLC_TT | J90: TW002363001B | K90: =VLOOKUP(A90,'[3]工作表4 (2)'!$A$2:$D$539,4,0) -> 29756 | L90: 台北營銷處 | N90: A | P90: =COUNTIF([4]BALANCE!$A$1:$A$65536,[4]notouch!$A90) ->  | Q90: =COUNTIF([4]BALANCE!$A$1:$A$65536,[4]notouch!$H90) ->  | R90: =VLOOKUP(A90,[5]LIST!$D$1:$G$9762,4,0) -> 一般
A91: TW002368001B | B91: 健融電器行 | C91: 19590810 | D91: 02153403 | E91: 台北營銷處 | F91: TPH | G91: 台北 | H91: DEALER_TT | I91: DLC_TT | J91: TW002368001B | K91: =VLOOKUP(A91,'[3]工作表4 (2)'!$A$2:$D$539,4,0) -> 77586 | L91: 台北營銷處 | N91: A | P91: =COUNTIF([4]BALANCE!$A$1:$A$65536,[4]notouch!$A91) ->  | Q91: =COUNTIF([4]BALANCE!$A$1:$A$65536,[4]notouch!$H91) ->  | R91: =VLOOKUP(A91,[5]LIST!$D$1:$G$9762,4,0) -> 一般
A92: TW002372001B | B92: 承德國際有限公司 | C92: 19661020 | D92: 89960924 | E92: 台北營銷處 | F92: TPH | G92: 台北 | H92: DEALER_TT | I92: DCS_TT | J92: TW002372001B | K92: =VLOOKUP(A92,'[3]工作表4 (2)'!$A$2:$D$539,4,0) -> 0 | L92: 台北營銷處 | N92: A | P92: =COUNTIF([4]BALANCE!$A$1:$A$65536,[4]notouch!$A92) ->  | Q92: =COUNTIF([4]BALANCE!$A$1:$A$65536,[4]notouch!$H92) ->  | R92: =VLOOKUP(A92,[5]LIST!$D$1:$G$9762,4,0) -> DC
A93: TW002375001B | B93: 建而福電器有限公司 | C93: 19470824 | D93: 33842192 | E93: 台北營銷處 | F93: TPH | G93: 台北 | H93: DEALER_TT | I93: DLC_TT | J93: TW002375001B | L93: 台北營銷處 | N93: A | P93: =COUNTIF([4]BALANCE!$A$1:$A$65536,[4]notouch!$A93) ->  | Q93: =COUNTIF([4]BALANCE!$A$1:$A$65536,[4]notouch!$H93) ->  | R93: =VLOOKUP(A93,[5]LIST!$D$1:$G$9762,4,0) -> Inactive
A94: TW002376001B | B94: 新弘貿易有限公司 | C94: 19590115 | D94: 23004274 | E94: 台北營銷處 | F94: TPH | G94: 台北 | H94: DEALER_TT | I94: SPD_TT | J94: TW002376001B | K94: =VLOOKUP(A94,'[3]工作表4 (2)'!$A$2:$D$539,4,0) -> 148061 | L94: 台北營銷處 | N94: A | P94: =COUNTIF([4]BALANCE!$A$1:$A$65536,[4]notouch!$A94) ->  | Q94: =COUNTIF([4]BALANCE!$A$1:$A$65536,[4]notouch!$H94) ->  | R94: =VLOOKUP(A94,[5]LIST!$D$1:$G$9762,4,0) -> 專售
A95: TW002378001B | B95: 上順電器有限公司 | C95: 19550916 | D95: 23815317 | E95: 台北營銷處 | F95: TPH | G95: 台北 | H95: DEALER_TT | I95: DCS_TT | J95: TW002378001B | K95: =VLOOKUP(A95,'[3]工作表4 (2)'!$A$2:$D$539,4,0) -> 0 | L95: 台北營銷處 | N95: A | P95: =COUNTIF([4]BALANCE!$A$1:$A$65536,[4]notouch!$A95) ->  | Q95: =COUNTIF([4]BALANCE!$A$1:$A$65536,[4]notouch!$H95) ->  | R95: =VLOOKUP(A95,[5]LIST!$D$1:$G$9762,4,0) -> DC
A96: TW002381001B | B96: 萬豐視聽電業有限公司 | C96: 19620320 | D96: 22592990 | E96: 台北營銷處 | F96: TPH | G96: 台北 | H96: DEALER_TT | I96: DCS_TT | J96: TW002381001B | K96: =VLOOKUP(A96,'[3]工作表4 (2)'!$A$2:$D$539,4,0) -> 78211 | L96: 台北營銷處 | N96: A | P96: =COUNTIF([4]BALANCE!$A$1:$A$65536,[4]notouch!$A96) ->  | Q96: =COUNTIF([4]BALANCE!$A$1:$A$65536,[4]notouch!$H96) ->  | R96: =VLOOKUP(A96,[5]LIST!$D$1:$G$9762,4,0) -> DC
A97: TW002382001B | B97: 訊立電器有限公司 | C97: 19560601 | D97: 12710694 | E97: 台北營銷處 | F97: TPH | G97: 台北 | H97: DEALER_TT | I97: DLC_TT | J97: TW002382001B | L97: 台北營銷處 | N97: A | P97: =COUNTIF([4]BALANCE!$A$1:$A$65536,[4]notouch!$A97) ->  | Q97: =COUNTIF([4]BALANCE!$A$1:$A$65536,[4]notouch!$H97) ->  | R97: =VLOOKUP(A97,[5]LIST!$D$1:$G$9762,4,0) -> Inactive
A98: TW002387001B | B98: 鎮吉實業 | C98: 19651125 | D98: 70662642 | E98: 台北營銷處 | F98: TPH | G98: 台北 | H98: DEALER_TT | I98: DCS_TT | K98: =VLOOKUP(A98,'[3]工作表4 (2)'!$A$2:$D$539,4,0) -> 117402 | N98: A | O98: =IF(N98="I","無往來",IF(SUM(P98:Q98)>0,"OK","沒有promotion")) ->  | P98: =COUNTIF([4]BALANCE!$A$1:$A$65536,[4]notouch!$A98) ->  | Q98: =COUNTIF([4]BALANCE!$A$1:$A$65536,[4]notouch!$H98) ->  | R98: =VLOOKUP(A98,[5]LIST!$D$1:$G$9762,4,0) -> DC
A99: TW002391001B | B99: 益大家電事業有限公司 | C99: 24239141 | D99: 22573614 | E99: 台北營銷處 | F99: TPH | G99: 台北 | H99: DEALER_TT | I99: DLC_TT | J99: TW002391001B | K99: =VLOOKUP(A99,'[3]工作表4 (2)'!$A$2:$D$539,4,0) -> 43468 | L99: 台北營銷處 | N99: A | P99: =COUNTIF([4]BALANCE!$A$1:$A$65536,[4]notouch!$A99) ->  | Q99: =COUNTIF([4]BALANCE!$A$1:$A$65536,[4]notouch!$H99) ->  | R99: =VLOOKUP(A99,[5]LIST!$D$1:$G$9762,4,0) -> 一般
A100: TW002398001B | B100: 彥昌電器行 | C100: 26416154 | D100: 02300192 | E100: 台北營銷處 | F100: TPH | G100: 台北 | H100: DEALER_TT | I100: DLC_TT | J100: TW002398001B | L100: 台北營銷處 | N100: A | P100: =COUNTIF([4]BALANCE!$A$1:$A$65536,[4]notouch!$A100) ->  | Q100: =COUNTIF([4]BALANCE!$A$1:$A$65536,[4]notouch!$H100) ->  | R100: =VLOOKUP(A100,[5]LIST!$D$1:$G$9762,4,0) -> Inactive
A101: TW002400001B | B101: 金亞實業有限公司 | C101: 26473088 | D101: 89230504 | E101: 台北營銷處 | F101: TPH | G101: 台北 | H101: DEALER_TT | I101: SPD_TT | J101: TW002400001B | K101: =VLOOKUP(A101,'[3]工作表4 (2)'!$A$2:$D$539,4,0) -> 4045114 | L101: 台北營銷處 | N101: A | P101: =COUNTIF([4]BALANCE!$A$1:$A$65536,[4]notouch!$A101) ->  | Q101: =COUNTIF([4]BALANCE!$A$1:$A$65536,[4]notouch!$H101) ->  | R101: =VLOOKUP(A101,[5]LIST!$D$1:$G$9762,4,0) -> 專售
A102: TW002409001B | B102: 太空電器行 | C102: 19551106 | D102: 77300011 | E102: 高屏營銷處 | F102: GWB | G102: 高屏 | H102: DEALER_TT | I102: DLC_TT | J102: TW002409001B | L102: 高屏營銷處 | N102: A | P102: =COUNTIF([4]BALANCE!$A$1:$A$65536,[4]notouch!$A102) ->  | Q102: =COUNTIF([4]BALANCE!$A$1:$A$65536,[4]notouch!$H102) ->  | R102: =VLOOKUP(A102,[5]LIST!$D$1:$G$9762,4,0) -> Inactive
A103: TW002409002B | B103: 太空電器行 | C103: XXXXXXXX | D103: XXXXXXXX | E103: SAC | F103: ID&SAC | G103: SAC Sales | H103: B2B_TT | I103: CAC_TT | N103: I | O103: 無往來 | P103: =COUNTIF([4]BALANCE!$A$1:$A$65536,[4]notouch!$A103) ->  | Q103: =COUNTIF([4]BALANCE!$A$1:$A$65536,[4]notouch!$H103) ->  | R103: =VLOOKUP(A103,[5]LIST!$D$1:$G$9762,4,0) -> B2B
A104: TW002410001B | B104: 全新電器有限公司 | C104: 19510722 | D104: 20760963 | E104: 台北營銷處 | F104: TPH | G104: 台北 | H104: DEALER_TT | I104: DLC_TT | N104: A | P104: =COUNTIF([4]BALANCE!$A$1:$A$65536,[4]notouch!$A104) ->  | Q104: =COUNTIF([4]BALANCE!$A$1:$A$65536,[4]notouch!$H104) ->  | R104: =VLOOKUP(A104,[5]LIST!$D$1:$G$9762,4,0) -> Inactive
A105: TW002411001B | B105: 金門電器行 | C105: 19530605 | D105: 77265149 | E105: 高屏營銷處 | F105: GWB | G105: 高屏 | H105: DEALER_TT | I105: DLC_TT | J105: TW002411001B | K105: =VLOOKUP(A105,'[3]工作表4 (2)'!$A$2:$D$539,4,0) -> 410538 | L105: 高屏營銷處 | N105: A | P105: =COUNTIF([4]BALANCE!$A$1:$A$65536,[4]notouch!$A105) ->  | Q105: =COUNTIF([4]BALANCE!$A$1:$A$65536,[4]notouch!$H105) ->  | R105: =VLOOKUP(A105,[5]LIST!$D$1:$G$9762,4,0) -> 一般
A106: TW002416001B | B106: 國寶電業行 | C106: 19680525 | D106: 12180750 | E106: 台北營銷處 | F106: TPH | G106: 台北 | H106: DEALER_TT | I106: DLC_TT | J106: TW002416001B | L106: 台北營銷處 | N106: A | P106: =COUNTIF([4]BALANCE!$A$1:$A$65536,[4]notouch!$A106) ->  | Q106: =COUNTIF([4]BALANCE!$A$1:$A$65536,[4]notouch!$H106) ->  | R106: =VLOOKUP(A106,[5]LIST!$D$1:$G$9762,4,0) -> Inactive
A107: TW002420001B | B107: 高登電器有限公司 | C107: 19551029 | D107: 22629645 | E107: 台北營銷處 | F107: TPH | G107: 台北 | H107: DEALER_TT | I107: DLC_TT | J107: TW002420001B | K107: =VLOOKUP(A107,'[3]工作表4 (2)'!$A$2:$D$539,4,0) -> 133154 | L107: 台北營銷處 | N107: A | P107: =COUNTIF([4]BALANCE!$A$1:$A$65536,[4]notouch!$A107) ->  | Q107: =COUNTIF([4]BALANCE!$A$1:$A$65536,[4]notouch!$H107) ->  | R107: =VLOOKUP(A107,[5]LIST!$D$1:$G$9762,4,0) -> 一般
A108: TW002427001B | B108: 國豐電業商行 | C108: 19551014 | D108: 94836355 | E108: 台北營銷處 | F108: TPH | G108: 台北 | H108: DEALER_TT | I108: DLC_TT | J108: TW002427001B | L108: 台北營銷處 | N108: A | P108: =COUNTIF([4]BALANCE!$A$1:$A$65536,[4]notouch!$A108) ->  | Q108: =COUNTIF([4]BALANCE!$A$1:$A$65536,[4]notouch!$H108) ->  | R108: =VLOOKUP(A108,[5]LIST!$D$1:$G$9762,4,0) -> Inactive
A109: TW002428001B | B109: 精實電器行 | C109: 19740715 | D109: 64803602 | E109: 台北營銷處 | F109: TPH | G109: 台北 | H109: DEALER_TT | I109: DLC_TT | J109: TW002428001B | K109: =VLOOKUP(A109,'[3]工作表4 (2)'!$A$2:$D$539,4,0) -> 0 | L109: 台北營銷處 | N109: A | P109: =COUNTIF([4]BALANCE!$A$1:$A$65536,[4]notouch!$A109) ->  | Q109: =COUNTIF([4]BALANCE!$A$1:$A$65536,[4]notouch!$H109) ->  | R109: =VLOOKUP(A109,[5]LIST!$D$1:$G$9762,4,0) -> 一般
A110: TW002431001B | B110: 一世代電氣行 | C110: 19620315 | D110: 18063076 | E110: 台北營銷處 | F110: TPH | G110: 台北 | H110: DEALER_TT | I110: DCS_TT | J110: TW002431001B | K110: =VLOOKUP(A110,'[3]工作表4 (2)'!$A$2:$D$539,4,0) -> 45208 | L110: 台北營銷處 | N110: A | P110: =COUNTIF([4]BALANCE!$A$1:$A$65536,[4]notouch!$A110) ->  | Q110: =COUNTIF([4]BALANCE!$A$1:$A$65536,[4]notouch!$H110) ->  | R110: =VLOOKUP(A110,[5]LIST!$D$1:$G$9762,4,0) -> DC
A111: TW002434001B | B111: 上將電業社 | C111: 19550423 | D111: 92933057 | E111: 台北營銷處 | F111: TPH | G111: 台北 | H111: DEALER_TT | I111: DLC_TT | J111: TW002434001B | K111: =VLOOKUP(A111,'[3]工作表4 (2)'!$A$2:$D$539,4,0) -> 26553 | L111: 台北營銷處 | N111: A | P111: =COUNTIF([4]BALANCE!$A$1:$A$65536,[4]notouch!$A111) ->  | Q111: =COUNTIF([4]BALANCE!$A$1:$A$65536,[4]notouch!$H111) ->  | R111: =VLOOKUP(A111,[5]LIST!$D$1:$G$9762,4,0) -> 一般
A112: TW002441001B | B112: 上揚電器行 | C112: 19660523 | D112: 02418034 | E112: 台北營銷處 | F112: TPH | G112: 台北 | H112: DEALER_TT | I112: DLC_TT | J112: TW002441001B | K112: =VLOOKUP(A112,'[3]工作表4 (2)'!$A$2:$D$539,4,0) -> 0 | L112: 台北營銷處 | N112: A | P112: =COUNTIF([4]BALANCE!$A$1:$A$65536,[4]notouch!$A112) ->  | Q112: =COUNTIF([4]BALANCE!$A$1:$A$65536,[4]notouch!$H112) ->  | R112: =VLOOKUP(A112,[5]LIST!$D$1:$G$9762,4,0) -> 一般
A113: TW002444001B | B113: 台灣電器專賣店 | C113: 19700805 | D113: 98077164 | E113: 台北營銷處 | F113: TPH | G113: 台北 | H113: DEALER_TT | I113: DCS_TT | J113: TW002444001B | K113: =VLOOKUP(A113,'[3]工作表4 (2)'!$A$2:$D$539,4,0) -> 626504 | L113: 台北營銷處 | N113: A | P113: =COUNTIF([4]BALANCE!$A$1:$A$65536,[4]notouch!$A113) ->  | Q113: =COUNTIF([4]BALANCE!$A$1:$A$65536,[4]notouch!$H113) ->  | R113: =VLOOKUP(A113,[5]LIST!$D$1:$G$9762,4,0) -> DC
A114: TW002448001B | B114: 宜勇電器 | C114: 19631117 | D114: 66256925 | E114: 台北營銷處 | F114: TPH | G114: 台北 | H114: DEALER_TT | I114: DLC_TT | N114: I | O114: 無往來 | P114: =COUNTIF([4]BALANCE!$A$1:$A$65536,[4]notouch!$A114) ->  | Q114: =COUNTIF([4]BALANCE!$A$1:$A$65536,[4]notouch!$H114) ->  | R114: =VLOOKUP(A114,[5]LIST!$D$1:$G$9762,4,0) -> Inactive
A115: TW002450001B | B115: 日大電業行 | C115: 19770914 | D115: 40523763 | E115: 台北營銷處 | F115: TPH | G115: 台北 | H115: DEALER_TT | I115: DLC_TT | J115: TW002450001B | K115: =VLOOKUP(A115,'[3]工作表4 (2)'!$A$2:$D$539,4,0) -> 22109 | L115: 台北營銷處 | N115: A | P115: =COUNTIF([4]BALANCE!$A$1:$A$65536,[4]notouch!$A115) ->  | Q115: =COUNTIF([4]BALANCE!$A$1:$A$65536,[4]notouch!$H115) ->  | R115: =VLOOKUP(A115,[5]LIST!$D$1:$G$9762,4,0) -> 一般
A116: TW002456001B | B116: 燦坤實業股份有限公司 | C116: 69568009 | D116: 69568009 | E116: MMCS-燦坤 | F116: MMCS | G116: MMCS | H116: MMCS_TK3C | I116: CSC_TT | J116: TW002456001B | K116: =VLOOKUP(A116,'[3]工作表4 (2)'!$A$2:$D$539,4,0) -> 261628765 | L116: 燦坤 | N116: A | P116: =COUNTIF([4]BALANCE!$A$1:$A$65536,[4]notouch!$A116) ->  | Q116: =COUNTIF([4]BALANCE!$A$1:$A$65536,[4]notouch!$H116) ->  | R116: =VLOOKUP(A116,[5]LIST!$D$1:$G$9762,4,0) -> Serivce
A117: TW002501001B | B117: 家福股份有限公司總公司 | C117: 22662550 | D117: 22662550 | E117: MMCS-家福 | F117: MMCS | G117: MMCS | H117: MMCS_C4 | I117: MMC_TT | J117: TW002501001B | K117: =VLOOKUP(A117,'[3]工作表4 (2)'!$A$2:$D$539,4,0) -> 234453525 | L117: 家樂福 | N117: A | P117: =COUNTIF([4]BALANCE!$A$1:$A$65536,[4]notouch!$A117) ->  | Q117: =COUNTIF([4]BALANCE!$A$1:$A$65536,[4]notouch!$H117) ->  | R117: =VLOOKUP(A117,[5]LIST!$D$1:$G$9762,4,0) -> MM
A118: TW002514001B | B118: 今漢電器有限公司 | C118: 19591213 | D118: 22117460 | E118: 台北營銷處 | F118: TPH | G118: 台北 | H118: DEALER_TT | I118: SPD_TT | J118: TW002514001B | K118: =VLOOKUP(A118,'[3]工作表4 (2)'!$A$2:$D$539,4,0) -> 321957 | L118: 台北營銷處 | N118: A | P118: =COUNTIF([4]BALANCE!$A$1:$A$65536,[4]notouch!$A118) ->  | Q118: =COUNTIF([4]BALANCE!$A$1:$A$65536,[4]notouch!$H118) ->  | R118: =VLOOKUP(A118,[5]LIST!$D$1:$G$9762,4,0) -> 專售
A119: TW002516001B | B119: 順寶電器 | C119: 19520904 | D119: 34159393 | E119: 台北營銷處 | F119: TPH | G119: 台北 | H119: DEALER_TT | I119: DLC_TT | N119: I | O119: 無往來 | P119: =COUNTIF([4]BALANCE!$A$1:$A$65536,[4]notouch!$A119) ->  | Q119: =COUNTIF([4]BALANCE!$A$1:$A$65536,[4]notouch!$H119) ->  | R119: =VLOOKUP(A119,[5]LIST!$D$1:$G$9762,4,0) -> Inactive
A120: TW002525001B | B120: 大潤發流通事業股份有限公司 | C120: 97165560 | D120: 97165560 | E120: MMCS-大潤發 | F120: MMCS | G120: MMCS | H120: MMCS_RT | I120: MMC_TT | J120: TW002525001B | K120: =VLOOKUP(A120,'[3]工作表4 (2)'!$A$2:$D$539,4,0) -> 112432915 | L120: 大潤發 | N120: A | P120: =COUNTIF([4]BALANCE!$A$1:$A$65536,[4]notouch!$A120) ->  | Q120: =COUNTIF([4]BALANCE!$A$1:$A$65536,[4]notouch!$H120) ->  | R120: =VLOOKUP(A120,[5]LIST!$D$1:$G$9762,4,0) -> MM
A121: TW002529001B | B121: 遠百企業股份有限公司 | C121: 05714195 | D121: 05714195 | E121: MMCS-愛買 | F121: MMCS | G121: MMCS | H121: MMCS_OTHERS | I121: MMC_TT | J121: TW002529001B | K121: =VLOOKUP(A121,'[3]工作表4 (2)'!$A$2:$D$539,4,0) -> 20285759 | L121: 愛買 | N121: A | P121: =COUNTIF([4]BALANCE!$A$1:$A$65536,[4]notouch!$A121) ->  | Q121: =COUNTIF([4]BALANCE!$A$1:$A$65536,[4]notouch!$H121) ->  | R121: =VLOOKUP(A121,[5]LIST!$D$1:$G$9762,4,0) -> MM
A122: TW002535001B | B122: 瑞豪電器行 | C122: 19711205 | D122: 67899377 | E122: 台北營銷處 | F122: TPH | G122: 台北 | H122: DEALER_TT | I122: DLC_TT | J122: TW002535001B | K122: =VLOOKUP(A122,'[3]工作表4 (2)'!$A$2:$D$539,4,0) -> 0 | L122: 台北營銷處 | N122: A | P122: =COUNTIF([4]BALANCE!$A$1:$A$65536,[4]notouch!$A122) ->  | Q122: =COUNTIF([4]BALANCE!$A$1:$A$65536,[4]notouch!$H122) ->  | R122: =VLOOKUP(A122,[5]LIST!$D$1:$G$9762,4,0) -> 一般
A123: TW002542001B | B123: 佳麗寶股份有限公司 | C123: 19470128 | D123: 04897247 | E123: 台北營銷處 | F123: TPH | G123: 台北 | H123: DEALER_TT | I123: DCS_TT | N123: I | O123: 無往來 | P123: =COUNTIF([4]BALANCE!$A$1:$A$65536,[4]notouch!$A123) ->  | Q123: =COUNTIF([4]BALANCE!$A$1:$A$65536,[4]notouch!$H123) ->  | R123: =VLOOKUP(A123,[5]LIST!$D$1:$G$9762,4,0) -> Inactive
A124: TW002557001B | B124: 全民電子音響專賣店 | C124: TW002557 | D124: 77593945 | E124: 台中營銷處 | F124: DJB | G124: 台中 | H124: DEALER_TT | I124: SPD_TT | J124: TW002557001B | K124: =VLOOKUP(A124,'[3]工作表4 (2)'!$A$2:$D$539,4,0) -> 245226 | L124: 台中營銷處 | N124: A | P124: =COUNTIF([4]BALANCE!$A$1:$A$65536,[4]notouch!$A124) ->  | Q124: =COUNTIF([4]BALANCE!$A$1:$A$65536,[4]notouch!$H124) ->  | R124: =VLOOKUP(A124,[5]LIST!$D$1:$G$9762,4,0) -> 專售
A125: TW002572001B | B125: 新傑電器有限公司 | C125: 19540819 | D125: 12749635 | E125: 高屏營銷處 | F125: GWB | G125: 高屏 | H125: DEALER_TT | I125: SPD_TT | J125: TW002572001B | K125: =VLOOKUP(A125,'[3]工作表4 (2)'!$A$2:$D$539,4,0) -> 457638 | L125: 高屏營銷處 | N125: A | P125: =COUNTIF([4]BALANCE!$A$1:$A$65536,[4]notouch!$A125) ->  | Q125: =COUNTIF([4]BALANCE!$A$1:$A$65536,[4]notouch!$H125) ->  | R125: =VLOOKUP(A125,[5]LIST!$D$1:$G$9762,4,0) -> 專售
A126: TW002575001B | B126: 東欣電器商行 | C126: 19510527 | D126: 08001827 | E126: 高屏營銷處 | F126: GWB | G126: 高屏 | H126: DEALER_TT | I126: DLC_TT | J126: TW002575001B | K126: =VLOOKUP(A126,'[3]工作表4 (2)'!$A$2:$D$539,4,0) -> 1000 | L126: 高屏營銷處 | N126: A | P126: =COUNTIF([4]BALANCE!$A$1:$A$65536,[4]notouch!$A126) ->  | Q126: =COUNTIF([4]BALANCE!$A$1:$A$65536,[4]notouch!$H126) ->  | R126: =VLOOKUP(A126,[5]LIST!$D$1:$G$9762,4,0) -> 一般
A127: TW002630001B | B127: 錦穗實業社 | C127: 19571107 | D127: 73713103 | E127: 嘉南營銷處 | F127: DNB | G127: 嘉南 | H127: DEALER_TT | I127: DLC_TT | J127: TW002630001B | K127: =VLOOKUP(A127,'[3]工作表4 (2)'!$A$2:$D$539,4,0) -> 26567 | L127: 嘉南營銷處 | N127: A | P127: =COUNTIF([4]BALANCE!$A$1:$A$65536,[4]notouch!$A127) ->  | Q127: =COUNTIF([4]BALANCE!$A$1:$A$65536,[4]notouch!$H127) ->  | R127: =VLOOKUP(A127,[5]LIST!$D$1:$G$9762,4,0) -> 一般
A128: TW002652001B | B128: 第二電器音響有限公司 | C128: 19600410 | D128: 33837276 | E128: 台北營銷處 | F128: TPH | G128: 台北 | H128: DEALER_TT | I128: DCS_TT | J128: TW002652001B | K128: =VLOOKUP(A128,'[3]工作表4 (2)'!$A$2:$D$539,4,0) -> 692453 | L128: 台北營銷處 | N128: A | P128: =COUNTIF([4]BALANCE!$A$1:$A$65536,[4]notouch!$A128) ->  | Q128: =COUNTIF([4]BALANCE!$A$1:$A$65536,[4]notouch!$H128) ->  | R128: =VLOOKUP(A128,[5]LIST!$D$1:$G$9762,4,0) -> DC
A129: TW002666001B | B129: 世和電器行 | C129: 19661031 | D129: 87705862 | E129: 桃竹營銷處 | F129: DWB | G129: 桃竹 | H129: DEALER_TT | I129: DLC_TT | N129: A | P129: =COUNTIF([4]BALANCE!$A$1:$A$65536,[4]notouch!$A129) ->  | Q129: =COUNTIF([4]BALANCE!$A$1:$A$65536,[4]notouch!$H129) ->  | R129: =VLOOKUP(A129,[5]LIST!$D$1:$G$9762,4,0) -> 一般
A130: TW002666002B | B130: 世和電器行 | C130: 19661031 | D130: 87705862 | E130: ETC | F130: ETC | G130: ETC | H130: ETC | I130: ETC_TT | J130: TW002666002B | K130: =VLOOKUP(A130,'[3]工作表4 (2)'!$A$2:$D$539,4,0) -> 1489768 | L130: ETC | N130: A | P130: =COUNTIF([4]BALANCE!$A$1:$A$65536,[4]notouch!$A130) ->  | Q130: =COUNTIF([4]BALANCE!$A$1:$A$65536,[4]notouch!$H130) ->  | R130: =VLOOKUP(A130,[5]LIST!$D$1:$G$9762,4,0) -> ETC
A131: TW002674001B | B131: 明聳企業有限公司 | C131: XXXXXXXX | D131: XXXXXXXX | E131: SAC | F131: ID&SAC | G131: SAC Sales | H131: B2B_TT | I131: CAC_TT | N131: I | O131: 無往來 | P131: =COUNTIF([4]BALANCE!$A$1:$A$65536,[4]notouch!$A131) ->  | Q131: =COUNTIF([4]BALANCE!$A$1:$A$65536,[4]notouch!$H131) ->  | R131: =VLOOKUP(A131,[5]LIST!$D$1:$G$9762,4,0) -> B2B
A132: TW002675001B | B132: 利聲家電有限公司 | C132: 19470925 | D132: 86101317 | E132: 嘉南營銷處 | F132: DNB | G132: 嘉南 | H132: DEALER_TT | I132: DLC_TT | J132: TW002675001B | K132: =VLOOKUP(A132,'[3]工作表4 (2)'!$A$2:$D$539,4,0) -> 69880 | L132: 嘉南營銷處 | N132: A | P132: =COUNTIF([4]BALANCE!$A$1:$A$65536,[4]notouch!$A132) ->  | Q132: =COUNTIF([4]BALANCE!$A$1:$A$65536,[4]notouch!$H132) ->  | R132: =VLOOKUP(A132,[5]LIST!$D$1:$G$9762,4,0) -> 一般
A133: TW002677001B | B133: 銘山電器 | C133: 23393762 | D133: 23328168 | E133: 台中營銷處 | F133: DJB | G133: 台中 | H133: DEALER_TT | I133: DLC_TT | N133: I | O133: 無往來 | P133: =COUNTIF([4]BALANCE!$A$1:$A$65536,[4]notouch!$A133) ->  | Q133: =COUNTIF([4]BALANCE!$A$1:$A$65536,[4]notouch!$H133) ->  | R133: =VLOOKUP(A133,[5]LIST!$D$1:$G$9762,4,0) -> Inactive
A134: TW002678001B | B134: 昇泰電業行 | C134: TW002678 | D134: 05830687 | E134: 台中營銷處 | F134: DJB | G134: 台中 | H134: DEALER_TT | I134: DLC_TT | N134: I | O134: 無往來 | P134: =COUNTIF([4]BALANCE!$A$1:$A$65536,[4]notouch!$A134) ->  | Q134: =COUNTIF([4]BALANCE!$A$1:$A$65536,[4]notouch!$H134) ->  | R134: =VLOOKUP(A134,[5]LIST!$D$1:$G$9762,4,0) -> Inactive
A135: TW002685001B | B135: 威揚電器行 | C135: 19690225 | D135: 17276277 | E135: 台北營銷處 | F135: TPH | G135: 台北 | H135: DEALER_TT | I135: SPD_TT | J135: TW002685001B | K135: =VLOOKUP(A135,'[3]工作表4 (2)'!$A$2:$D$539,4,0) -> 143502 | L135: 台北營銷處 | N135: A | P135: =COUNTIF([4]BALANCE!$A$1:$A$65536,[4]notouch!$A135) ->  | Q135: =COUNTIF([4]BALANCE!$A$1:$A$65536,[4]notouch!$H135) ->  | R135: =VLOOKUP(A135,[5]LIST!$D$1:$G$9762,4,0) -> 專售
A136: TW002710001B | B136: 建利電子音響 | C136: 19580810 | D136: 18324380 | E136: 台中營銷處 | F136: DJB | G136: 台中 | H136: DEALER_TT | I136: DLC_TT | N136: A | P136: =COUNTIF([4]BALANCE!$A$1:$A$65536,[4]notouch!$A136) ->  | Q136: =COUNTIF([4]BALANCE!$A$1:$A$65536,[4]notouch!$H136) ->  | R136: =VLOOKUP(A136,[5]LIST!$D$1:$G$9762,4,0) -> 一般
A137: TW002718001B | B137: 全國電子股份有限公司 | C137: 22006252 | D137: 22006252 | E137: MMCS-全國 | F137: MMCS | G137: MMCS | H137: MMCS_E-LIFE | I137: CSC_TT | J137: TW002718001B | K137: =VLOOKUP(A137,'[3]工作表4 (2)'!$A$2:$D$539,4,0) -> 314748669 | L137: 全國 | N137: A | P137: =COUNTIF([4]BALANCE!$A$1:$A$65536,[4]notouch!$A137) ->  | Q137: =COUNTIF([4]BALANCE!$A$1:$A$65536,[4]notouch!$H137) ->  | R137: =VLOOKUP(A137,[5]LIST!$D$1:$G$9762,4,0) -> Serivce
A138: TW002720001B | B138: 天聲電器商行 | C138: 19540401 | D138: 98249862 | E138: 桃竹營銷處 | F138: DWB | G138: 桃竹 | H138: DEALER_TT | I138: DLC_TT | J138: TW002720001B | K138: =VLOOKUP(A138,'[3]工作表4 (2)'!$A$2:$D$539,4,0) -> 44217 | L138: 桃竹營銷處 | N138: A | P138: =COUNTIF([4]BALANCE!$A$1:$A$65536,[4]notouch!$A138) ->  | Q138: =COUNTIF([4]BALANCE!$A$1:$A$65536,[4]notouch!$H138) ->  | R138: =VLOOKUP(A138,[5]LIST!$D$1:$G$9762,4,0) -> 一般
A139: TW002721001B | B139: 統偉視聽工程有限公司 | C139: 19591014 | D139: 22669408 | E139: 桃竹營銷處 | F139: DWB | G139: 桃竹 | H139: DEALER_TT | I139: DCS_TT | J139: TW002721001B | K139: =VLOOKUP(A139,'[3]工作表4 (2)'!$A$2:$D$539,4,0) -> 203341 | L139: 桃竹營銷處 | N139: A | P139: =COUNTIF([4]BALANCE!$A$1:$A$65536,[4]notouch!$A139) ->  | Q139: =COUNTIF([4]BALANCE!$A$1:$A$65536,[4]notouch!$H139) ->  | R139: =VLOOKUP(A139,[5]LIST!$D$1:$G$9762,4,0) -> DC
A140: TW002725001B | B140: 侑興電器有限公司 | C140: TW002725 | D140: 22682057 | E140: 台中營銷處 | F140: DJB | G140: 台中 | H140: DEALER_TT | I140: DLC_TT | J140: TW002725001B | L140: 台中營銷處 | N140: A | P140: =COUNTIF([4]BALANCE!$A$1:$A$65536,[4]notouch!$A140) ->  | Q140: =COUNTIF([4]BALANCE!$A$1:$A$65536,[4]notouch!$H140) ->  | R140: =VLOOKUP(A140,[5]LIST!$D$1:$G$9762,4,0) -> 一般
A141: TW002725002B | B141: 侑興電器有限公司 | C141: XXXXXXXX | D141: XXXXXXXX | E141: SAC | F141: ID&SAC | G141: SAC Sales | H141: B2B_TT | I141: CAC_TT | J141: TW002725002B | N141: I | O141: 無往來 | P141: =COUNTIF([4]BALANCE!$A$1:$A$65536,[4]notouch!$A141) ->  | Q141: =COUNTIF([4]BALANCE!$A$1:$A$65536,[4]notouch!$H141) ->  | R141: =VLOOKUP(A141,[5]LIST!$D$1:$G$9762,4,0) -> Inactive
A142: TW002745001B | B142: 全英電器有限公司 | C142: 19530909 | D142: 30976506 | E142: 台北營銷處 | F142: TPH | G142: 台北 | H142: DEALER_TT | I142: DLC_TT | J142: TW002745001B | L142: 台北營銷處 | N142: A | O142: =IF(N142="I","無往來",IF(SUM(P142:Q142)>0,"OK","沒有promotion")) ->  | P142: =COUNTIF([4]BALANCE!$A$1:$A$65536,[4]notouch!$A142) ->  | Q142: =COUNTIF([4]BALANCE!$A$1:$A$65536,[4]notouch!$H142) ->  | R142: =VLOOKUP(A142,[5]LIST!$D$1:$G$9762,4,0) -> Inactive
A143: TW002748001B | B143: 創作電子音響專賣店 | C143: TW002748 | D143: 81964433 | E143: 台中營銷處 | F143: DJB | G143: 台中 | H143: DEALER_TT | I143: DCS_TT | J143: TW002748001B | K143: =VLOOKUP(A143,'[3]工作表4 (2)'!$A$2:$D$539,4,0) -> 90370 | L143: 台中營銷處 | N143: A | P143: =COUNTIF([4]BALANCE!$A$1:$A$65536,[4]notouch!$A143) ->  | Q143: =COUNTIF([4]BALANCE!$A$1:$A$65536,[4]notouch!$H143) ->  | R143: =VLOOKUP(A143,[5]LIST!$D$1:$G$9762,4,0) -> DC
A144: TW002750001B | B144: 集雅社股份有限公司 | C144: 89266170 | D144: 89266170 | E144: HPC | F144: DEPT | G144: 百貨 | H144: DEALER_DEPT | I144: DEALER_DEPT | J144: TW002750001B | K144: =VLOOKUP(A144,'[3]工作表4 (2)'!$A$2:$D$539,4,0) -> 97251913 | L144: 百貨 | N144: A | P144: =COUNTIF([4]BALANCE!$A$1:$A$65536,[4]notouch!$A144) ->  | Q144: =COUNTIF([4]BALANCE!$A$1:$A$65536,[4]notouch!$H144) ->  | R144: =VLOOKUP(A144,[5]LIST!$D$1:$G$9762,4,0) -> 百貨
A145: TW002755001B | B145: 聯鈦冷凍空調電器行 | C145: 19660924 | D145: 14156334 | E145: 嘉南營銷處 | F145: DNB | G145: 嘉南 | H145: DEALER_TT | I145: DCS_TT | J145: TW002755001B | K145: =VLOOKUP(A145,'[3]工作表4 (2)'!$A$2:$D$539,4,0) -> 67450 | L145: 嘉南營銷處 | N145: A | P145: =COUNTIF([4]BALANCE!$A$1:$A$65536,[4]notouch!$A145) ->  | Q145: =COUNTIF([4]BALANCE!$A$1:$A$65536,[4]notouch!$H145) ->  | R145: =VLOOKUP(A145,[5]LIST!$D$1:$G$9762,4,0) -> DC
A146: TW002757001B | B146: 慧聲電器行 | C146: 19601115 | D146: 78215533 | E146: 台北營銷處 | F146: TPH | G146: 台北 | H146: DEALER_TT | I146: DLC_TT | J146: TW002757001B | L146: 台北營銷處 | N146: A | P146: =COUNTIF([4]BALANCE!$A$1:$A$65536,[4]notouch!$A146) ->  | Q146: =COUNTIF([4]BALANCE!$A$1:$A$65536,[4]notouch!$H146) ->  | R146: =VLOOKUP(A146,[5]LIST!$D$1:$G$9762,4,0) -> 
A147: TW002758001B | B147: 秀翔實業有限公司 | C147: 89429694 | D147: 89429694 | E147: HPC | F147: DEPT | G147: 百貨 | H147: DEALER_DEPT | I147: DEALER_DEPT | J147: TW002758001B | K147: =VLOOKUP(A147,'[3]工作表4 (2)'!$A$2:$D$539,4,0) -> 14071025 | L147: 百貨 | N147: A | P147: =COUNTIF([4]BALANCE!$A$1:$A$65536,[4]notouch!$A147) ->  | Q147: =COUNTIF([4]BALANCE!$A$1:$A$65536,[4]notouch!$H147) ->  | R147: =VLOOKUP(A147,[5]LIST!$D$1:$G$9762,4,0) -> 百貨
A148: TW002761001B | B148: 憶豐電器有限公司 | C148: 19670109 | D148: 47109086 | E148: 桃竹營銷處 | F148: DWB | G148: 桃竹 | H148: DEALER_TT | I148: DLC_TT | J148: TW002761001B | K148: =VLOOKUP(A148,'[3]工作表4 (2)'!$A$2:$D$539,4,0) -> 24952 | L148: 桃竹營銷處 | N148: A | P148: =COUNTIF([4]BALANCE!$A$1:$A$65536,[4]notouch!$A148) ->  | Q148: =COUNTIF([4]BALANCE!$A$1:$A$65536,[4]notouch!$H148) ->  | R148: =VLOOKUP(A148,[5]LIST!$D$1:$G$9762,4,0) -> 一般
A149: TW002762001B | B149: 員毅電器有限公司 | C149: TW002762 | D149: 16929102 | E149: 台中營銷處 | F149: DJB | G149: 台中 | H149: DEALER_TT | I149: DLC_TT | J149: TW002762001B | K149: =VLOOKUP(A149,'[3]工作表4 (2)'!$A$2:$D$539,4,0) -> 0 | L149: 台中營銷處 | N149: A | P149: =COUNTIF([4]BALANCE!$A$1:$A$65536,[4]notouch!$A149) ->  | Q149: =COUNTIF([4]BALANCE!$A$1:$A$65536,[4]notouch!$H149) ->  | R149: =VLOOKUP(A149,[5]LIST!$D$1:$G$9762,4,0) -> 一般
A150: TW002764001B | B150: 弘象電器有限公司 | C150: 19670507 | D150: 97316526 | E150: 台北營銷處 | F150: TPH | G150: 台北 | H150: DEALER_TT | I150: DLC_TT | J150: TW002764001B | K150: =VLOOKUP(A150,'[3]工作表4 (2)'!$A$2:$D$539,4,0) -> 18492 | L150: 台北營銷處 | N150: A | P150: =COUNTIF([4]BALANCE!$A$1:$A$65536,[4]notouch!$A150) ->  | Q150: =COUNTIF([4]BALANCE!$A$1:$A$65536,[4]notouch!$H150) ->  | R150: =VLOOKUP(A150,[5]LIST!$D$1:$G$9762,4,0) -> 一般
A151: TW002769001B | B151: 東農電器行 | C151: 19611101 | D151: 78766509 | E151: 高屏營銷處 | F151: GWB | G151: 高屏 | H151: DEALER_TT | I151: SPD_TT | J151: TW002769001B | K151: =VLOOKUP(A151,'[3]工作表4 (2)'!$A$2:$D$539,4,0) -> 691631 | L151: 高屏營銷處 | N151: A | P151: =COUNTIF([4]BALANCE!$A$1:$A$65536,[4]notouch!$A151) ->  | Q151: =COUNTIF([4]BALANCE!$A$1:$A$65536,[4]notouch!$H151) ->  | R151: =VLOOKUP(A151,[5]LIST!$D$1:$G$9762,4,0) -> 專售
A152: TW002769002B | B152: 東農電器行 | C152: XXXXXXXX | D152: XXXXXXXX | E152: SAC | F152: ID&SAC | G152: SAC Sales | H152: B2B_TT | I152: CAC_TT | N152: I | O152: 無往來 | P152: =COUNTIF([4]BALANCE!$A$1:$A$65536,[4]notouch!$A152) ->  | Q152: =COUNTIF([4]BALANCE!$A$1:$A$65536,[4]notouch!$H152) ->  | R152: =VLOOKUP(A152,[5]LIST!$D$1:$G$9762,4,0) -> B2B
A153: TW002780001B | B153: 金銓電器行 | C153: TW002780 | D153: 13759385 | E153: 台中營銷處 | F153: DJB | G153: 台中 | H153: DEALER_TT | I153: DLC_TT | J153: TW002780001B | K153: =VLOOKUP(A153,'[3]工作表4 (2)'!$A$2:$D$539,4,0) -> 19397 | L153: 台中營銷處 | N153: A | P153: =COUNTIF([4]BALANCE!$A$1:$A$65536,[4]notouch!$A153) ->  | Q153: =COUNTIF([4]BALANCE!$A$1:$A$65536,[4]notouch!$H153) ->  | R153: =VLOOKUP(A153,[5]LIST!$D$1:$G$9762,4,0) -> 一般
A154: TW002789001B | B154: 宏昇電器行 | C154: 19671229 | D154: 97842555 | E154: 台中營銷處 | F154: DJB | G154: 台中 | H154: DEALER_TT | I154: SPD_TT | J154: TW002789001B | K154: =VLOOKUP(A154,'[3]工作表4 (2)'!$A$2:$D$539,4,0) -> 625807 | L154: 台中營銷處 | N154: A | P154: =COUNTIF([4]BALANCE!$A$1:$A$65536,[4]notouch!$A154) ->  | Q154: =COUNTIF([4]BALANCE!$A$1:$A$65536,[4]notouch!$H154) ->  | R154: =VLOOKUP(A154,[5]LIST!$D$1:$G$9762,4,0) -> 專售
A155: TW002801001B | B155: 銘信視聽電器城 | C155: 19710720 | D155: 92811337 | E155: 台中營銷處 | F155: DJB | G155: 台中 | H155: DEALER_TT | I155: DLC_TT | J155: TW002801001B | L155: 台中營銷處 | N155: A | P155: =COUNTIF([4]BALANCE!$A$1:$A$65536,[4]notouch!$A155) ->  | Q155: =COUNTIF([4]BALANCE!$A$1:$A$65536,[4]notouch!$H155) ->  | R155: =VLOOKUP(A155,[5]LIST!$D$1:$G$9762,4,0) -> 一般
A156: TW002811001B | B156: 棋杰電器行 | C156: 19650706 | D156: 08016878 | E156: 高屏營銷處 | F156: GWB | G156: 高屏 | H156: DEALER_TT | I156: SPD_TT | J156: TW002811001B | K156: =VLOOKUP(A156,'[3]工作表4 (2)'!$A$2:$D$539,4,0) -> 204594 | L156: 高屏營銷處 | N156: A | P156: =COUNTIF([4]BALANCE!$A$1:$A$65536,[4]notouch!$A156) ->  | Q156: =COUNTIF([4]BALANCE!$A$1:$A$65536,[4]notouch!$H156) ->  | R156: =VLOOKUP(A156,[5]LIST!$D$1:$G$9762,4,0) -> 專售
A157: TW002843001B | B157: 吉田電器行 | C157: 19620111 | D157: 17683437 | E157: 桃竹營銷處 | F157: DWB | G157: 桃竹 | H157: DEALER_TT | I157: DLC_TT | J157: TW002843001B | K157: =VLOOKUP(A157,'[3]工作表4 (2)'!$A$2:$D$539,4,0) -> 0 | L157: 桃竹營銷處 | N157: A | P157: =COUNTIF([4]BALANCE!$A$1:$A$65536,[4]notouch!$A157) ->  | Q157: =COUNTIF([4]BALANCE!$A$1:$A$65536,[4]notouch!$H157) ->  | R157: =VLOOKUP(A157,[5]LIST!$D$1:$G$9762,4,0) -> 一般
A158: TW002851001B | B158: 隆慶電器行 | C158: 47374042 | D158: 47374803 | E158: 台中營銷處 | F158: DJB | G158: 台中 | H158: DEALER_TT | I158: SPD_TT | J158: TW002851001B | K158: =VLOOKUP(A158,'[3]工作表4 (2)'!$A$2:$D$539,4,0) -> 1596150 | L158: 台中營銷處 | N158: A | P158: =COUNTIF([4]BALANCE!$A$1:$A$65536,[4]notouch!$A158) ->  | Q158: =COUNTIF([4]BALANCE!$A$1:$A$65536,[4]notouch!$H158) ->  | R158: =VLOOKUP(A158,[5]LIST!$D$1:$G$9762,4,0) -> 專售
A159: TW002856001B | B159: 老雙億實業有限公司 | C159: 19490915 | D159: 35957606 | E159: 台北營銷處 | F159: TPH | G159: 台北 | H159: DEALER_TT | I159: DCS_TT | J159: TW002856001B | K159: =VLOOKUP(A159,'[3]工作表4 (2)'!$A$2:$D$539,4,0) -> 323389 | L159: 台北營銷處 | N159: A | P159: =COUNTIF([4]BALANCE!$A$1:$A$65536,[4]notouch!$A159) ->  | Q159: =COUNTIF([4]BALANCE!$A$1:$A$65536,[4]notouch!$H159) ->  | R159: =VLOOKUP(A159,[5]LIST!$D$1:$G$9762,4,0) -> DC
A160: TW002858001B | B160: 豐昌電器行 | C160: 19630721 | D160: 06565736 | E160: 嘉南營銷處 | F160: DNB | G160: 嘉南 | H160: DEALER_TT | I160: DLC_TT | J160: TW002858001B | K160: =VLOOKUP(A160,'[3]工作表4 (2)'!$A$2:$D$539,4,0) -> 0 | L160: 嘉南營銷處 | N160: A | P160: =COUNTIF([4]BALANCE!$A$1:$A$65536,[4]notouch!$A160) ->  | Q160: =COUNTIF([4]BALANCE!$A$1:$A$65536,[4]notouch!$H160) ->  | R160: =VLOOKUP(A160,[5]LIST!$D$1:$G$9762,4,0) -> 一般
A161: TW002861001B | B161: 昇廣電器有限公司 | C161: 19611020 | D161: 16498693 | E161: 台中營銷處 | F161: DJB | G161: 台中 | H161: DEALER_TT | I161: DLC_TT | J161: TW002861001B | K161: =VLOOKUP(A161,'[3]工作表4 (2)'!$A$2:$D$539,4,0) -> 108442 | L161: 台中營銷處 | N161: A | P161: =COUNTIF([4]BALANCE!$A$1:$A$65536,[4]notouch!$A161) ->  | Q161: =COUNTIF([4]BALANCE!$A$1:$A$65536,[4]notouch!$H161) ->  | R161: =VLOOKUP(A161,[5]LIST!$D$1:$G$9762,4,0) -> 一般
A162: TW002870001B | B162: 松立電業社 | C162: 19560806 | D162: 90720487 | E162: 高屏營銷處 | F162: GWB | G162: 高屏 | H162: DEALER_TT | I162: DLC_TT | J162: TW002870001B | K162: =VLOOKUP(A162,'[3]工作表4 (2)'!$A$2:$D$539,4,0) -> 71363 | L162: 高屏營銷處 | N162: A | P162: =COUNTIF([4]BALANCE!$A$1:$A$65536,[4]notouch!$A162) ->  | Q162: =COUNTIF([4]BALANCE!$A$1:$A$65536,[4]notouch!$H162) ->  | R162: =VLOOKUP(A162,[5]LIST!$D$1:$G$9762,4,0) -> 一般
A163: TW002886001B | B163: 三信電氣行 | C163: 19570402 | D163: 08359830 | E163: 台中營銷處 | F163: DJB | G163: 台中 | H163: DEALER_TT | I163: SPD_TT | J163: TW002886001B | K163: =VLOOKUP(A163,'[3]工作表4 (2)'!$A$2:$D$539,4,0) -> 354873 | L163: 台中營銷處 | N163: A | P163: =COUNTIF([4]BALANCE!$A$1:$A$65536,[4]notouch!$A163) ->  | Q163: =COUNTIF([4]BALANCE!$A$1:$A$65536,[4]notouch!$H163) ->  | R163: =VLOOKUP(A163,[5]LIST!$D$1:$G$9762,4,0) -> 專售
A164: TW002887001B | B164: 仙風電器有限公司 | C164: XXXXXXXX | D164: XXXXXXXX | E164: 桃竹營銷處 | F164: DWB | G164: 桃竹 | H164: DEALER_TT | I164: DLC_TT | J164: TW002887001B | K164: =VLOOKUP(A164,'[3]工作表4 (2)'!$A$2:$D$539,4,0) -> 67831 | L164: 桃竹營銷處 | N164: A | P164: =COUNTIF([4]BALANCE!$A$1:$A$65536,[4]notouch!$A164) ->  | Q164: =COUNTIF([4]BALANCE!$A$1:$A$65536,[4]notouch!$H164) ->  | R164: =VLOOKUP(A164,[5]LIST!$D$1:$G$9762,4,0) -> 一般
A165: TW002896001B | B165: 三星電器行 | C165: 19670620 | D165: 59096683 | E165: 台中營銷處 | F165: DJB | G165: 台中 | H165: DEALER_TT | I165: DLC_TT | J165: TW002896001B | K165: =VLOOKUP(A165,'[3]工作表4 (2)'!$A$2:$D$539,4,0) -> 81788 | L165: 台中營銷處 | N165: A | P165: =COUNTIF([4]BALANCE!$A$1:$A$65536,[4]notouch!$A165) ->  | Q165: =COUNTIF([4]BALANCE!$A$1:$A$65536,[4]notouch!$H165) ->  | R165: =VLOOKUP(A165,[5]LIST!$D$1:$G$9762,4,0) -> 一般
A166: TW002897001B | B166: 南山電器行 | C166: 19700420 | D166: 17925152 | E166: 台北營銷處 | F166: TPH | G166: 台北 | H166: DEALER_TT | I166: DLC_TT | N166: A | P166: =COUNTIF([4]BALANCE!$A$1:$A$65536,[4]notouch!$A166) ->  | Q166: =COUNTIF([4]BALANCE!$A$1:$A$65536,[4]notouch!$H166) ->  | R166: =VLOOKUP(A166,[5]LIST!$D$1:$G$9762,4,0) -> 一般
A167: TW002904001B | B167: 天烽電器有限公司 | C167: 19711108 | D167: 80272502 | E167: 台北營銷處 | F167: TPH | G167: 台北 | H167: DEALER_TT | I167: DLC_TT | J167: TW002904001B | L167: 台北營銷處 | N167: A | P167: =COUNTIF([4]BALANCE!$A$1:$A$65536,[4]notouch!$A167) ->  | Q167: =COUNTIF([4]BALANCE!$A$1:$A$65536,[4]notouch!$H167) ->  | R167: =VLOOKUP(A167,[5]LIST!$D$1:$G$9762,4,0) -> 一般
A168: TW002919001B | B168: 建鑫電器行 | C168: 19721112 | D168: 18282184 | E168: 嘉南營銷處 | F168: DNB | G168: 嘉南 | H168: DEALER_TT | I168: DLC_TT | J168: TW002919001B | K168: =VLOOKUP(A168,'[3]工作表4 (2)'!$A$2:$D$539,4,0) -> 53357 | L168: 嘉南營銷處 | N168: A | P168: =COUNTIF([4]BALANCE!$A$1:$A$65536,[4]notouch!$A168) ->  | Q168: =COUNTIF([4]BALANCE!$A$1:$A$65536,[4]notouch!$H168) ->  | R168: =VLOOKUP(A168,[5]LIST!$D$1:$G$9762,4,0) -> 一般
A169: TW002927001B | B169: 中信冷凍電器行 | C169: 19710227 | D169: 19801699 | E169: 高屏營銷處 | F169: GWB | G169: 高屏 | H169: DEALER_TT | I169: DCS_TT | J169: TW002927001B | K169: =VLOOKUP(A169,'[3]工作表4 (2)'!$A$2:$D$539,4,0) -> 38794 | L169: 高屏營銷處 | N169: A | P169: =COUNTIF([4]BALANCE!$A$1:$A$65536,[4]notouch!$A169) ->  | Q169: =COUNTIF([4]BALANCE!$A$1:$A$65536,[4]notouch!$H169) ->  | R169: =VLOOKUP(A169,[5]LIST!$D$1:$G$9762,4,0) -> DC
A170: TW002945001B | B170: 勁鋒電器行 | C170: 19641113 | D170: 87753771 | E170: 高屏營銷處 | F170: GWB | G170: 高屏 | H170: DEALER_TT | I170: DLC_TT | J170: TW002945001B | K170: =VLOOKUP(A170,'[3]工作表4 (2)'!$A$2:$D$539,4,0) -> 25934 | L170: 高屏營銷處 | N170: A | P170: =COUNTIF([4]BALANCE!$A$1:$A$65536,[4]notouch!$A170) ->  | Q170: =COUNTIF([4]BALANCE!$A$1:$A$65536,[4]notouch!$H170) ->  | R170: =VLOOKUP(A170,[5]LIST!$D$1:$G$9762,4,0) -> 一般
A171: TW002946001B | B171: 佑均電器商行 | C171: 19800403 | D171: 98119827 | E171: 桃竹營銷處 | F171: DWB | G171: 桃竹 | H171: DEALER_TT | I171: DLC_TT | J171: TW002946001B | N171: A | P171: =COUNTIF([4]BALANCE!$A$1:$A$65536,[4]notouch!$A171) ->  | Q171: =COUNTIF([4]BALANCE!$A$1:$A$65536,[4]notouch!$H171) ->  | R171: =VLOOKUP(A171,[5]LIST!$D$1:$G$9762,4,0) -> 一般
A172: TW002950001B | B172: 廣昌電器行 | C172: TW002950 | D172: 97885688 | E172: 台中營銷處 | F172: DJB | G172: 台中 | H172: DEALER_TT | I172: SPD_TT | J172: TW002950001B | K172: =VLOOKUP(A172,'[3]工作表4 (2)'!$A$2:$D$539,4,0) -> 698132 | L172: 台中營銷處 | N172: A | P172: =COUNTIF([4]BALANCE!$A$1:$A$65536,[4]notouch!$A172) ->  | Q172: =COUNTIF([4]BALANCE!$A$1:$A$65536,[4]notouch!$H172) ->  | R172: =VLOOKUP(A172,[5]LIST!$D$1:$G$9762,4,0) -> 專售
A173: TW002952001B | B173: 廣駿電器行 | C173: 24925933 | D173: 24921827 | E173: 台中營銷處 | F173: DJB | G173: 台中 | H173: DEALER_TT | I173: DLC_TT | J173: TW002952001B | K173: =VLOOKUP(A173,'[3]工作表4 (2)'!$A$2:$D$539,4,0) -> 0 | L173: 台中營銷處 | N173: A | P173: =COUNTIF([4]BALANCE!$A$1:$A$65536,[4]notouch!$A173) ->  | Q173: =COUNTIF([4]BALANCE!$A$1:$A$65536,[4]notouch!$H173) ->  | R173: =VLOOKUP(A173,[5]LIST!$D$1:$G$9762,4,0) -> 一般
A174: TW002960001B | B174: 正賢電器行 | C174: TW002960 | D174: 84042476 | E174: 台中營銷處 | F174: DJB | G174: 台中 | H174: DEALER_TT | I174: DLC_TT | J174: TW002960001B | K174: =VLOOKUP(A174,'[3]工作表4 (2)'!$A$2:$D$539,4,0) -> 121129 | L174: 台中營銷處 | N174: A | P174: =COUNTIF([4]BALANCE!$A$1:$A$65536,[4]notouch!$A174) ->  | Q174: =COUNTIF([4]BALANCE!$A$1:$A$65536,[4]notouch!$H174) ->  | R174: =VLOOKUP(A174,[5]LIST!$D$1:$G$9762,4,0) -> 一般
A175: TW002964001B | B175: 台灣樂金顯示科技股份有限公司 | C175: XXXXXXXX | D175: XXXXXXXX | E175: B2B2C | F175: B2B2C | G175: B2B2C | H175: B2B_TT | I175: B2B_TT | N175: A | P175: =COUNTIF([4]BALANCE!$A$1:$A$65536,[4]notouch!$A175) ->  | Q175: =COUNTIF([4]BALANCE!$A$1:$A$65536,[4]notouch!$H175) ->  | R175: =VLOOKUP(A175,[5]LIST!$D$1:$G$9762,4,0) -> B2B
A176: TW002965001B | B176: 永定電器有限公司 | C176: 19781001 | D176: 96857734 | E176: 高屏營銷處 | F176: GWB | G176: 高屏 | H176: DEALER_TT | I176: DLC_TT | J176: TW002965001B | K176: =VLOOKUP(A176,'[3]工作表4 (2)'!$A$2:$D$539,4,0) -> 0 | L176: 高屏營銷處 | N176: A | P176: =COUNTIF([4]BALANCE!$A$1:$A$65536,[4]notouch!$A176) ->  | Q176: =COUNTIF([4]BALANCE!$A$1:$A$65536,[4]notouch!$H176) ->  | R176: =VLOOKUP(A176,[5]LIST!$D$1:$G$9762,4,0) -> 一般
A177: TW002975001B | B177: 佳美電器行 | C177: 19550202 | D177: 06644845 | E177: 嘉南營銷處 | F177: DNB | G177: 嘉南 | H177: DEALER_TT | I177: DLC_TT | N177: I | O177: 無往來 | P177: =COUNTIF([4]BALANCE!$A$1:$A$65536,[4]notouch!$A177) ->  | Q177: =COUNTIF([4]BALANCE!$A$1:$A$65536,[4]notouch!$H177) ->  | R177: =VLOOKUP(A177,[5]LIST!$D$1:$G$9762,4,0) -> 
A178: TW002978001B | B178: 匯豐家電有限公司 | C178: 23383896 | D178: 23366784 | E178: 台中營銷處 | F178: DJB | G178: 台中 | H178: DEALER_TT | I178: DLC_TT | J178: TW002978001B | K178: =VLOOKUP(A178,'[3]工作表4 (2)'!$A$2:$D$539,4,0) -> 0 | L178: 台中營銷處 | N178: A | P178: =COUNTIF([4]BALANCE!$A$1:$A$65536,[4]notouch!$A178) ->  | Q178: =COUNTIF([4]BALANCE!$A$1:$A$65536,[4]notouch!$H178) ->  | R178: =VLOOKUP(A178,[5]LIST!$D$1:$G$9762,4,0) -> 一般
A179: TW002989001B | B179: 隆松電器有限公司 | C179: 36663666 | D179: 69845546 | E179: 嘉南營銷處 | F179: DNB | G179: 嘉南 | H179: DEALER_TT | I179: DLC_TT | J179: TW002989001B | L179: 嘉南營銷處 | N179: A | P179: =COUNTIF([4]BALANCE!$A$1:$A$65536,[4]notouch!$A179) ->  | Q179: =COUNTIF([4]BALANCE!$A$1:$A$65536,[4]notouch!$H179) ->  | R179: =VLOOKUP(A179,[5]LIST!$D$1:$G$9762,4,0) -> Inactive
A180: TW002990001B | B180: 國際水電冷氣工程行 | C180: 19651008 | D180: 49776492 | E180: 桃竹營銷處 | F180: DWB | G180: 桃竹 | H180: DEALER_TT | I180: DLC_TT | K180: =VLOOKUP(A180,'[3]工作表4 (2)'!$A$2:$D$539,4,0) -> 48526 | L180: 桃竹營銷處 | N180: A | P180: =COUNTIF([4]BALANCE!$A$1:$A$65536,[4]notouch!$A180) ->  | Q180: =COUNTIF([4]BALANCE!$A$1:$A$65536,[4]notouch!$H180) ->  | R180: =VLOOKUP(A180,[5]LIST!$D$1:$G$9762,4,0) -> 一般
A181: TW002991001B | B181: 偉誠電器 | C181: 19740120 | D181: 96888413 | E181: 台北營銷處 | F181: TPH | G181: 台北 | H181: DEALER_TT | I181: DLC_TT | N181: I | O181: 無往來 | P181: =COUNTIF([4]BALANCE!$A$1:$A$65536,[4]notouch!$A181) ->  | Q181: =COUNTIF([4]BALANCE!$A$1:$A$65536,[4]notouch!$H181) ->  | R181: =VLOOKUP(A181,[5]LIST!$D$1:$G$9762,4,0) -> Inactive
A182: TW002997001B | B182: 鎰銘電器有限公司 | C182: 19670216 | D182: 80103181 | E182: 台北營銷處 | F182: TPH | G182: 台北 | H182: DEALER_TT | I182: SPD_TT | J182: TW002997001B | K182: =VLOOKUP(A182,'[3]工作表4 (2)'!$A$2:$D$539,4,0) -> 1566001 | L182: 台北營銷處 | N182: A | P182: =COUNTIF([4]BALANCE!$A$1:$A$65536,[4]notouch!$A182) ->  | Q182: =COUNTIF([4]BALANCE!$A$1:$A$65536,[4]notouch!$H182) ->  | R182: =VLOOKUP(A182,[5]LIST!$D$1:$G$9762,4,0) -> 專售
A183: TW003001001B | B183: 銘盛電器有限公司 | C183: 19560401 | D183: 97184980 | E183: 台北營銷處 | F183: TPH | G183: 台北 | H183: DEALER_TT | I183: DLC_TT | J183: TW003001001B | L183: 台北營銷處 | N183: A | P183: =COUNTIF([4]BALANCE!$A$1:$A$65536,[4]notouch!$A183) ->  | Q183: =COUNTIF([4]BALANCE!$A$1:$A$65536,[4]notouch!$H183) ->  | R183: =VLOOKUP(A183,[5]LIST!$D$1:$G$9762,4,0) -> Inactive
A184: TW003013001B | B184: 重慶國際有限公司 | C184: TW003013 | D184: 79955373 | E184: 台中營銷處 | F184: DJB | G184: 台中 | H184: DEALER_TT | I184: DLC_TT | J184: TW003013001B | K184: =VLOOKUP(A184,'[3]工作表4 (2)'!$A$2:$D$539,4,0) -> 54921 | L184: 台中營銷處 | N184: A | P184: =COUNTIF([4]BALANCE!$A$1:$A$65536,[4]notouch!$A184) ->  | Q184: =COUNTIF([4]BALANCE!$A$1:$A$65536,[4]notouch!$H184) ->  | R184: =VLOOKUP(A184,[5]LIST!$D$1:$G$9762,4,0) -> 一般
A185: TW003020002B | B185: 華笙音響企業有限公司 | C185: TW003020 | D185: 23688754 | E185: 台中營銷處 | F185: DJB | G185: 台中 | H185: DEALER_TT | I185: DLC_TT | J185: TW003020002B | K185: =VLOOKUP(A185,'[3]工作表4 (2)'!$A$2:$D$539,4,0) -> 390491 | L185: 台中營銷處 | N185: A | P185: =COUNTIF([4]BALANCE!$A$1:$A$65536,[4]notouch!$A185) ->  | Q185: =COUNTIF([4]BALANCE!$A$1:$A$65536,[4]notouch!$H185) ->  | R185: =VLOOKUP(A185,[5]LIST!$D$1:$G$9762,4,0) -> 一般
A186: TW003023001B | B186: 翠亨企業股份有限公司 | C186: 19820909 | D186: 16129431 | E186: 高屏營銷處 | F186: GWB | G186: 高屏 | H186: DEALER_TT | I186: DCS_TT | J186: TW003023001B | K186: =VLOOKUP(A186,'[3]工作表4 (2)'!$A$2:$D$539,4,0) -> 307013 | L186: 高屏營銷處 | N186: A | P186: =COUNTIF([4]BALANCE!$A$1:$A$65536,[4]notouch!$A186) ->  | Q186: =COUNTIF([4]BALANCE!$A$1:$A$65536,[4]notouch!$H186) ->  | R186: =VLOOKUP(A186,[5]LIST!$D$1:$G$9762,4,0) -> DC
A187: TW003029001B | B187: 大統電器行 | C187: 19581106 | D187: 02846102 | E187: 桃竹營銷處 | F187: DWB | G187: 桃竹 | H187: DEALER_TT | I187: DLC_TT | J187: TW003029001B | K187: =VLOOKUP(A187,'[3]工作表4 (2)'!$A$2:$D$539,4,0) -> 0 | L187: 桃竹營銷處 | N187: A | P187: =COUNTIF([4]BALANCE!$A$1:$A$65536,[4]notouch!$A187) ->  | Q187: =COUNTIF([4]BALANCE!$A$1:$A$65536,[4]notouch!$H187) ->  | R187: =VLOOKUP(A187,[5]LIST!$D$1:$G$9762,4,0) -> 一般
A188: TW003034001B | B188: 九瑜電氣行 | C188: TW003034 | D188: 97887216 | E188: 台中營銷處 | F188: DJB | G188: 台中 | H188: DEALER_TT | I188: DLC_TT | J188: TW003034001B | L188: 台中營銷處 | N188: A | P188: =COUNTIF([4]BALANCE!$A$1:$A$65536,[4]notouch!$A188) ->  | Q188: =COUNTIF([4]BALANCE!$A$1:$A$65536,[4]notouch!$H188) ->  | R188: =VLOOKUP(A188,[5]LIST!$D$1:$G$9762,4,0) -> 
A189: TW003035001B | B189: 友信電器有限公司 | C189: 19571230 | D189: 97341659 | E189: 嘉南營銷處 | F189: DNB | G189: 嘉南 | H189: DEALER_TT | I189: DLC_TT | J189: TW003035001B | K189: =VLOOKUP(A189,'[3]工作表4 (2)'!$A$2:$D$539,4,0) -> 0 | L189: 嘉南營銷處 | N189: A | P189: =COUNTIF([4]BALANCE!$A$1:$A$65536,[4]notouch!$A189) ->  | Q189: =COUNTIF([4]BALANCE!$A$1:$A$65536,[4]notouch!$H189) ->  | R189: =VLOOKUP(A189,[5]LIST!$D$1:$G$9762,4,0) -> 一般
A190: TW003040001B | B190: 悅鼎電器有限公司 | C190: 19690102 | D190: 84693028 | E190: 台北營銷處 | F190: TPH | G190: 台北 | H190: DEALER_TT | I190: SPD_TT | J190: TW003040001B | K190: =VLOOKUP(A190,'[3]工作表4 (2)'!$A$2:$D$539,4,0) -> 3557124 | L190: 台北營銷處 | N190: A | P190: =COUNTIF([4]BALANCE!$A$1:$A$65536,[4]notouch!$A190) ->  | Q190: =COUNTIF([4]BALANCE!$A$1:$A$65536,[4]notouch!$H190) ->  | R190: =VLOOKUP(A190,[5]LIST!$D$1:$G$9762,4,0) -> 專售
A191: TW003052001B | B191: 蓁筳園企業有限公司 | C191: XXXXXXXX | D191: XXXXXXXX | E191: B2B2C | F191: B2B2C | G191: B2B2C | H191: B2B_TT | I191: B2B_TT | N191: A | P191: =COUNTIF([4]BALANCE!$A$1:$A$65536,[4]notouch!$A191) ->  | Q191: =COUNTIF([4]BALANCE!$A$1:$A$65536,[4]notouch!$H191) ->  | R191: =VLOOKUP(A191,[5]LIST!$D$1:$G$9762,4,0) -> Inactive
A192: TW003052002B | B192: 蓁筳園企業有限公司 | C192: XXXXXXXX | D192: XXXXXXXX | E192: SAC | F192: ID&SAC | G192: SAC Sales | H192: B2B_TT | I192: CAC_TT | N192: I | O192: 無往來 | P192: =COUNTIF([4]BALANCE!$A$1:$A$65536,[4]notouch!$A192) ->  | Q192: =COUNTIF([4]BALANCE!$A$1:$A$65536,[4]notouch!$H192) ->  | R192: =VLOOKUP(A192,[5]LIST!$D$1:$G$9762,4,0) -> Inactive
A193: TW003053001B | B193: 尚德師企業有限公司 | C193: 19630211 | D193: 12933843 | E193: 台北營銷處 | F193: TPH | G193: 台北 | H193: DEALER_TT | I193: DLC_TT | J193: TW003053001B | K193: =VLOOKUP(A193,'[3]工作表4 (2)'!$A$2:$D$539,4,0) -> 0 | L193: 台北營銷處 | N193: A | P193: =COUNTIF([4]BALANCE!$A$1:$A$65536,[4]notouch!$A193) ->  | Q193: =COUNTIF([4]BALANCE!$A$1:$A$65536,[4]notouch!$H193) ->  | R193: =VLOOKUP(A193,[5]LIST!$D$1:$G$9762,4,0) -> 一般
A194: TW003054001B | B194: 上益 | C194: 19550615 | D194: 15719466 | E194: 嘉南營銷處 | F194: DNB | G194: 嘉南 | H194: DEALER_TT | I194: DLC_TT | N194: I | O194: 無往來 | P194: =COUNTIF([4]BALANCE!$A$1:$A$65536,[4]notouch!$A194) ->  | Q194: =COUNTIF([4]BALANCE!$A$1:$A$65536,[4]notouch!$H194) ->  | R194: =VLOOKUP(A194,[5]LIST!$D$1:$G$9762,4,0) -> Inactive
A195: TW003071001B | B195: 泰昀企業有限公司 | C195: 19490915 | D195: 22866800 | E195: 台北營銷處 | F195: TPH | G195: 台北 | H195: DEALER_TT | I195: DCS_TT | J195: TW003071001B | K195: =VLOOKUP(A195,'[3]工作表4 (2)'!$A$2:$D$539,4,0) -> 459608 | L195: 台北營銷處 | N195: A | P195: =COUNTIF([4]BALANCE!$A$1:$A$65536,[4]notouch!$A195) ->  | Q195: =COUNTIF([4]BALANCE!$A$1:$A$65536,[4]notouch!$H195) ->  | R195: =VLOOKUP(A195,[5]LIST!$D$1:$G$9762,4,0) -> DC
A196: TW003094001B | B196: 大銀幕視聽音響有限公司 | C196: TW003094 | D196: 97033415 | E196: 台中營銷處 | F196: DJB | G196: 台中 | H196: DEALER_TT | I196: DCS_TT | J196: TW003094001B | K196: =VLOOKUP(A196,'[3]工作表4 (2)'!$A$2:$D$539,4,0) -> 0 | L196: 台中營銷處 | N196: A | P196: =COUNTIF([4]BALANCE!$A$1:$A$65536,[4]notouch!$A196) ->  | Q196: =COUNTIF([4]BALANCE!$A$1:$A$65536,[4]notouch!$H196) ->  | R196: =VLOOKUP(A196,[5]LIST!$D$1:$G$9762,4,0) -> DC
A197: TW003096001B | B197: 極品家電 | C197: 47226905 | D197: 47293663 | E197: 台中營銷處 | F197: DJB | G197: 台中 | H197: DEALER_TT | I197: DCS_TT | N197: I | O197: 無往來 | P197: =COUNTIF([4]BALANCE!$A$1:$A$65536,[4]notouch!$A197) ->  | Q197: =COUNTIF([4]BALANCE!$A$1:$A$65536,[4]notouch!$H197) ->  | R197: =VLOOKUP(A197,[5]LIST!$D$1:$G$9762,4,0) -> 
A198: TW003125001B | B198: 宏暉電器行 | C198: 19730421 | D198: 14194891 | E198: 高屏營銷處 | F198: GWB | G198: 高屏 | H198: DEALER_TT | I198: DLC_TT | J198: TW003125001B | K198: =VLOOKUP(A198,'[3]工作表4 (2)'!$A$2:$D$539,4,0) -> 0 | L198: 高屏營銷處 | N198: A | P198: =COUNTIF([4]BALANCE!$A$1:$A$65536,[4]notouch!$A198) ->  | Q198: =COUNTIF([4]BALANCE!$A$1:$A$65536,[4]notouch!$H198) ->  | R198: =VLOOKUP(A198,[5]LIST!$D$1:$G$9762,4,0) -> 一般
A199: TW003126001B | B199: 東圓電器行 | C199: 19811028 | D199: 19656246 | E199: 桃竹營銷處 | F199: DWB | G199: 桃竹 | H199: DEALER_TT | I199: SPD_TT | J199: TW003126001B | K199: =VLOOKUP(A199,'[3]工作表4 (2)'!$A$2:$D$539,4,0) -> 0 | L199: 桃竹營銷處 | N199: A | P199: =COUNTIF([4]BALANCE!$A$1:$A$65536,[4]notouch!$A199) ->  | Q199: =COUNTIF([4]BALANCE!$A$1:$A$65536,[4]notouch!$H199) ->  | R199: =VLOOKUP(A199,[5]LIST!$D$1:$G$9762,4,0) -> 
A200: TW003127001B | B200: 富盟企業社 | C200: TW003127 | D200: 13400211 | E200: 台中營銷處 | F200: DJB | G200: 台中 | H200: DEALER_TT | I200: DCS_TT | J200: TW003127001B | K200: =VLOOKUP(A200,'[3]工作表4 (2)'!$A$2:$D$539,4,0) -> 35724 | L200: 台中營銷處 | N200: A | P200: =COUNTIF([4]BALANCE!$A$1:$A$65536,[4]notouch!$A200) ->  | Q200: =COUNTIF([4]BALANCE!$A$1:$A$65536,[4]notouch!$H200) ->  | R200: =VLOOKUP(A200,[5]LIST!$D$1:$G$9762,4,0) -> DC
... 850 more rows

Sheet 預算表
A3: 2024年1月 | B3: 台 灣 樂 金 電 器 股 份 有 限 公 司
A4: =確認code正確 ->  | B4: =店CODE -> 0 | D4: 密 碼
A5: 店Code： | C5: 第一組： | E5: =確認1 -> 0
A6: 店 名： | B6: =確認店 ->  | C6: 第二組： | E6: =確認2 -> 0
A7: =確認區 ->  | B7: =確認BG ->  | C7: =確認BG1 ->  | D7: =R好CODE1 ->  | E7: =R好CODE2 ->  | J7: =R好CODE3 -> 
A8: 店代號 | B8: Promotion No | C8: Promotion Name | D8: 起始日 | E8: 到期日 | F8: 獎勵內容 | G8: 型號 | H8: AMT/% | I8: 單價/%

Sheet BALANCE (hidden)
A1: Bill To Customer Code | B1: Bill To Customer Code | C1: Promotion No | D1: Promotion Name | E1: Start Date | F1: End Date | G1: Property Type | H1: Start Date | I1: End Date | J1: 內容 | K1: 店代號 | L1: 店名 | M1: NO | N1: AA(必填) | O1: AMT/% | P1: Description | Q1: Division | R1: Model | S1: Unit / % | T1: QTY / Sales | U1: Expected Cost
A2: =IFERROR(VLOOKUP(N2,多CODE,2,0),IF(RIGHT($B2,1)="H",LEFT($B2,11)&"B",IFERROR(VLOOKUP($B2,SHIP,3,0),$B2))) -> DEALER_DEPT | B2: DEALER_DEPT | C2: TT-NTSO-20231130-0007 | D2: HETV20231129-TV-Dept-EOLforDisplayModel-09.01~02.29(HETV20230825) | E2: 20230901 | F2: 20240229 | G2: =MID(C2,4,4) -> NTSO | H2: =IF(OR($G2="NTSI",$G2="TTSI"),$E2,LEFT($E2,4)&"/"&MID($E2,5,2)&"/"&RIGHT($E2,2)) -> 2023/09/01 | I2: =IF(OR($G2="NTSI",$G2="TTSI"),$F2,LEFT($F2,4)&"/"&MID($F2,5,2)&"/"&RIGHT($F2,2)) -> 2024/02/29 | J2: 公司-電視-22年機種陳列機出清補助-09.01~02.29-(陳列數以8/23PSI為基準)延續原簽呈:HETV20230825 | K2: DEALER_DEPT | L2: Dealer_Dept | M2: TW | O2: AMT | P2: 22年機種陳列機出清補助 | Q2: (空白) | R2: 86QNED86SQA.ATT | S2: 16900 | T2: 1 | U2: 16900
A3: =IFERROR(VLOOKUP(N3,多CODE,2,0),IF(RIGHT($B3,1)="H",LEFT($B3,11)&"B",IFERROR(VLOOKUP($B3,SHIP,3,0),$B3))) -> DEALER_DEPT | B3: DEALER_DEPT | C3: TT-NTSO-20231227-0017 | D3: IL20231208006-HC-Dept-EOL Limited for Display Model-202401 | E3: 20240101 | F3: 20240131 | G3: =MID(C3,4,4) -> NTSO | H3: 2024/01/01 | I3: 2024/01/31 | J3: 公司-清淨機-陳列機出清補助(上限台數為5/31陳列機庫存數量)-01~01 | K3: DEALER_DEPT | L3: Dealer_Dept | M3: TW | O3: AMT | P3: 陳列機出清補助(上限台數為5/31陳列機庫存數量) | Q3: (空白) | R3: FS151PSF0.ATT | S3: 7333 | T3: 11 | U3: 80663
A4: DEALER_DEPT | B4: DEALER_DEPT | C4: TT-NTSO-20231227-0017 | D4: IL20231208006-HC-Dept-EOL Limited for Display Model-202401 | E4: 20240101 | F4: 20240131 | G4: NTSO | H4: 2024/01/01 | I4: 2024/01/31 | J4: 公司-清淨機-陳列機出清補助(上限台數為5/31陳列機庫存數量)-01~01 | K4: DEALER_DEPT | L4: Dealer_Dept | M4: TW | O4: AMT | P4: 陳列機出清補助(上限台數為5/31陳列機庫存數量) | Q4: (空白) | R4: FS151PBD0.ATT | S4: 10000 | T4: 4 | U4: 40000
A5: DEALER_DEPT | B5: DEALER_DEPT | C5: TT-NTSO-20231227-0017 | D5: IL20231208006-HC-Dept-EOL Limited for Display Model-202401 | E5: 20240101 | F5: 20240131 | G5: NTSO | H5: 2024/01/01 | I5: 2024/01/31 | J5: 公司-清淨機-陳列機出清補助(上限台數為5/31陳列機庫存數量)-01~01 | K5: DEALER_DEPT | L5: Dealer_Dept | M5: TW | O5: AMT | P5: 陳列機出清補助(上限台數為5/31陳列機庫存數量) | Q5: (空白) | R5: FS151PGE0.ATT | S5: 7000 | T5: 8 | U5: 56000
A6: DEALER_DEPT | B6: DEALER_DEPT | C6: TT-NTSO-20231227-0017 | D6: IL20231208006-HC-Dept-EOL Limited for Display Model-202401 | E6: 20240101 | F6: 20240131 | G6: NTSO | H6: 2024/01/01 | I6: 2024/01/31 | J6: 公司-清淨機-陳列機出清補助(上限台數為5/31陳列機庫存數量)-01~01 | K6: DEALER_DEPT | L6: Dealer_Dept | M6: TW | O6: AMT | P6: 陳列機出清補助(上限台數為5/31陳列機庫存數量) | Q6: (空白) | R6: FS151PWE0.ATT | S6: 7000 | T6: 4 | U6: 28000
A7: DEALER_DEPT | B7: DEALER_DEPT | C7: TT-NTSO-20231227-0017 | D7: IL20231208006-HC-Dept-EOL Limited for Display Model-202401 | E7: 20240101 | F7: 20240131 | G7: NTSO | H7: 2024/01/01 | I7: 2024/01/31 | J7: 公司-清淨機-陳列機出清補助(上限台數為5/31陳列機庫存數量)-01~01 | K7: DEALER_DEPT | L7: Dealer_Dept | M7: TW | O7: AMT | P7: 陳列機出清補助(上限台數為5/31陳列機庫存數量) | Q7: (空白) | R7: FS151PCE0.ATT | S7: 7000 | T7: 4 | U7: 28000
A8: DEALER_DEPT | B8: DEALER_DEPT | C8: TT-NTSO-20231227-0047 | D8: IL20231208007-HC-Dept-EOL Limited for Display Model-202401 | E8: 20240101 | F8: 20240131 | G8: NTSO | H8: 2024/01/01 | I8: 2024/01/31 | J8: 公司-清淨機-陳列機出清補助(上限台數為9/30庫存)-01~01 | K8: DEALER_DEPT | L8: Dealer_Dept | M8: TW | O8: AMT | P8: 陳列機出清補助(上限台數為9/30庫存) | Q8: (空白) | R8: AS101DSS0.ATT | S8: 5033 | T8: 11 | U8: 55363
A9: DEALER_DEPT | B9: DEALER_DEPT | C9: TT-NTSO-20231227-0047 | D9: IL20231208007-HC-Dept-EOL Limited for Display Model-202401 | E9: 20240101 | F9: 20240131 | G9: NTSO | H9: 2024/01/01 | I9: 2024/01/31 | J9: 公司-清淨機-陳列機出清補助(上限台數為9/30庫存)-01~01 | K9: DEALER_DEPT | L9: Dealer_Dept | M9: TW | O9: AMT | P9: 陳列機出清補助(上限台數為9/30庫存) | Q9: (空白) | R9: AS651DSS0.ATT | S9: 5700 | T9: 11 | U9: 62700
A10: DEALER_DEPT | B10: DEALER_DEPT | C10: TT-NTSO-20231227-0073 | D10: ILPM2023122501-VCC-Dept-EOL Limited for Display Model-202401 | E10: 20240101 | F10: 20240131 | G10: NTSO | H10: 2024/01/01 | I10: 2024/01/31 | J10: 公司-吸塵器-陳列機出清(陳列數量以公告時間為準)-01~01 | K10: DEALER_DEPT | L10: Dealer_Dept | M10: TW | O10: AMT | P10: 陳列機出清(陳列數量以公告時間為準) | Q10: (空白) | R10: A9T-STEAM.ECGBLTT | S10: 9300 | T10: 31 | U10: 288300
A11: DEALER_DEPT | B11: DEALER_DEPT | C11: TT-NTSO-20231227-0073 | D11: ILPM2023122501-VCC-Dept-EOL Limited for Display Model-202401 | E11: 20240101 | F11: 20240131 | G11: NTSO | H11: 2024/01/01 | I11: 2024/01/31 | J11: 公司-吸塵器-陳列機出清(陳列數量以公告時間為準)-01~01 | K11: DEALER_DEPT | L11: Dealer_Dept | M11: TW | O11: AMT | P11: 陳列機出清(陳列數量以公告時間為準) | Q11: (空白) | R11: A9T-STEAMW.ECBBLTT | S11: 9300 | T11: 52 | U11: 483600
A12: DEALER_DEPT | B12: DEALER_DEPT | C12: TT-NTSO-20231227-0073 | D12: ILPM2023122501-VCC-Dept-EOL Limited for Display Model-202401 | E12: 20240101 | F12: 20240131 | G12: NTSO | H12: 2024/01/01 | I12: 2024/01/31 | J12: 公司-吸塵器-陳列機出清(陳列數量以公告時間為準)-01~01 | K12: DEALER_DEPT | L12: Dealer_Dept | M12: TW | O12: AMT | P12: 陳列機出清(陳列數量以公告時間為準) | Q12: (空白) | R12: M9MAX.AFSBLTT | S12: 5000 | T12: 44 | U12: 220000
A13: DEALER_DEPT | B13: DEALER_DEPT | C13: TT-NTSO-20231227-0074 | D13: ILPM2023122501-VCC-Dept-QtyReward-202401 | E13: 20240101 | F13: 20240131 | G13: NTSO | H13: 2024/01/01 | I13: 2024/01/31 | J13: 公司-吸塵器-實銷台獎-01~01 | K13: DEALER_DEPT | L13: Dealer_Dept | M13: TW | O13: AMT | P13: 實銷台獎 | Q13: (空白) | R13: A9K-ULTRA3.BBBBLTT | S13: 500 | T13: 45 | U13: 22500
A14: DEALER_DEPT | B14: DEALER_DEPT | C14: TT-NTSO-20231227-0074 | D14: ILPM2023122501-VCC-Dept-QtyReward-202401 | E14: 20240101 | F14: 20240131 | G14: NTSO | H14: 2024/01/01 | I14: 2024/01/31 | J14: 公司-吸塵器-實銷台獎-01~01 | K14: DEALER_DEPT | L14: Dealer_Dept | M14: TW | O14: AMT | P14: 實銷台獎 | Q14: (空白) | R14: A9T-MAX.EIGBLTT | S14: 500 | T14: 40 | U14: 20000
A15: DEALER_DEPT | B15: DEALER_DEPT | C15: TT-NTSO-20231227-0074 | D15: ILPM2023122501-VCC-Dept-QtyReward-202401 | E15: 20240101 | F15: 20240131 | G15: NTSO | H15: 2024/01/01 | I15: 2024/01/31 | J15: 公司-吸塵器-實銷台獎-01~01 | K15: DEALER_DEPT | L15: Dealer_Dept | M15: TW | O15: AMT | P15: 實銷台獎 | Q15: (空白) | R15: A9T-ULTRA.ECBBLTT | S15: 1000 | T15: 60 | U15: 60000
A16: DEALER_DEPT | B16: DEALER_DEPT | C16: TT-NTSO-20231227-0074 | D16: ILPM2023122501-VCC-Dept-QtyReward-202401 | E16: 20240101 | F16: 20240131 | G16: NTSO | H16: 2024/01/01 | I16: 2024/01/31 | J16: 公司-吸塵器-實銷台獎-01~01 | K16: DEALER_DEPT | L16: Dealer_Dept | M16: TW | O16: AMT | P16: 實銷台獎 | Q16: (空白) | R16: A9T-STEAM.ECGBLTT | S16: 1000 | T16: 30 | U16: 30000
A17: DEALER_DEPT | B17: DEALER_DEPT | C17: TT-NTSO-20231227-0074 | D17: ILPM2023122501-VCC-Dept-QtyReward-202401 | E17: 20240101 | F17: 20240131 | G17: NTSO | H17: 2024/01/01 | I17: 2024/01/31 | J17: 公司-吸塵器-實銷台獎-01~01 | K17: DEALER_DEPT | L17: Dealer_Dept | M17: TW | O17: AMT | P17: 實銷台獎 | Q17: (空白) | R17: A9T-STEAMW.ECBBLTT | S17: 1000 | T17: 80 | U17: 80000
A18: DEALER_DEPT | B18: DEALER_DEPT | C18: TT-NTSO-20231227-0074 | D18: ILPM2023122501-VCC-Dept-QtyReward-202401 | E18: 20240101 | F18: 20240131 | G18: NTSO | H18: 2024/01/01 | I18: 2024/01/31 | J18: 公司-吸塵器-實銷台獎-01~01 | K18: DEALER_DEPT | L18: Dealer_Dept | M18: TW | O18: AMT | P18: 實銷台獎 | Q18: (空白) | R18: R5-PROPLUS.BEWBLTT | S18: 300 | T18: 25 | U18: 7500
A19: DEALER_DEPT | B19: DEALER_DEPT | C19: TT-NTSO-20231227-0074 | D19: ILPM2023122501-VCC-Dept-QtyReward-202401 | E19: 20240101 | F19: 20240131 | G19: NTSO | H19: 2024/01/01 | I19: 2024/01/31 | J19: 公司-吸塵器-實銷台獎-01~01 | K19: DEALER_DEPT | L19: Dealer_Dept | M19: TW | O19: AMT | P19: 實銷台獎 | Q19: (空白) | R19: R5-ULTIMATE.AEWBLTT | S19: 500 | T19: 30 | U19: 15000
A20: =IFERROR(VLOOKUP(N20,多CODE,2,0),IF(RIGHT($B20,1)="H",LEFT($B20,11)&"B",IFERROR(VLOOKUP($B20,SHIP,3,0),$B20))) -> DEALER_DEPT | B20: DEALER_DEPT | C20: TT-NTSO-20231227-0074 | D20: ILPM2023122501-VCC-Dept-QtyReward-202401 | E20: 20240101 | F20: 20240131 | G20: NTSO | H20: 2024/01/01 | I20: 2024/01/31 | J20: 公司-吸塵器-實銷台獎-01~01 | K20: DEALER_DEPT | L20: Dealer_Dept | M20: TW | O20: AMT | P20: 實銷台獎 | Q20: (空白) | R20: R5-PROPLUS1.BEWBLTT | S20: 300 | T20: 19 | U20: 5700
A21: DEALER_DEPT | B21: DEALER_DEPT | C21: TT-NTSO-20231227-0074 | D21: ILPM2023122501-VCC-Dept-QtyReward-202401 | E21: 20240101 | F21: 20240131 | G21: NTSO | H21: 2024/01/01 | I21: 2024/01/31 | J21: 公司-吸塵器-實銷台獎-01~01 | K21: DEALER_DEPT | L21: Dealer_Dept | M21: TW | O21: AMT | P21: 實銷台獎 | Q21: (空白) | R21: R5ULTIMATE1.AEWBLTT | S21: 500 | T21: 35 | U21: 17500
A22: DEALER_DEPT | B22: DEALER_DEPT | C22: TT-NTSO-20231227-0075 | D22: ILPM2023122501-VCC-Dept-SOA-202401 | E22: 20240101 | F22: 20240131 | G22: NTSO | H22: 2024/01/01 | I22: 2024/01/31 | J22: 公司-吸塵器-實銷價差補助-01~01 | K22: DEALER_DEPT | L22: Dealer_Dept | M22: TW | O22: AMT | P22: 實銷價差補助 | Q22: (空白) | R22: A9K-MAX2.BIGBLTT | S22: 1900 | T22: 60 | U22: 114000
A23: DEALER_DEPT | B23: DEALER_DEPT | C23: TT-NTSO-20231227-0075 | D23: ILPM2023122501-VCC-Dept-SOA-202401 | E23: 20240101 | F23: 20240131 | G23: NTSO | H23: 2024/01/01 | I23: 2024/01/31 | J23: 公司-吸塵器-實銷價差補助-01~01 | K23: DEALER_DEPT | L23: Dealer_Dept | M23: TW | O23: AMT | P23: 實銷價差補助 | Q23: (空白) | R23: A9K-ULTRA3.BBBBLTT | S23: 3800 | T23: 45 | U23: 171000
A24: DEALER_DEPT | B24: DEALER_DEPT | C24: TT-NTSO-20231227-0075 | D24: ILPM2023122501-VCC-Dept-SOA-202401 | E24: 20240101 | F24: 20240131 | G24: NTSO | H24: 2024/01/01 | I24: 2024/01/31 | J24: 公司-吸塵器-實銷價差補助-01~01 | K24: DEALER_DEPT | L24: Dealer_Dept | M24: TW | O24: AMT | P24: 實銷價差補助 | Q24: (空白) | R24: A9T-MAX.EIGBLTT | S24: 2534 | T24: 40 | U24: 101360
A25: DEALER_DEPT | B25: DEALER_DEPT | C25: TT-NTSO-20231227-0075 | D25: ILPM2023122501-VCC-Dept-SOA-202401 | E25: 20240101 | F25: 20240131 | G25: NTSO | H25: 2024/01/01 | I25: 2024/01/31 | J25: 公司-吸塵器-實銷價差補助-01~01 | K25: DEALER_DEPT | L25: Dealer_Dept | M25: TW | O25: AMT | P25: 實銷價差補助 | Q25: (空白) | R25: A9T-ULTRA.ECBBLTT | S25: 1900 | T25: 60 | U25: 114000
A26: DEALER_DEPT | B26: DEALER_DEPT | C26: TT-NTSO-20231227-0075 | D26: ILPM2023122501-VCC-Dept-SOA-202401 | E26: 20240101 | F26: 20240131 | G26: NTSO | H26: 2024/01/01 | I26: 2024/01/31 | J26: 公司-吸塵器-實銷價差補助-01~01 | K26: DEALER_DEPT | L26: Dealer_Dept | M26: TW | O26: AMT | P26: 實銷價差補助 | Q26: (空白) | R26: R5-PROPLUS.BEWBLTT | S26: 1266 | T26: 25 | U26: 31650
A27: DEALER_DEPT | B27: DEALER_DEPT | C27: TT-NTSO-20231227-0075 | D27: ILPM2023122501-VCC-Dept-SOA-202401 | E27: 20240101 | F27: 20240131 | G27: NTSO | H27: 2024/01/01 | I27: 2024/01/31 | J27: 公司-吸塵器-實銷價差補助-01~01 | K27: DEALER_DEPT | L27: Dealer_Dept | M27: TW | O27: AMT | P27: 實銷價差補助 | Q27: (空白) | R27: R5-ULTIMATE.AEWBLTT | S27: 1266 | T27: 30 | U27: 37980
A28: DEALER_DEPT | B28: DEALER_DEPT | C28: TT-NTSO-20231227-0075 | D28: ILPM2023122501-VCC-Dept-SOA-202401 | E28: 20240101 | F28: 20240131 | G28: NTSO | H28: 2024/01/01 | I28: 2024/01/31 | J28: 公司-吸塵器-實銷價差補助-01~01 | K28: DEALER_DEPT | L28: Dealer_Dept | M28: TW | O28: AMT | P28: 實銷價差補助 | Q28: (空白) | R28: M9MAX.AFSBLTT | S28: 5637 | T28: 14 | U28: 78918
A29: DEALER_DEPT | B29: DEALER_DEPT | C29: TT-NTSO-20231227-0075 | D29: ILPM2023122501-VCC-Dept-SOA-202401 | E29: 20240101 | F29: 20240131 | G29: NTSO | H29: 2024/01/01 | I29: 2024/01/31 | J29: 公司-吸塵器-實銷價差補助-01~01 | K29: DEALER_DEPT | L29: Dealer_Dept | M29: TW | O29: AMT | P29: 實銷價差補助 | Q29: (空白) | R29: R5-PROPLUS1.BEWBLTT | S29: 1266 | T29: 19 | U29: 24054
A30: DEALER_DEPT | B30: DEALER_DEPT | C30: TT-NTSO-20231227-0075 | D30: ILPM2023122501-VCC-Dept-SOA-202401 | E30: 20240101 | F30: 20240131 | G30: NTSO | H30: 2024/01/01 | I30: 2024/01/31 | J30: 公司-吸塵器-實銷價差補助-01~01 | K30: DEALER_DEPT | L30: Dealer_Dept | M30: TW | O30: AMT | P30: 實銷價差補助 | Q30: (空白) | R30: R5ULTIMATE1.AEWBLTT | S30: 1266 | T30: 35 | U30: 44310
A31: DEALER_DEPT | B31: DEALER_DEPT | C31: TT-NTSO-20231227-0102 | D31: IL20231214010-HC-Dept-SOA Limited for Sellable Model-202401 | E31: 20240101 | F31: 20240131 | G31: NTSO | H31: 2024/01/01 | I31: 2024/01/31 | J31: 公司-清淨機-實銷補助(上限台數為12/31 Sellable庫存)-01~01 | K31: DEALER_DEPT | L31: Dealer_Dept | M31: TW | O31: AMT | P31: 實銷補助(上限台數為12/31 Sellable庫存) | Q31: (空白) | R31: AS551DWG0.ATT | S31: 4000 | T31: 1 | U31: 4000
A32: DEALER_DEPT | B32: DEALER_DEPT | C32: TT-NTSO-20231227-0116 | D32: KAPMC2023122001-Washer-DEPT-Gift-202401 | E32: 20240101 | F32: 20240131 | G32: NTSO | H32: 2024/01/01 | I32: 2024/01/31 | J32: 公司-洗碗機-實銷贈品-01~01 | K32: DEALER_DEPT | L32: Dealer_Dept | M32: TW | O32: AMT | P32: 實銷贈品 | Q32: (空白) | R32: DFB335HS.AASBTST | S32: 2857 | T32: 20 | U32: 57140
A33: DEALER_DEPT | B33: DEALER_DEPT | C33: TT-NTSO-20231227-0116 | D33: KAPMC2023122001-Washer-DEPT-Gift-202401 | E33: 20240101 | F33: 20240131 | G33: NTSO | H33: 2024/01/01 | I33: 2024/01/31 | J33: 公司-洗碗機-實銷贈品-01~01 | K33: DEALER_DEPT | L33: Dealer_Dept | M33: TW | O33: AMT | P33: 實銷贈品 | Q33: (空白) | R33: DFB335HE.ANBBTST | S33: 2857 | T33: 10 | U33: 28570
A34: DEALER_DEPT | B34: DEALER_DEPT | C34: TT-NTSO-20231227-0117 | D34: KAPMC2023122001-Washer-DEPT-LimitedAddSOA-202401 | E34: 20240101 | F34: 20240131 | G34: NTSO | H34: 2024/01/01 | I34: 2024/01/31 | J34: 公司-洗碗機-加碼實銷補助(依6/30Sellable為數量上限基準)-01~01 | K34: DEALER_DEPT | L34: Dealer_Dept | M34: TW | O34: AMT | P34: 加碼實銷補助(依6/30Sellable為數量上限基準) | Q34: (空白) | R34: DFB335HS.AASBTST | S34: 2000 | T34: 3 | U34: 6000
A35: DEALER_DEPT | B35: DEALER_DEPT | C35: TT-NTSO-20231227-0118 | D35: KAPMC2023122001-Washer-DEPT-Qty-202401 | E35: 20240101 | F35: 20240131 | G35: NTSO | H35: 2024/01/01 | I35: 2024/01/31 | J35: 公司-洗碗機-實銷台獎-01~01 | K35: DEALER_DEPT | L35: Dealer_Dept | M35: TW | O35: AMT | P35: 實銷台獎 | Q35: (空白) | R35: DFB335HS.AASBTST | S35: 1143 | T35: 20 | U35: 22860
A36: DEALER_DEPT | B36: DEALER_DEPT | C36: TT-NTSO-20231227-0118 | D36: KAPMC2023122001-Washer-DEPT-Qty-202401 | E36: 20240101 | F36: 20240131 | G36: NTSO | H36: 2024/01/01 | I36: 2024/01/31 | J36: 公司-洗碗機-實銷台獎-01~01 | K36: DEALER_DEPT | L36: Dealer_Dept | M36: TW | O36: AMT | P36: 實銷台獎 | Q36: (空白) | R36: DFB435FP.APZBTST | S36: 1143 | T36: 2 | U36: 2286
A37: DEALER_DEPT | B37: DEALER_DEPT | C37: TT-NTSO-20231227-0118 | D37: KAPMC2023122001-Washer-DEPT-Qty-202401 | E37: 20240101 | F37: 20240131 | G37: NTSO | H37: 2024/01/01 | I37: 2024/01/31 | J37: 公司-洗碗機-實銷台獎-01~01 | K37: DEALER_DEPT | L37: Dealer_Dept | M37: TW | O37: AMT | P37: 實銷台獎 | Q37: (空白) | R37: DFB335HE.ANBBTST | S37: 1143 | T37: 10 | U37: 11430
A38: DEALER_DEPT | B38: DEALER_DEPT | C38: TT-NTSO-20231227-0187 | D38: AVPM20231226-AV-DEPT-PP-202401 | E38: 20240101 | F38: 20240131 | G38: NTSO | H38: 2024/01/01 | I38: 2024/01/31 | J38: 公司-多媒體-降價補庫存-01~01(庫存以12/17PSI為基準) | K38: DEALER_DEPT | L38: Dealer_Dept | M38: TW | O38: AMT | P38: 降價補庫存 | Q38: (空白) | R38: SC9S.DTWNLLK | S38: 2000 | T38: 174 | U38: 348000
A39: DEALER_DEPT | B39: DEALER_DEPT | C39: TT-NTSO-20231227-0188 | D39: AVPM20231226-AV-DEPT-QtyReward-202401 | E39: 20240101 | F39: 20240131 | G39: NTSO | H39: 2024/01/01 | I39: 2024/01/31 | J39: 公司-多媒體-台獎-01~01 | K39: DEALER_DEPT | L39: Dealer_Dept | M39: TW | O39: AMT | P39: 台獎 | Q39: (空白) | R39: SC9S.DTWNLLK | S39: 800 | T39: 15 | U39: 12000
A40: DEALER_DEPT | B40: DEALER_DEPT | C40: TT-NTSO-20231228-0009 | D40: IL20231226001-DH-Dept-QtyReward-202401 | E40: 20240101 | F40: 20240131 | G40: NTSO | H40: 2024/01/01 | I40: 2024/01/31 | J40: 公司-除濕機-實銷台獎-01~01 | K40: DEALER_DEPT | L40: Dealer_Dept | M40: TW | O40: AMT | P40: 實銷台獎 | Q40: (空白) | R40: MD181QWE0.ATT | S40: 700 | T40: 250 | U40: 175000
A41: DEALER_DEPT | B41: DEALER_DEPT | C41: TT-NTSO-20231228-0009 | D41: IL20231226001-DH-Dept-QtyReward-202401 | E41: 20240101 | F41: 20240131 | G41: NTSO | H41: 2024/01/01 | I41: 2024/01/31 | J41: 公司-除濕機-實銷台獎-01~01 | K41: DEALER_DEPT | L41: Dealer_Dept | M41: TW | O41: AMT | P41: 實銷台獎 | Q41: (空白) | R41: MD171QSE0.ATT | S41: 700 | T41: 40 | U41: 28000
A42: DEALER_DEPT | B42: DEALER_DEPT | C42: TT-NTSO-20231228-0009 | D42: IL20231226001-DH-Dept-QtyReward-202401 | E42: 20240101 | F42: 20240131 | G42: NTSO | H42: 2024/01/01 | I42: 2024/01/31 | J42: 公司-除濕機-實銷台獎-01~01 | K42: DEALER_DEPT | L42: Dealer_Dept | M42: TW | O42: AMT | P42: 實銷台獎 | Q42: (空白) | R42: MD191QEE0.ATT | S42: 700 | T42: 1 | U42: 700
A43: DEALER_DEPT | B43: DEALER_DEPT | C43: TT-NTSO-20231228-0009 | D43: IL20231226001-DH-Dept-QtyReward-202401 | E43: 20240101 | F43: 20240131 | G43: NTSO | H43: 2024/01/01 | I43: 2024/01/31 | J43: 公司-除濕機-實銷台獎-01~01 | K43: DEALER_DEPT | L43: Dealer_Dept | M43: TW | O43: AMT | P43: 實銷台獎 | Q43: (空白) | R43: MD191QCE0.ATT | S43: 700 | T43: 300 | U43: 210000
A44: DEALER_DEPT | B44: DEALER_DEPT | C44: TT-NTSO-20231228-0009 | D44: IL20231226001-DH-Dept-QtyReward-202401 | E44: 20240101 | F44: 20240131 | G44: NTSO | H44: 2024/01/01 | I44: 2024/01/31 | J44: 公司-除濕機-實銷台獎-01~01 | K44: DEALER_DEPT | L44: Dealer_Dept | M44: TW | O44: AMT | P44: 實銷台獎 | Q44: (空白) | R44: WD261VKF0.ATT | S44: 1000 | T44: 50 | U44: 50000
A45: DEALER_DEPT | B45: DEALER_DEPT | C45: TT-NTSO-20231228-0010 | D45: IL20231226001-DH-Dept-SOA-202401 | E45: 20240101 | F45: 20240131 | G45: NTSO | H45: 2024/01/01 | I45: 2024/01/31 | J45: 公司-除濕機-實銷價差補助-01~01 | K45: DEALER_DEPT | L45: Dealer_Dept | M45: TW | O45: AMT | P45: 實銷價差補助 | Q45: (空白) | R45: MD181QWE0.ATT | S45: 1333 | T45: 250 | U45: 333250
A46: DEALER_DEPT | B46: DEALER_DEPT | C46: TT-NTSO-20231228-0010 | D46: IL20231226001-DH-Dept-SOA-202401 | E46: 20240101 | F46: 20240131 | G46: NTSO | H46: 2024/01/01 | I46: 2024/01/31 | J46: 公司-除濕機-實銷價差補助-01~01 | K46: DEALER_DEPT | L46: Dealer_Dept | M46: TW | O46: AMT | P46: 實銷價差補助 | Q46: (空白) | R46: MD171QSE0.ATT | S46: 1333 | T46: 40 | U46: 53320
A47: DEALER_DEPT | B47: DEALER_DEPT | C47: TT-NTSO-20231228-0010 | D47: IL20231226001-DH-Dept-SOA-202401 | E47: 20240101 | F47: 20240131 | G47: NTSO | H47: 2024/01/01 | I47: 2024/01/31 | J47: 公司-除濕機-實銷價差補助-01~01 | K47: DEALER_DEPT | L47: Dealer_Dept | M47: TW | O47: AMT | P47: 實銷價差補助 | Q47: (空白) | R47: WD261VKF0.ATT | S47: 2000 | T47: 50 | U47: 100000
A48: DEALER_DEPT | B48: DEALER_DEPT | C48: TT-NTSO-20231228-0039 | D48: IL20231226001-HC-Dept-QtyReward-202401 | E48: 20240101 | F48: 20240131 | G48: NTSO | H48: 2024/01/01 | I48: 2024/01/31 | J48: 公司-清淨機-實銷台獎-01~01 | K48: DEALER_DEPT | L48: Dealer_Dept | M48: TW | O48: AMT | P48: 實銷台獎 | Q48: (空白) | R48: AS101DSS0.ATT | S48: 1000 | T48: 35 | U48: 35000
A49: DEALER_DEPT | B49: DEALER_DEPT | C49: TT-NTSO-20231228-0039 | D49: IL20231226001-HC-Dept-QtyReward-202401 | E49: 20240101 | F49: 20240131 | G49: NTSO | H49: 2024/01/01 | I49: 2024/01/31 | J49: 公司-清淨機-實銷台獎-01~01 | K49: DEALER_DEPT | L49: Dealer_Dept | M49: TW | O49: AMT | P49: 實銷台獎 | Q49: (空白) | R49: AS651DSS0.ATT | S49: 600 | T49: 200 | U49: 120000
A50: DEALER_DEPT | B50: DEALER_DEPT | C50: TT-NTSO-20231228-0039 | D50: IL20231226001-HC-Dept-QtyReward-202401 | E50: 20240101 | F50: 20240131 | G50: NTSO | H50: 2024/01/01 | I50: 2024/01/31 | J50: 公司-清淨機-實銷台獎-01~01 | K50: DEALER_DEPT | L50: Dealer_Dept | M50: TW | O50: AMT | P50: 實銷台獎 | Q50: (空白) | R50: AS551DWG0.ATT | S50: 400 | T50: 2 | U50: 800
A51: DEALER_DEPT | B51: DEALER_DEPT | C51: TT-NTSO-20231228-0039 | D51: IL20231226001-HC-Dept-QtyReward-202401 | E51: 20240101 | F51: 20240131 | G51: NTSO | H51: 2024/01/01 | I51: 2024/01/31 | J51: 公司-清淨機-實銷台獎-01~01 | K51: DEALER_DEPT | L51: Dealer_Dept | M51: TW | O51: AMT | P51: 實銷台獎 | Q51: (空白) | R51: FS151PSF0.ATT | S51: 1000 | T51: 15 | U51: 15000
A52: DEALER_DEPT | B52: DEALER_DEPT | C52: TT-NTSO-20231228-0039 | D52: IL20231226001-HC-Dept-QtyReward-202401 | E52: 20240101 | F52: 20240131 | G52: NTSO | H52: 2024/01/01 | I52: 2024/01/31 | J52: 公司-清淨機-實銷台獎-01~01 | K52: DEALER_DEPT | L52: Dealer_Dept | M52: TW | O52: AMT | P52: 實銷台獎 | Q52: (空白) | R52: FS151PBD0.ATT | S52: 500 | T52: 3 | U52: 1500
A53: DEALER_DEPT | B53: DEALER_DEPT | C53: TT-NTSO-20231228-0039 | D53: IL20231226001-HC-Dept-QtyReward-202401 | E53: 20240101 | F53: 20240131 | G53: NTSO | H53: 2024/01/01 | I53: 2024/01/31 | J53: 公司-清淨機-實銷台獎-01~01 | K53: DEALER_DEPT | L53: Dealer_Dept | M53: TW | O53: AMT | P53: 實銷台獎 | Q53: (空白) | R53: FS151PGE0.ATT | S53: 1000 | T53: 30 | U53: 30000
A54: DEALER_DEPT | B54: DEALER_DEPT | C54: TT-NTSO-20231228-0039 | D54: IL20231226001-HC-Dept-QtyReward-202401 | E54: 20240101 | F54: 20240131 | G54: NTSO | H54: 2024/01/01 | I54: 2024/01/31 | J54: 公司-清淨機-實銷台獎-01~01 | K54: DEALER_DEPT | L54: Dealer_Dept | M54: TW | O54: AMT | P54: 實銷台獎 | Q54: (空白) | R54: FS151PWE0.ATT | S54: 700 | T54: 30 | U54: 21000
A55: DEALER_DEPT | B55: DEALER_DEPT | C55: TT-NTSO-20231228-0039 | D55: IL20231226001-HC-Dept-QtyReward-202401 | E55: 20240101 | F55: 20240131 | G55: NTSO | H55: 2024/01/01 | I55: 2024/01/31 | J55: 公司-清淨機-實銷台獎-01~01 | K55: DEALER_DEPT | L55: Dealer_Dept | M55: TW | O55: AMT | P55: 實銷台獎 | Q55: (空白) | R55: FS151PCE0.ATT | S55: 700 | T55: 7 | U55: 4900
A56: DEALER_DEPT | B56: DEALER_DEPT | C56: TT-NTSO-20231228-0039 | D56: IL20231226001-HC-Dept-QtyReward-202401 | E56: 20240101 | F56: 20240131 | G56: NTSO | H56: 2024/01/01 | I56: 2024/01/31 | J56: 公司-清淨機-實銷台獎-01~01 | K56: DEALER_DEPT | L56: Dealer_Dept | M56: TW | O56: AMT | P56: 實銷台獎 | Q56: (空白) | R56: AS111NGY0.ATT | S56: 1000 | T56: 40 | U56: 40000
A57: DEALER_DEPT | B57: DEALER_DEPT | C57: TT-NTSO-20231228-0039 | D57: IL20231226001-HC-Dept-QtyReward-202401 | E57: 20240101 | F57: 20240131 | G57: NTSO | H57: 2024/01/01 | I57: 2024/01/31 | J57: 公司-清淨機-實銷台獎-01~01 | K57: DEALER_DEPT | L57: Dealer_Dept | M57: TW | O57: AMT | P57: 實銷台獎 | Q57: (空白) | R57: AS651DBY0.ATT | S57: 600 | T57: 120 | U57: 72000
A58: DEALER_DEPT | B58: DEALER_DEPT | C58: TT-NTSO-20231228-0039 | D58: IL20231226001-HC-Dept-QtyReward-202401 | E58: 20240101 | F58: 20240131 | G58: NTSO | H58: 2024/01/01 | I58: 2024/01/31 | J58: 公司-清淨機-實銷台獎-01~01 | K58: DEALER_DEPT | L58: Dealer_Dept | M58: TW | O58: AMT | P58: 實銷台獎 | Q58: (空白) | R58: AS101DBY0.ATT | S58: 1000 | T58: 20 | U58: 20000
A59: DEALER_DEPT | B59: DEALER_DEPT | C59: TT-NTSO-20231228-0039 | D59: IL20231226001-HC-Dept-QtyReward-202401 | E59: 20240101 | F59: 20240131 | G59: NTSO | H59: 2024/01/01 | I59: 2024/01/31 | J59: 公司-清淨機-實銷台獎-01~01 | K59: DEALER_DEPT | L59: Dealer_Dept | M59: TW | O59: AMT | P59: 實銷台獎 | Q59: (空白) | R59: AS201PRU0.ATT | S59: 500 | T59: 8 | U59: 4000
A60: DEALER_DEPT | B60: DEALER_DEPT | C60: TT-NTSO-20231228-0039 | D60: IL20231226001-HC-Dept-QtyReward-202401 | E60: 20240101 | F60: 20240131 | G60: NTSO | H60: 2024/01/01 | I60: 2024/01/31 | J60: 公司-清淨機-實銷台獎-01~01 | K60: DEALER_DEPT | L60: Dealer_Dept | M60: TW | O60: AMT | P60: 實銷台獎 | Q60: (空白) | R60: AS201PWU0.ATT | S60: 500 | T60: 55 | U60: 27500
A61: DEALER_DEPT | B61: DEALER_DEPT | C61: TT-NTSO-20231228-0039 | D61: IL20231226001-HC-Dept-QtyReward-202401 | E61: 20240101 | F61: 20240131 | G61: NTSO | H61: 2024/01/01 | I61: 2024/01/31 | J61: 公司-清淨機-實銷台獎-01~01 | K61: DEALER_DEPT | L61: Dealer_Dept | M61: TW | O61: AMT | P61: 實銷台獎 | Q61: (空白) | R61: AS201PYU0.ATT | S61: 500 | T61: 25 | U61: 12500
A62: DEALER_DEPT | B62: DEALER_DEPT | C62: TT-NTSO-20231228-0039 | D62: IL20231226001-HC-Dept-QtyReward-202401 | E62: 20240101 | F62: 20240131 | G62: NTSO | H62: 2024/01/01 | I62: 2024/01/31 | J62: 公司-清淨機-實銷台獎-01~01 | K62: DEALER_DEPT | L62: Dealer_Dept | M62: TW | O62: AMT | P62: 實銷台獎 | Q62: (空白) | R62: FS151PBK0.ATT | S62: 500 | T62: 3 | U62: 1500
A63: DEALER_DEPT | B63: DEALER_DEPT | C63: TT-NTSO-20231228-0039 | D63: IL20231226001-HC-Dept-QtyReward-202401 | E63: 20240101 | F63: 20240131 | G63: NTSO | H63: 2024/01/01 | I63: 2024/01/31 | J63: 公司-清淨機-實銷台獎-01~01 | K63: DEALER_DEPT | L63: Dealer_Dept | M63: TW | O63: AMT | P63: 實銷台獎 | Q63: (空白) | R63: FS151PCJ0.ATT | S63: 500 | T63: 1 | U63: 500
A64: DEALER_DEPT | B64: DEALER_DEPT | C64: TT-NTSO-20231228-0040 | D64: IL20231226001-HC-Dept-SOA-202401 | E64: 20240101 | F64: 20240131 | G64: NTSO | H64: 2024/01/01 | I64: 2024/01/31 | J64: 公司-清淨機-實銷價差補助-01~01 | K64: DEALER_DEPT | L64: Dealer_Dept | M64: TW | O64: AMT | P64: 實銷價差補助 | Q64: (空白) | R64: AS101DSS0.ATT | S64: 2967 | T64: 35 | U64: 103845
A65: DEALER_DEPT | B65: DEALER_DEPT | C65: TT-NTSO-20231228-0040 | D65: IL20231226001-HC-Dept-SOA-202401 | E65: 20240101 | F65: 20240131 | G65: NTSO | H65: 2024/01/01 | I65: 2024/01/31 | J65: 公司-清淨機-實銷價差補助-01~01 | K65: DEALER_DEPT | L65: Dealer_Dept | M65: TW | O65: AMT | P65: 實銷價差補助 | Q65: (空白) | R65: AS651DSS0.ATT | S65: 2300 | T65: 200 | U65: 460000
A66: DEALER_DEPT | B66: DEALER_DEPT | C66: TT-NTSO-20231228-0040 | D66: IL20231226001-HC-Dept-SOA-202401 | E66: 20240101 | F66: 20240131 | G66: NTSO | H66: =IF(OR($G66="NTSI",$G66="TTSI"),$E66,LEFT($E66,4)&"/"&MID($E66,5,2)&"/"&RIGHT($E66,2)) -> 2024/01/01 | I66: =IF(OR($G66="NTSI",$G66="TTSI"),$F66,LEFT($F66,4)&"/"&MID($F66,5,2)&"/"&RIGHT($F66,2)) -> 2024/01/31 | J66: 公司-清淨機-實銷價差補助-01~01 | K66: DEALER_DEPT | L66: Dealer_Dept | M66: TW | O66: AMT | P66: 實銷價差補助 | Q66: (空白) | R66: FS151PSF0.ATT | S66: 2667 | T66: 15 | U66: 40005
A67: DEALER_DEPT | B67: DEALER_DEPT | C67: TT-NTSO-20231228-0040 | D67: IL20231226001-HC-Dept-SOA-202401 | E67: 20240101 | F67: 20240131 | G67: =MID(C67,4,4) -> NTSO | H67: 2024/01/01 | I67: 2024/01/31 | J67: 公司-清淨機-實銷價差補助-01~01 | K67: DEALER_DEPT | L67: Dealer_Dept | M67: TW | O67: AMT | P67: 實銷價差補助 | Q67: (空白) | R67: FS151PGE0.ATT | S67: 1000 | T67: 30 | U67: 30000
A68: DEALER_DEPT | B68: DEALER_DEPT | C68: TT-NTSO-20231228-0040 | D68: IL20231226001-HC-Dept-SOA-202401 | E68: 20240101 | F68: 20240131 | G68: NTSO | H68: 2024/01/01 | I68: 2024/01/31 | J68: 公司-清淨機-實銷價差補助-01~01 | K68: DEALER_DEPT | L68: Dealer_Dept | M68: TW | O68: AMT | P68: 實銷價差補助 | Q68: (空白) | R68: FS151PWE0.ATT | S68: 1000 | T68: 30 | U68: 30000
A69: DEALER_DEPT | B69: DEALER_DEPT | C69: TT-NTSO-20231228-0040 | D69: IL20231226001-HC-Dept-SOA-202401 | E69: 20240101 | F69: 20240131 | G69: NTSO | H69: 2024/01/01 | I69: 2024/01/31 | J69: 公司-清淨機-實銷價差補助-01~01 | K69: DEALER_DEPT | L69: Dealer_Dept | M69: TW | O69: AMT | P69: 實銷價差補助 | Q69: (空白) | R69: FS151PCE0.ATT | S69: 1000 | T69: 7 | U69: 7000
A70: DEALER_DEPT | B70: DEALER_DEPT | C70: TT-NTSO-20231228-0040 | D70: IL20231226001-HC-Dept-SOA-202401 | E70: 20240101 | F70: 20240131 | G70: NTSO | H70: 2024/01/01 | I70: 2024/01/31 | J70: 公司-清淨機-實銷價差補助-01~01 | K70: DEALER_DEPT | L70: Dealer_Dept | M70: TW | O70: AMT | P70: 實銷價差補助 | Q70: (空白) | R70: AS111NGY0.ATT | S70: 667 | T70: 40 | U70: 26680
A71: DEALER_DEPT | B71: DEALER_DEPT | C71: TT-NTSO-20231228-0040 | D71: IL20231226001-HC-Dept-SOA-202401 | E71: 20240101 | F71: 20240131 | G71: NTSO | H71: 2024/01/01 | I71: 2024/01/31 | J71: 公司-清淨機-實銷價差補助-01~01 | K71: DEALER_DEPT | L71: Dealer_Dept | M71: TW | O71: AMT | P71: 實銷價差補助 | Q71: (空白) | R71: AS201PRU0.ATT | S71: 667 | T71: 8 | U71: 5336
A72: DEALER_DEPT | B72: DEALER_DEPT | C72: TT-NTSO-20231228-0040 | D72: IL20231226001-HC-Dept-SOA-202401 | E72: 20240101 | F72: 20240131 | G72: NTSO | H72: 2024/01/01 | I72: 2024/01/31 | J72: 公司-清淨機-實銷價差補助-01~01 | K72: DEALER_DEPT | L72: Dealer_Dept | M72: TW | O72: AMT | P72: 實銷價差補助 | Q72: (空白) | R72: AS201PWU0.ATT | S72: 667 | T72: 55 | U72: 36685
A73: DEALER_DEPT | B73: DEALER_DEPT | C73: TT-NTSO-20231228-0040 | D73: IL20231226001-HC-Dept-SOA-202401 | E73: 20240101 | F73: 20240131 | G73: NTSO | H73: 2024/01/01 | I73: 2024/01/31 | J73: 公司-清淨機-實銷價差補助-01~01 | K73: DEALER_DEPT | L73: Dealer_Dept | M73: TW | O73: AMT | P73: 實銷價差補助 | Q73: (空白) | R73: AS201PYU0.ATT | S73: 667 | T73: 25 | U73: 16675
A74: DEALER_DEPT | B74: DEALER_DEPT | C74: TT-NTSO-20231228-0072 | D74: KAPMS2023122701-MWO-Dept-EOL-ForDisplayModel-202401 | E74: 20240101 | F74: 20240131 | G74: NTSO | H74: 2024/01/01 | I74: 2024/01/31 | J74: 公司-微波爐-陳列機出清補助(依公告時點陳列台數)-01~01 | K74: DEALER_DEPT | L74: Dealer_Dept | M74: TW | O74: AMT | P74: 陳列機出清補助(依公告時點陳列台數) | Q74: (空白) | R74: MJ3965ACR.BSSBLTT | S74: 2090 | T74: 18 | U74: 37620
A75: DEALER_DEPT | B75: DEALER_DEPT | C75: TT-NTSO-20231228-0073 | D75: KAPMS2023122701-MWO-Dept-GiftSOA-202401 | E75: 20240101 | F75: 20240131 | G75: NTSO | H75: 2024/01/01 | I75: 2024/01/31 | J75: 公司-微波爐-實銷贈品補助-01~01 | K75: DEALER_DEPT | L75: Dealer_Dept | M75: TW | O75: AMT | P75: 實銷贈品補助 | Q75: (空白) | R75: MJ3965BCP.BSEBLTT | S75: 1000 | T75: 25 | U75: 25000
A76: DEALER_DEPT | B76: DEALER_DEPT | C76: TT-NTSO-20231228-0176 | D76: HETV20231226-TV-DEPT-PP-202401 | E76: 20240101 | F76: 20240131 | G76: NTSO | H76: 2024/01/01 | I76: 2024/01/31 | J76: 公司-電視-補庫存價差至20231231-01~01 | K76: DEALER_DEPT | L76: Dealer_Dept | M76: TW | O76: AMT | P76: 補庫存價差至20231231 | Q76: (空白) | R76: OLED65C3PSA.ATT | S76: 16667 | T76: 232 | U76: 3866744
A77: DEALER_DEPT | B77: DEALER_DEPT | C77: TT-NTSO-20231228-0176 | D77: HETV20231226-TV-DEPT-PP-202401 | E77: 20240101 | F77: 20240131 | G77: NTSO | H77: 2024/01/01 | I77: 2024/01/31 | J77: 公司-電視-補庫存價差至20231231-01~01 | K77: DEALER_DEPT | L77: Dealer_Dept | M77: TW | O77: AMT | P77: 補庫存價差至20231231 | Q77: (空白) | R77: OLED55C3PSA.ATT | S77: 6667 | T77: 194 | U77: 1293398
A78: DEALER_DEPT | B78: DEALER_DEPT | C78: TT-NTSO-20231228-0176 | D78: HETV20231226-TV-DEPT-PP-202401 | E78: 20240101 | F78: 20240131 | G78: NTSO | H78: 2024/01/01 | I78: 2024/01/31 | J78: 公司-電視-補庫存價差至20231231-01~01 | K78: DEALER_DEPT | L78: Dealer_Dept | M78: TW | O78: AMT | P78: 補庫存價差至20231231 | Q78: (空白) | R78: OLED48C3PSA.ATT | S78: 3333 | T78: 78 | U78: 259974
A79: DEALER_DEPT | B79: DEALER_DEPT | C79: TT-NTSO-20231228-0176 | D79: HETV20231226-TV-DEPT-PP-202401 | E79: 20240101 | F79: 20240131 | G79: NTSO | H79: 2024/01/01 | I79: 2024/01/31 | J79: 公司-電視-補庫存價差至20231231-01~01 | K79: DEALER_DEPT | L79: Dealer_Dept | M79: TW | O79: AMT | P79: 補庫存價差至20231231 | Q79: (空白) | R79: OLED42C3PSA.ATT | S79: 3333 | T79: 29 | U79: 96657
A80: DEALER_DEPT | B80: DEALER_DEPT | C80: TT-NTSO-20231228-0176 | D80: HETV20231226-TV-DEPT-PP-202401 | E80: 20240101 | F80: 20240131 | G80: NTSO | H80: 2024/01/01 | I80: 2024/01/31 | J80: 公司-電視-補庫存價差至20231231-01~01 | K80: DEALER_DEPT | L80: Dealer_Dept | M80: TW | O80: AMT | P80: 補庫存價差至20231231 | Q80: (空白) | R80: OLED83G3PSA.ATT | S80: 33333 | T80: 70 | U80: 2333310
A81: DEALER_DEPT | B81: DEALER_DEPT | C81: TT-NTSO-20231228-0176 | D81: HETV20231226-TV-DEPT-PP-202401 | E81: 20240101 | F81: 20240131 | G81: NTSO | H81: 2024/01/01 | I81: 2024/01/31 | J81: 公司-電視-補庫存價差至20231231-01~01 | K81: DEALER_DEPT | L81: Dealer_Dept | M81: TW | O81: AMT | P81: 補庫存價差至20231231 | Q81: (空白) | R81: OLED65G3PSA.ATT | S81: 7267 | T81: 195 | U81: 1417065
A82: DEALER_DEPT | B82: DEALER_DEPT | C82: TT-NTSO-20231228-0176 | D82: HETV20231226-TV-DEPT-PP-202401 | E82: 20240101 | F82: 20240131 | G82: NTSO | H82: 2024/01/01 | I82: 2024/01/31 | J82: 公司-電視-補庫存價差至20231231-01~01 | K82: DEALER_DEPT | L82: Dealer_Dept | M82: TW | O82: AMT | P82: 補庫存價差至20231231 | Q82: (空白) | R82: OLED55G3PSA.ATT | S82: 6667 | T82: 97 | U82: 646699
A83: DEALER_DEPT | B83: DEALER_DEPT | C83: TT-NTSO-20231228-0176 | D83: HETV20231226-TV-DEPT-PP-202401 | E83: 20240101 | F83: 20240131 | G83: NTSO | H83: 2024/01/01 | I83: 2024/01/31 | J83: 公司-電視-補庫存價差至20231231-01~01 | K83: DEALER_DEPT | L83: Dealer_Dept | M83: TW | O83: AMT | P83: 補庫存價差至20231231 | Q83: (空白) | R83: OLED83C3PSA.ATT | S83: 20000 | T83: 58 | U83: 1160000
A84: =IFERROR(VLOOKUP(N84,多CODE,2,0),IF(RIGHT($B84,1)="H",LEFT($B84,11)&"B",IFERROR(VLOOKUP($B84,SHIP,3,0),$B84))) -> DEALER_DEPT | B84: DEALER_DEPT | C84: TT-NTSO-20231228-0176 | D84: HETV20231226-TV-DEPT-PP-202401 | E84: 20240101 | F84: 20240131 | G84: NTSO | H84: 2024/01/01 | I84: 2024/01/31 | J84: 公司-電視-補庫存價差至20231231-01~01 | K84: DEALER_DEPT | L84: Dealer_Dept | M84: TW | O84: AMT | P84: 補庫存價差至20231231 | Q84: (空白) | R84: OLED77C3PSA.ATT | S84: 20600 | T84: 58 | U84: 1194800
A85: DEALER_DEPT | B85: DEALER_DEPT | C85: TT-NTSO-20231228-0177 | D85: HETV20231226-TV-DEPT-Qty-202401 | E85: 20240101 | F85: 20240131 | G85: NTSO | H85: 2024/01/01 | I85: 2024/01/31 | J85: 公司-電視-實銷台獎-01~01 | K85: DEALER_DEPT | L85: Dealer_Dept | M85: TW | O85: AMT | P85: 實銷台獎 | Q85: (空白) | R85: 55NANO76SPA.ATT | S85: 300 | T85: 150 | U85: 45000
A86: DEALER_DEPT | B86: DEALER_DEPT | C86: TT-NTSO-20231228-0177 | D86: HETV20231226-TV-DEPT-Qty-202401 | E86: 20240101 | F86: 20240131 | G86: NTSO | H86: 2024/01/01 | I86: 2024/01/31 | J86: 公司-電視-實銷台獎-01~01 | K86: DEALER_DEPT | L86: Dealer_Dept | M86: TW | O86: AMT | P86: 實銷台獎 | Q86: (空白) | R86: OLED83C2PSA.ATT | S86: 2000 | T86: 13 | U86: 26000
A87: DEALER_DEPT | B87: DEALER_DEPT | C87: TT-NTSO-20231228-0177 | D87: HETV20231226-TV-DEPT-Qty-202401 | E87: 20240101 | F87: 20240131 | G87: NTSO | H87: 2024/01/01 | I87: 2024/01/31 | J87: 公司-電視-實銷台獎-01~01 | K87: DEALER_DEPT | L87: Dealer_Dept | M87: TW | O87: AMT | P87: 實銷台獎 | Q87: (空白) | R87: 55NANO76SQA.ATT | S87: 3000 | T87: 1 | U87: 3000
A88: DEALER_DEPT | B88: DEALER_DEPT | C88: TT-NTSO-20231228-0177 | D88: HETV20231226-TV-DEPT-Qty-202401 | E88: 20240101 | F88: 20240131 | G88: NTSO | H88: 2024/01/01 | I88: 2024/01/31 | J88: 公司-電視-實銷台獎-01~01 | K88: DEALER_DEPT | L88: Dealer_Dept | M88: TW | O88: AMT | P88: 實銷台獎 | Q88: (空白) | R88: 55QNED81SQA.ATT | S88: 600 | T88: 2 | U88: 1200
A89: DEALER_DEPT | B89: DEALER_DEPT | C89: TT-NTSO-20231228-0177 | D89: HETV20231226-TV-DEPT-Qty-202401 | E89: 20240101 | F89: 20240131 | G89: NTSO | H89: 2024/01/01 | I89: 2024/01/31 | J89: 公司-電視-實銷台獎-01~01 | K89: DEALER_DEPT | L89: Dealer_Dept | M89: TW | O89: AMT | P89: 實銷台獎 | Q89: (空白) | R89: OLED42C2PSA.ATT | S89: 2000 | T89: 1 | U89: 2000
A90: DEALER_DEPT | B90: DEALER_DEPT | C90: TT-NTSO-20231228-0177 | D90: HETV20231226-TV-DEPT-Qty-202401 | E90: 20240101 | F90: 20240131 | G90: NTSO | H90: 2024/01/01 | I90: 2024/01/31 | J90: 公司-電視-實銷台獎-01~01 | K90: DEALER_DEPT | L90: Dealer_Dept | M90: TW | O90: AMT | P90: 實銷台獎 | Q90: (空白) | R90: OLED65C2PSC.ATT | S90: 2000 | T90: 4 | U90: 8000
A91: DEALER_DEPT | B91: DEALER_DEPT | C91: TT-NTSO-20231228-0177 | D91: HETV20231226-TV-DEPT-Qty-202401 | E91: 20240101 | F91: 20240131 | G91: NTSO | H91: 2024/01/01 | I91: 2024/01/31 | J91: 公司-電視-實銷台獎-01~01 | K91: DEALER_DEPT | L91: Dealer_Dept | M91: TW | O91: AMT | P91: 實銷台獎 | Q91: (空白) | R91: 75NANO76SQA.ATT | S91: 3000 | T91: 1 | U91: 3000
A92: DEALER_DEPT | B92: DEALER_DEPT | C92: TT-NTSO-20231228-0177 | D92: HETV20231226-TV-DEPT-Qty-202401 | E92: 20240101 | F92: 20240131 | G92: NTSO | H92: 2024/01/01 | I92: 2024/01/31 | J92: 公司-電視-實銷台獎-01~01 | K92: DEALER_DEPT | L92: Dealer_Dept | M92: TW | O92: AMT | P92: 實銷台獎 | Q92: (空白) | R92: 65QNED86SQA.ATT | S92: 800 | T92: 2 | U92: 1600
A93: DEALER_DEPT | B93: DEALER_DEPT | C93: TT-NTSO-20231228-0177 | D93: HETV20231226-TV-DEPT-Qty-202401 | E93: 20240101 | F93: 20240131 | G93: NTSO | H93: 2024/01/01 | I93: 2024/01/31 | J93: 公司-電視-實銷台獎-01~01 | K93: DEALER_DEPT | L93: Dealer_Dept | M93: TW | O93: AMT | P93: 實銷台獎 | Q93: (空白) | R93: 27ART10AKPL.ATT | S93: 3000 | T93: 2 | U93: 6000
A94: DEALER_DEPT | B94: DEALER_DEPT | C94: TT-NTSO-20231228-0177 | D94: HETV20231226-TV-DEPT-Qty-202401 | E94: 20240101 | F94: 20240131 | G94: NTSO | H94: 2024/01/01 | I94: 2024/01/31 | J94: 公司-電視-實銷台獎-01~01 | K94: DEALER_DEPT | L94: Dealer_Dept | M94: TW | O94: AMT | P94: 實銷台獎 | Q94: (空白) | R94: 65NANO76SQA.ATT | S94: 600 | T94: 1 | U94: 600
A95: DEALER_DEPT | B95: DEALER_DEPT | C95: TT-NTSO-20231228-0177 | D95: HETV20231226-TV-DEPT-Qty-202401 | E95: 20240101 | F95: 20240131 | G95: NTSO | H95: 2024/01/01 | I95: 2024/01/31 | J95: 公司-電視-實銷台獎-01~01 | K95: DEALER_DEPT | L95: Dealer_Dept | M95: TW | O95: AMT | P95: 實銷台獎 | Q95: (空白) | R95: OLED83G2PSA.ATT | S95: 2000 | T95: 5 | U95: 10000
A96: DEALER_DEPT | B96: DEALER_DEPT | C96: TT-NTSO-20231228-0177 | D96: HETV20231226-TV-DEPT-Qty-202401 | E96: 20240101 | F96: 20240131 | G96: NTSO | H96: 2024/01/01 | I96: 2024/01/31 | J96: 公司-電視-實銷台獎-01~01 | K96: DEALER_DEPT | L96: Dealer_Dept | M96: TW | O96: AMT | P96: 實銷台獎 | Q96: (空白) | R96: OLED55G2PSA.ATT | S96: 3000 | T96: 6 | U96: 18000
A97: DEALER_DEPT | B97: DEALER_DEPT | C97: TT-NTSO-20231228-0177 | D97: HETV20231226-TV-DEPT-Qty-202401 | E97: 20240101 | F97: 20240131 | G97: NTSO | H97: 2024/01/01 | I97: 2024/01/31 | J97: 公司-電視-實銷台獎-01~01 | K97: DEALER_DEPT | L97: Dealer_Dept | M97: TW | O97: AMT | P97: 實銷台獎 | Q97: (空白) | R97: 86QNED86SQA.ATT | S97: 1500 | T97: 6 | U97: 9000
A98: DEALER_DEPT | B98: DEALER_DEPT | C98: TT-NTSO-20231228-0177 | D98: HETV20231226-TV-DEPT-Qty-202401 | E98: 20240101 | F98: 20240131 | G98: NTSO | H98: 2024/01/01 | I98: 2024/01/31 | J98: 公司-電視-實銷台獎-01~01 | K98: DEALER_DEPT | L98: Dealer_Dept | M98: TW | O98: AMT | P98: 實銷台獎 | Q98: (空白) | R98: 75QNED96SQA.ATT | S98: 1500 | T98: 1 | U98: 1500
A99: DEALER_DEPT | B99: DEALER_DEPT | C99: TT-NTSO-20231228-0177 | D99: HETV20231226-TV-DEPT-Qty-202401 | E99: 20240101 | F99: 20240131 | G99: NTSO | H99: 2024/01/01 | I99: 2024/01/31 | J99: 公司-電視-實銷台獎-01~01 | K99: DEALER_DEPT | L99: Dealer_Dept | M99: TW | O99: AMT | P99: 實銷台獎 | Q99: (空白) | R99: 75QNED91SQA.ATT | S99: 1000 | T99: 15 | U99: 15000
A100: DEALER_DEPT | B100: DEALER_DEPT | C100: TT-NTSO-20231228-0177 | D100: HETV20231226-TV-DEPT-Qty-202401 | E100: 20240101 | F100: 20240131 | G100: NTSO | H100: 2024/01/01 | I100: 2024/01/31 | J100: 公司-電視-實銷台獎-01~01 | K100: DEALER_DEPT | L100: Dealer_Dept | M100: TW | O100: AMT | P100: 實銷台獎 | Q100: (空白) | R100: 75QNED86SQA.ATT | S100: 800 | T100: 6 | U100: 4800
A101: DEALER_DEPT | B101: DEALER_DEPT | C101: TT-NTSO-20231228-0177 | D101: HETV20231226-TV-DEPT-Qty-202401 | E101: 20240101 | F101: 20240131 | G101: NTSO | H101: 2024/01/01 | I101: 2024/01/31 | J101: 公司-電視-實銷台獎-01~01 | K101: DEALER_DEPT | L101: Dealer_Dept | M101: TW | O101: AMT | P101: 實銷台獎 | Q101: (空白) | R101: OLED97G2PSA.ATT | S101: 1000 | T101: 2 | U101: 2000
A102: DEALER_DEPT | B102: DEALER_DEPT | C102: TT-NTSO-20231228-0177 | D102: HETV20231226-TV-DEPT-Qty-202401 | E102: 20240101 | F102: 20240131 | G102: NTSO | H102: 2024/01/01 | I102: 2024/01/31 | J102: 公司-電視-實銷台獎-01~01 | K102: DEALER_DEPT | L102: Dealer_Dept | M102: TW | O102: AMT | P102: 實銷台獎 | Q102: (空白) | R102: 55LX1QPSA.ATT | S102: 2000 | T102: 25 | U102: 50000
A103: DEALER_DEPT | B103: DEALER_DEPT | C103: TT-NTSO-20231228-0177 | D103: HETV20231226-TV-DEPT-Qty-202401 | E103: 20240101 | F103: 20240131 | G103: NTSO | H103: 2024/01/01 | I103: 2024/01/31 | J103: 公司-電視-實銷台獎-01~01 | K103: DEALER_DEPT | L103: Dealer_Dept | M103: TW | O103: AMT | P103: 實銷台獎 | Q103: (空白) | R103: OLED65C3PSA.ATT | S103: 1000 | T103: 90 | U103: 90000
A104: DEALER_DEPT | B104: DEALER_DEPT | C104: TT-NTSO-20231228-0177 | D104: HETV20231226-TV-DEPT-Qty-202401 | E104: 20240101 | F104: 20240131 | G104: NTSO | H104: 2024/01/01 | I104: 2024/01/31 | J104: 公司-電視-實銷台獎-01~01 | K104: DEALER_DEPT | L104: Dealer_Dept | M104: TW | O104: AMT | P104: 實銷台獎 | Q104: (空白) | R104: OLED55C3PSA.ATT | S104: 500 | T104: 25 | U104: 12500
A105: DEALER_DEPT | B105: DEALER_DEPT | C105: TT-NTSO-20231228-0177 | D105: HETV20231226-TV-DEPT-Qty-202401 | E105: 20240101 | F105: 20240131 | G105: NTSO | H105: 2024/01/01 | I105: 2024/01/31 | J105: 公司-電視-實銷台獎-01~01 | K105: DEALER_DEPT | L105: Dealer_Dept | M105: TW | O105: AMT | P105: 實銷台獎 | Q105: (空白) | R105: OLED48C3PSA.ATT | S105: 500 | T105: 20 | U105: 10000
A106: DEALER_DEPT | B106: DEALER_DEPT | C106: TT-NTSO-20231228-0177 | D106: HETV20231226-TV-DEPT-Qty-202401 | E106: 20240101 | F106: 20240131 | G106: NTSO | H106: 2024/01/01 | I106: 2024/01/31 | J106: 公司-電視-實銷台獎-01~01 | K106: DEALER_DEPT | L106: Dealer_Dept | M106: TW | O106: AMT | P106: 實銷台獎 | Q106: (空白) | R106: 86QNED86SRA.ATT | S106: 1000 | T106: 45 | U106: 45000
A107: DEALER_DEPT | B107: DEALER_DEPT | C107: TT-NTSO-20231228-0177 | D107: HETV20231226-TV-DEPT-Qty-202401 | E107: 20240101 | F107: 20240131 | G107: NTSO | H107: 2024/01/01 | I107: 2024/01/31 | J107: 公司-電視-實銷台獎-01~01 | K107: DEALER_DEPT | L107: Dealer_Dept | M107: TW | O107: AMT | P107: 實銷台獎 | Q107: (空白) | R107: 75QNED86SRA.ATT | S107: 1000 | T107: 100 | U107: 100000
A108: DEALER_DEPT | B108: DEALER_DEPT | C108: TT-NTSO-20231228-0177 | D108: HETV20231226-TV-DEPT-Qty-202401 | E108: 20240101 | F108: 20240131 | G108: NTSO | H108: 2024/01/01 | I108: 2024/01/31 | J108: 公司-電視-實銷台獎-01~01 | K108: DEALER_DEPT | L108: Dealer_Dept | M108: TW | O108: AMT | P108: 實銷台獎 | Q108: (空白) | R108: 75NANO77SRA.ATT | S108: 500 | T108: 30 | U108: 15000
A109: DEALER_DEPT | B109: DEALER_DEPT | C109: TT-NTSO-20231228-0177 | D109: HETV20231226-TV-DEPT-Qty-202401 | E109: 20240101 | F109: 20240131 | G109: NTSO | H109: 2024/01/01 | I109: 2024/01/31 | J109: 公司-電視-實銷台獎-01~01 | K109: DEALER_DEPT | L109: Dealer_Dept | M109: TW | O109: AMT | P109: 實銷台獎 | Q109: (空白) | R109: OLED55A3PSA.ATT | S109: 1000 | T109: 10 | U109: 10000
A110: DEALER_DEPT | B110: DEALER_DEPT | C110: TT-NTSO-20231228-0177 | D110: HETV20231226-TV-DEPT-Qty-202401 | E110: 20240101 | F110: 20240131 | G110: NTSO | H110: 2024/01/01 | I110: 2024/01/31 | J110: 公司-電視-實銷台獎-01~01 | K110: DEALER_DEPT | L110: Dealer_Dept | M110: TW | O110: AMT | P110: 實銷台獎 | Q110: (空白) | R110: OLED83G3PSA.ATT | S110: 2000 | T110: 55 | U110: 110000
A111: DEALER_DEPT | B111: DEALER_DEPT | C111: TT-NTSO-20231228-0177 | D111: HETV20231226-TV-DEPT-Qty-202401 | E111: 20240101 | F111: 20240131 | G111: NTSO | H111: 2024/01/01 | I111: 2024/01/31 | J111: 公司-電視-實銷台獎-01~01 | K111: DEALER_DEPT | L111: Dealer_Dept | M111: TW | O111: AMT | P111: 實銷台獎 | Q111: (空白) | R111: OLED65G3PSA.ATT | S111: 2000 | T111: 30 | U111: 60000
A112: DEALER_DEPT | B112: DEALER_DEPT | C112: TT-NTSO-20231228-0177 | D112: HETV20231226-TV-DEPT-Qty-202401 | E112: 20240101 | F112: 20240131 | G112: NTSO | H112: 2024/01/01 | I112: 2024/01/31 | J112: 公司-電視-實銷台獎-01~01 | K112: DEALER_DEPT | L112: Dealer_Dept | M112: TW | O112: AMT | P112: 實銷台獎 | Q112: (空白) | R112: OLED55G3PSA.ATT | S112: 2000 | T112: 20 | U112: 40000
A113: DEALER_DEPT | B113: DEALER_DEPT | C113: TT-NTSO-20231228-0177 | D113: HETV20231226-TV-DEPT-Qty-202401 | E113: 20240101 | F113: 20240131 | G113: NTSO | H113: 2024/01/01 | I113: 2024/01/31 | J113: 公司-電視-實銷台獎-01~01 | K113: DEALER_DEPT | L113: Dealer_Dept | M113: TW | O113: AMT | P113: 實銷台獎 | Q113: (空白) | R113: OLED83C3PSA.ATT | S113: 2000 | T113: 30 | U113: 60000
A114: DEALER_DEPT | B114: DEALER_DEPT | C114: TT-NTSO-20231228-0177 | D114: HETV20231226-TV-DEPT-Qty-202401 | E114: 20240101 | F114: 20240131 | G114: NTSO | H114: 2024/01/01 | I114: 2024/01/31 | J114: 公司-電視-實銷台獎-01~01 | K114: DEALER_DEPT | L114: Dealer_Dept | M114: TW | O114: AMT | P114: 實銷台獎 | Q114: (空白) | R114: OLED77C3PSA.ATT | S114: 1000 | T114: 110 | U114: 110000
A115: DEALER_DEPT | B115: DEALER_DEPT | C115: TT-NTSO-20231228-0177 | D115: HETV20231226-TV-DEPT-Qty-202401 | E115: 20240101 | F115: 20240131 | G115: NTSO | H115: 2024/01/01 | I115: 2024/01/31 | J115: 公司-電視-實銷台獎-01~01 | K115: DEALER_DEPT | L115: Dealer_Dept | M115: TW | O115: AMT | P115: 實銷台獎 | Q115: (空白) | R115: 43QNED75SRT.ATT | S115: 500 | T115: 15 | U115: 7500
A116: DEALER_DEPT | B116: DEALER_DEPT | C116: TT-NTSO-20231228-0178 | D116: HETV20231226-TV-DEPT-SOA-202401 | E116: 20240101 | F116: 20240131 | G116: NTSO | H116: 2024/01/01 | I116: 2024/01/31 | J116: 公司-電視-實銷補助-01~01 | K116: DEALER_DEPT | L116: Dealer_Dept | M116: TW | O116: AMT | P116: 實銷補助 | Q116: (空白) | R116: OLED65G1PSA.ATT | S116: 20000 | T116: 1 | U116: 20000
A117: DEALER_DEPT | B117: DEALER_DEPT | C117: TT-NTSO-20231228-0178 | D117: HETV20231226-TV-DEPT-SOA-202401 | E117: 20240101 | F117: 20240131 | G117: NTSO | H117: 2024/01/01 | I117: 2024/01/31 | J117: 公司-電視-實銷補助-01~01 | K117: DEALER_DEPT | L117: Dealer_Dept | M117: TW | O117: AMT | P117: 實銷補助 | Q117: (空白) | R117: OLED65C1PSB.ATT | S117: 6067 | T117: 1 | U117: 6067
A118: DEALER_DEPT | B118: DEALER_DEPT | C118: TT-NTSO-20231228-0178 | D118: HETV20231226-TV-DEPT-SOA-202401 | E118: 20240101 | F118: 20240131 | G118: NTSO | H118: 2024/01/01 | I118: 2024/01/31 | J118: 公司-電視-實銷補助-01~01 | K118: DEALER_DEPT | L118: Dealer_Dept | M118: TW | O118: AMT | P118: 實銷補助 | Q118: (空白) | R118: OLED55C1PSB.ATT | S118: 1333 | T118: 1 | U118: 1333
A119: DEALER_DEPT | B119: DEALER_DEPT | C119: TT-NTSO-20231228-0178 | D119: HETV20231226-TV-DEPT-SOA-202401 | E119: 20240101 | F119: 20240131 | G119: NTSO | H119: 2024/01/01 | I119: 2024/01/31 | J119: 公司-電視-實銷補助-01~01 | K119: DEALER_DEPT | L119: Dealer_Dept | M119: TW | O119: AMT | P119: 實銷補助 | Q119: (空白) | R119: 55NANO86SPA.ATT | S119: 4000 | T119: 1 | U119: 4000
A120: DEALER_DEPT | B120: DEALER_DEPT | C120: TT-NTSO-20231228-0178 | D120: HETV20231226-TV-DEPT-SOA-202401 | E120: 20240101 | F120: 20240131 | G120: NTSO | H120: 2024/01/01 | I120: 2024/01/31 | J120: 公司-電視-實銷補助-01~01 | K120: DEALER_DEPT | L120: Dealer_Dept | M120: TW | O120: AMT | P120: 實銷補助 | Q120: (空白) | R120: 65UP8050PSB.ATT | S120: 7333 | T120: 1 | U120: 7333
A121: DEALER_DEPT | B121: DEALER_DEPT | C121: TT-NTSO-20231228-0178 | D121: HETV20231226-TV-DEPT-SOA-202401 | E121: 20240101 | F121: 20240131 | G121: NTSO | H121: 2024/01/01 | I121: 2024/01/31 | J121: 公司-電視-實銷補助-01~01 | K121: DEALER_DEPT | L121: Dealer_Dept | M121: TW | O121: AMT | P121: 實銷補助 | Q121: (空白) | R121: 55UP8050PSB.ATT | S121: 5333 | T121: 1 | U121: 5333
A122: DEALER_DEPT | B122: DEALER_DEPT | C122: TT-NTSO-20231228-0178 | D122: HETV20231226-TV-DEPT-SOA-202401 | E122: 20240101 | F122: 20240131 | G122: NTSO | H122: 2024/01/01 | I122: 2024/01/31 | J122: 公司-電視-實銷補助-01~01 | K122: DEALER_DEPT | L122: Dealer_Dept | M122: TW | O122: AMT | P122: 實銷補助 | Q122: (空白) | R122: 50UP7750PSB.ATT | S122: 2143 | T122: 1 | U122: 2143
A123: DEALER_DEPT | B123: DEALER_DEPT | C123: TT-NTSO-20231228-0178 | D123: HETV20231226-TV-DEPT-SOA-202401 | E123: 20240101 | F123: 20240131 | G123: NTSO | H123: 2024/01/01 | I123: 2024/01/31 | J123: 公司-電視-實銷補助-01~01 | K123: DEALER_DEPT | L123: Dealer_Dept | M123: TW | O123: AMT | P123: 實銷補助 | Q123: (空白) | R123: 43UP7750PSB.ATT | S123: 1429 | T123: 1 | U123: 1429
A124: DEALER_DEPT | B124: DEALER_DEPT | C124: TT-NTSO-20231228-0178 | D124: HETV20231226-TV-DEPT-SOA-202401 | E124: 20240101 | F124: 20240131 | G124: NTSO | H124: 2024/01/01 | I124: 2024/01/31 | J124: 公司-電視-實銷補助-01~01 | K124: DEALER_DEPT | L124: Dealer_Dept | M124: TW | O124: AMT | P124: 實銷補助 | Q124: (空白) | R124: 65NANO91SPA.ATT | S124: 2000 | T124: 1 | U124: 2000
A125: DEALER_DEPT | B125: DEALER_DEPT | C125: TT-NTSO-20231228-0178 | D125: HETV20231226-TV-DEPT-SOA-202401 | E125: 20240101 | F125: 20240131 | G125: NTSO | H125: 2024/01/01 | I125: 2024/01/31 | J125: 公司-電視-實銷補助-01~01 | K125: DEALER_DEPT | L125: Dealer_Dept | M125: TW | O125: AMT | P125: 實銷補助 | Q125: (空白) | R125: 75QNED96SPA.ATT | S125: 13333 | T125: 1 | U125: 13333
A126: DEALER_DEPT | B126: DEALER_DEPT | C126: TT-NTSO-20231228-0178 | D126: HETV20231226-TV-DEPT-SOA-202401 | E126: 20240101 | F126: 20240131 | G126: NTSO | H126: 2024/01/01 | I126: 2024/01/31 | J126: 公司-電視-實銷補助-01~01 | K126: DEALER_DEPT | L126: Dealer_Dept | M126: TW | O126: AMT | P126: 實銷補助 | Q126: (空白) | R126: OLED83C2PSA.ATT | S126: 26667 | T126: 6 | U126: 160002
A127: DEALER_DEPT | B127: DEALER_DEPT | C127: TT-NTSO-20231228-0178 | D127: HETV20231226-TV-DEPT-SOA-202401 | E127: 20240101 | F127: 20240131 | G127: NTSO | H127: 2024/01/01 | I127: 2024/01/31 | J127: 公司-電視-實銷補助-01~01 | K127: DEALER_DEPT | L127: Dealer_Dept | M127: TW | O127: AMT | P127: 實銷補助 | Q127: (空白) | R127: OLED42C2PSA.ATT | S127: 6000 | T127: 1 | U127: 6000
A128: DEALER_DEPT | B128: DEALER_DEPT | C128: TT-NTSO-20231228-0178 | D128: HETV20231226-TV-DEPT-SOA-202401 | E128: 20240101 | F128: 20240131 | G128: NTSO | H128: 2024/01/01 | I128: 2024/01/31 | J128: 公司-電視-實銷補助-01~01 | K128: DEALER_DEPT | L128: Dealer_Dept | M128: TW | O128: AMT | P128: 實銷補助 | Q128: (空白) | R128: OLED55C2PSC.ATT | S128: 11333 | T128: 4 | U128: 45332
A129: DEALER_DEPT | B129: DEALER_DEPT | C129: TT-NTSO-20231228-0178 | D129: HETV20231226-TV-DEPT-SOA-202401 | E129: 20240101 | F129: 20240131 | G129: NTSO | H129: 2024/01/01 | I129: 2024/01/31 | J129: 公司-電視-實銷補助-01~01 | K129: DEALER_DEPT | L129: Dealer_Dept | M129: TW | O129: AMT | P129: 實銷補助 | Q129: (空白) | R129: OLED65C2PSC.ATT | S129: 16067 | T129: 13 | U129: 208871
A130: DEALER_DEPT | B130: DEALER_DEPT | C130: TT-NTSO-20231228-0178 | D130: HETV20231226-TV-DEPT-SOA-202401 | E130: 20240101 | F130: 20240131 | G130: NTSO | H130: =IF(OR($G130="NTSI",$G130="TTSI"),$E130,LEFT($E130,4)&"/"&MID($E130,5,2)&"/"&RIGHT($E130,2)) -> 2024/01/01 | I130: =IF(OR($G130="NTSI",$G130="TTSI"),$F130,LEFT($F130,4)&"/"&MID($F130,5,2)&"/"&RIGHT($F130,2)) -> 2024/01/31 | J130: 公司-電視-實銷補助-01~01 | K130: DEALER_DEPT | L130: Dealer_Dept | M130: TW | O130: AMT | P130: 實銷補助 | Q130: (空白) | R130: OLED65G2PSA.ATT | S130: 10600 | T130: 5 | U130: 53000
A131: DEALER_DEPT | B131: DEALER_DEPT | C131: TT-NTSO-20231228-0178 | D131: HETV20231226-TV-DEPT-SOA-202401 | E131: 20240101 | F131: 20240131 | G131: =MID(C131,4,4) -> NTSO | H131: 2024/01/01 | I131: 2024/01/31 | J131: 公司-電視-實銷補助-01~01 | K131: DEALER_DEPT | L131: Dealer_Dept | M131: TW | O131: AMT | P131: 實銷補助 | Q131: (空白) | R131: OLED48C2PSA.ATT | S131: 9333 | T131: 1 | U131: 9333
A132: DEALER_DEPT | B132: DEALER_DEPT | C132: TT-NTSO-20231228-0178 | D132: HETV20231226-TV-DEPT-SOA-202401 | E132: 20240101 | F132: 20240131 | G132: NTSO | H132: 2024/01/01 | I132: 2024/01/31 | J132: 公司-電視-實銷補助-01~01 | K132: DEALER_DEPT | L132: Dealer_Dept | M132: TW | O132: AMT | P132: 實銷補助 | Q132: (空白) | R132: 75NANO76SQA.ATT | S132: 7143 | T132: 1 | U132: 7143
A133: DEALER_DEPT | B133: DEALER_DEPT | C133: TT-NTSO-20231228-0178 | D133: HETV20231226-TV-DEPT-SOA-202401 | E133: 20240101 | F133: 20240131 | G133: NTSO | H133: 2024/01/01 | I133: 2024/01/31 | J133: 公司-電視-實銷補助-01~01 | K133: DEALER_DEPT | L133: Dealer_Dept | M133: TW | O133: AMT | P133: 實銷補助 | Q133: (空白) | R133: 65QNED86SQA.ATT | S133: 7333 | T133: 6 | U133: 43998
A134: DEALER_DEPT | B134: DEALER_DEPT | C134: TT-NTSO-20231228-0178 | D134: HETV20231226-TV-DEPT-SOA-202401 | E134: 20240101 | F134: 20240131 | G134: NTSO | H134: 2024/01/01 | I134: 2024/01/31 | J134: 公司-電視-實銷補助-01~01 | K134: DEALER_DEPT | L134: Dealer_Dept | M134: TW | O134: AMT | P134: 實銷補助 | Q134: (空白) | R134: 55QNED86SQA.ATT | S134: 3333 | T134: 2 | U134: 6666
A135: DEALER_DEPT | B135: DEALER_DEPT | C135: TT-NTSO-20231228-0178 | D135: HETV20231226-TV-DEPT-SOA-202401 | E135: 20240101 | F135: 20240131 | G135: NTSO | H135: 2024/01/01 | I135: 2024/01/31 | J135: 公司-電視-實銷補助-01~01 | K135: DEALER_DEPT | L135: Dealer_Dept | M135: TW | O135: AMT | P135: 實銷補助 | Q135: (空白) | R135: OLED55G2PSA.ATT | S135: 6667 | T135: 1 | U135: 6667
A136: DEALER_DEPT | B136: DEALER_DEPT | C136: TT-NTSO-20231228-0178 | D136: HETV20231226-TV-DEPT-SOA-202401 | E136: 20240101 | F136: 20240131 | G136: NTSO | H136: 2024/01/01 | I136: 2024/01/31 | J136: 公司-電視-實銷補助-01~01 | K136: DEALER_DEPT | L136: Dealer_Dept | M136: TW | O136: AMT | P136: 實銷補助 | Q136: (空白) | R136: 75QNED86SQA.ATT | S136: 3333 | T136: 1 | U136: 3333
A137: DEALER_DEPT | B137: DEALER_DEPT | C137: TT-NTSO-20231228-0178 | D137: HETV20231226-TV-DEPT-SOA-202401 | E137: 20240101 | F137: 20240131 | G137: NTSO | H137: 2024/01/01 | I137: 2024/01/31 | J137: 公司-電視-實銷補助-01~01 | K137: DEALER_DEPT | L137: Dealer_Dept | M137: TW | O137: AMT | P137: 實銷補助 | Q137: (空白) | R137: 65QNED91SQA.ATT | S137: 7333 | T137: 15 | U137: 109995
A138: DEALER_DEPT | B138: DEALER_DEPT | C138: TT-NTSO-20231228-0178 | D138: HETV20231226-TV-DEPT-SOA-202401 | E138: 20240101 | F138: 20240131 | G138: NTSO | H138: 2024/01/01 | I138: 2024/01/31 | J138: 公司-電視-實銷補助-01~01 | K138: DEALER_DEPT | L138: Dealer_Dept | M138: TW | O138: AMT | P138: 實銷補助 | Q138: (空白) | R138: 42LX3QPSA.ATT | S138: 3333 | T138: 2 | U138: 6666
A139: DEALER_DEPT | B139: DEALER_DEPT | C139: TT-NTSO-20231228-0178 | D139: HETV20231226-TV-DEPT-SOA-202401 | E139: 20240101 | F139: 20240131 | G139: NTSO | H139: 2024/01/01 | I139: 2024/01/31 | J139: 公司-電視-實銷補助-01~01 | K139: DEALER_DEPT | L139: Dealer_Dept | M139: TW | O139: AMT | P139: 實銷補助 | Q139: (空白) | R139: OLED65C3PSA.ATT | S139: 10000 | T139: 110 | U139: 1100000
A140: DEALER_DEPT | B140: DEALER_DEPT | C140: TT-NTSO-20231228-0178 | D140: HETV20231226-TV-DEPT-SOA-202401 | E140: 20240101 | F140: 20240131 | G140: NTSO | H140: 2024/01/01 | I140: 2024/01/31 | J140: 公司-電視-實銷補助-01~01 | K140: DEALER_DEPT | L140: Dealer_Dept | M140: TW | O140: AMT | P140: 實銷補助 | Q140: (空白) | R140: OLED55C3PSA.ATT | S140: 6667 | T140: 90 | U140: 600030
A141: DEALER_DEPT | B141: DEALER_DEPT | C141: TT-NTSO-20231228-0178 | D141: HETV20231226-TV-DEPT-SOA-202401 | E141: 20240101 | F141: 20240131 | G141: NTSO | H141: 2024/01/01 | I141: 2024/01/31 | J141: 公司-電視-實銷補助-01~01 | K141: DEALER_DEPT | L141: Dealer_Dept | M141: TW | O141: AMT | P141: 實銷補助 | Q141: (空白) | R141: OLED48C3PSA.ATT | S141: 3333 | T141: 25 | U141: 83325
A142: DEALER_DEPT | B142: DEALER_DEPT | C142: TT-NTSO-20231228-0178 | D142: HETV20231226-TV-DEPT-SOA-202401 | E142: 20240101 | F142: 20240131 | G142: NTSO | H142: 2024/01/01 | I142: 2024/01/31 | J142: 公司-電視-實銷補助-01~01 | K142: DEALER_DEPT | L142: Dealer_Dept | M142: TW | O142: AMT | P142: 實銷補助 | Q142: (空白) | R142: OLED42C3PSA.ATT | S142: 3333 | T142: 20 | U142: 66660
A143: DEALER_DEPT | B143: DEALER_DEPT | C143: TT-NTSO-20231228-0178 | D143: HETV20231226-TV-DEPT-SOA-202401 | E143: 20240101 | F143: 20240131 | G143: NTSO | H143: 2024/01/01 | I143: 2024/01/31 | J143: 公司-電視-實銷補助-01~01 | K143: DEALER_DEPT | L143: Dealer_Dept | M143: TW | O143: AMT | P143: 實銷補助 | Q143: (空白) | R143: 86QNED86SRA.ATT | S143: 26667 | T143: 10 | U143: 266670
A144: DEALER_DEPT | B144: DEALER_DEPT | C144: TT-NTSO-20231228-0178 | D144: HETV20231226-TV-DEPT-SOA-202401 | E144: 20240101 | F144: 20240131 | G144: NTSO | H144: 2024/01/01 | I144: 2024/01/31 | J144: 公司-電視-實銷補助-01~01 | K144: DEALER_DEPT | L144: Dealer_Dept | M144: TW | O144: AMT | P144: 實銷補助 | Q144: (空白) | R144: 75QNED86SRA.ATT | S144: 5333 | T144: 45 | U144: 239985
A145: DEALER_DEPT | B145: DEALER_DEPT | C145: TT-NTSO-20231228-0178 | D145: HETV20231226-TV-DEPT-SOA-202401 | E145: 20240101 | F145: 20240131 | G145: NTSO | H145: 2024/01/01 | I145: 2024/01/31 | J145: 公司-電視-實銷補助-01~01 | K145: DEALER_DEPT | L145: Dealer_Dept | M145: TW | O145: AMT | P145: 實銷補助 | Q145: (空白) | R145: 65QNED86SRA.ATT | S145: 3333 | T145: 100 | U145: 333300
A146: DEALER_DEPT | B146: DEALER_DEPT | C146: TT-NTSO-20231228-0178 | D146: HETV20231226-TV-DEPT-SOA-202401 | E146: 20240101 | F146: 20240131 | G146: NTSO | H146: 2024/01/01 | I146: 2024/01/31 | J146: 公司-電視-實銷補助-01~01 | K146: DEALER_DEPT | L146: Dealer_Dept | M146: TW | O146: AMT | P146: 實銷補助 | Q146: (空白) | R146: 75NANO77SRA.ATT | S146: 7143 | T146: 15 | U146: 107145
A147: DEALER_DEPT | B147: DEALER_DEPT | C147: TT-NTSO-20231228-0178 | D147: HETV20231226-TV-DEPT-SOA-202401 | E147: 20240101 | F147: 20240131 | G147: NTSO | H147: 2024/01/01 | I147: 2024/01/31 | J147: 公司-電視-實銷補助-01~01 | K147: DEALER_DEPT | L147: Dealer_Dept | M147: TW | O147: AMT | P147: 實銷補助 | Q147: (空白) | R147: 65NANO77SRA.ATT | S147: 3571 | T147: 30 | U147: 107130
A148: =IFERROR(VLOOKUP(N148,多CODE,2,0),IF(RIGHT($B148,1)="H",LEFT($B148,11)&"B",IFERROR(VLOOKUP($B148,SHIP,3,0),$B148))) -> DEALER_DEPT | B148: DEALER_DEPT | C148: TT-NTSO-20231228-0178 | D148: HETV20231226-TV-DEPT-SOA-202401 | E148: 20240101 | F148: 20240131 | G148: NTSO | H148: 2024/01/01 | I148: 2024/01/31 | J148: 公司-電視-實銷補助-01~01 | K148: DEALER_DEPT | L148: Dealer_Dept | M148: TW | O148: AMT | P148: 實銷補助 | Q148: (空白) | R148: 55NANO77SRA.ATT | S148: 4286 | T148: 25 | U148: 107150
A149: DEALER_DEPT | B149: DEALER_DEPT | C149: TT-NTSO-20231228-0178 | D149: HETV20231226-TV-DEPT-SOA-202401 | E149: 20240101 | F149: 20240131 | G149: NTSO | H149: 2024/01/01 | I149: 2024/01/31 | J149: 公司-電視-實銷補助-01~01 | K149: DEALER_DEPT | L149: Dealer_Dept | M149: TW | O149: AMT | P149: 實銷補助 | Q149: (空白) | R149: OLED83G3PSA.ATT | S149: 13333 | T149: 25 | U149: 333325
A150: DEALER_DEPT | B150: DEALER_DEPT | C150: TT-NTSO-20231228-0178 | D150: HETV20231226-TV-DEPT-SOA-202401 | E150: 20240101 | F150: 20240131 | G150: NTSO | H150: 2024/01/01 | I150: 2024/01/31 | J150: 公司-電視-實銷補助-01~01 | K150: DEALER_DEPT | L150: Dealer_Dept | M150: TW | O150: AMT | P150: 實銷補助 | Q150: (空白) | R150: OLED65G3PSA.ATT | S150: 19400 | T150: 55 | U150: 1067000
A151: DEALER_DEPT | B151: DEALER_DEPT | C151: TT-NTSO-20231228-0178 | D151: HETV20231226-TV-DEPT-SOA-202401 | E151: 20240101 | F151: 20240131 | G151: NTSO | H151: 2024/01/01 | I151: 2024/01/31 | J151: 公司-電視-實銷補助-01~01 | K151: DEALER_DEPT | L151: Dealer_Dept | M151: TW | O151: AMT | P151: 實銷補助 | Q151: (空白) | R151: OLED55G3PSA.ATT | S151: 6667 | T151: 30 | U151: 200010
A152: DEALER_DEPT | B152: DEALER_DEPT | C152: TT-NTSO-20231228-0178 | D152: HETV20231226-TV-DEPT-SOA-202401 | E152: 20240101 | F152: 20240131 | G152: NTSO | H152: 2024/01/01 | I152: 2024/01/31 | J152: 公司-電視-實銷補助-01~01 | K152: DEALER_DEPT | L152: Dealer_Dept | M152: TW | O152: AMT | P152: 實銷補助 | Q152: (空白) | R152: OLED83C3PSA.ATT | S152: 20000 | T152: 20 | U152: 400000
A153: DEALER_DEPT | B153: DEALER_DEPT | C153: TT-NTSO-20231228-0178 | D153: HETV20231226-TV-DEPT-SOA-202401 | E153: 20240101 | F153: 20240131 | G153: NTSO | H153: 2024/01/01 | I153: 2024/01/31 | J153: 公司-電視-實銷補助-01~01 | K153: DEALER_DEPT | L153: Dealer_Dept | M153: TW | O153: AMT | P153: 實銷補助 | Q153: (空白) | R153: OLED77C3PSA.ATT | S153: 13333 | T153: 30 | U153: 399990
A154: DEALER_DEPT | B154: DEALER_DEPT | C154: TT-NTSO-20231228-0178 | D154: HETV20231226-TV-DEPT-SOA-202401 | E154: 20240101 | F154: 20240131 | G154: NTSO | H154: 2024/01/01 | I154: 2024/01/31 | J154: 公司-電視-實銷補助-01~01 | K154: DEALER_DEPT | L154: Dealer_Dept | M154: TW | O154: AMT | P154: 實銷補助 | Q154: (空白) | R154: 65UR9050PSK.ATT | S154: 3571 | T154: 1 | U154: 3571
A155: DEALER_DEPT | B155: DEALER_DEPT | C155: TT-NTSO-20231228-0178 | D155: HETV20231226-TV-DEPT-SOA-202401 | E155: 20240101 | F155: 20240131 | G155: NTSO | H155: 2024/01/01 | I155: 2024/01/31 | J155: 公司-電視-實銷補助-01~01 | K155: DEALER_DEPT | L155: Dealer_Dept | M155: TW | O155: AMT | P155: 實銷補助 | Q155: (空白) | R155: 75UR9050PSK.ATT | S155: 3571 | T155: 1 | U155: 3571
A156: DEALER_DEPT | B156: DEALER_DEPT | C156: TT-NTSO-20231228-0178 | D156: HETV20231226-TV-DEPT-SOA-202401 | E156: 20240101 | F156: 20240131 | G156: NTSO | H156: 2024/01/01 | I156: 2024/01/31 | J156: 公司-電視-實銷補助-01~01 | K156: DEALER_DEPT | L156: Dealer_Dept | M156: TW | O156: AMT | P156: 實銷補助 | Q156: (空白) | R156: 55UR9050PSK.ATT | S156: 3571 | T156: 1 | U156: 3571
A157: DEALER_DEPT | B157: DEALER_DEPT | C157: TT-NTSO-20231229-0010 | D157: KAPMREF2023122602-RF-Dept-AdditionalSupport-202401 | E157: 20240101 | F157: 20240131 | G157: NTSO | H157: 2024/01/01 | I157: 2024/01/31 | J157: 公司-冰箱-實銷補助-01~01 | K157: DEALER_DEPT | L157: Dealer_Dept | M157: TW | O157: AMT | P157: 實銷補助 | Q157: (空白) | R157: GN-HL567GB.ABMBTST | S157: 1400 | T157: 4 | U157: 5600
A158: DEALER_DEPT | B158: DEALER_DEPT | C158: TT-NTSO-20231229-0010 | D158: KAPMREF2023122602-RF-Dept-AdditionalSupport-202401 | E158: 20240101 | F158: 20240131 | G158: NTSO | H158: 2024/01/01 | I158: 2024/01/31 | J158: 公司-冰箱-實銷補助-01~01 | K158: DEALER_DEPT | L158: Dealer_Dept | M158: TW | O158: AMT | P158: 實銷補助 | Q158: (空白) | R158: GN-HL567SV.APZBTST | S158: 1400 | T158: 8 | U158: 11200
A159: DEALER_DEPT | B159: DEALER_DEPT | C159: TT-NTSO-20231229-0011 | D159: KAPMREF2023122602-RF-Dept-GiftSOA-202401 | E159: 20240101 | F159: 20240131 | G159: NTSO | H159: 2024/01/01 | I159: 2024/01/31 | J159: 公司-冰箱-實銷贈品補助-01~01 | K159: DEALER_DEPT | L159: Dealer_Dept | M159: TW | O159: AMT | P159: 實銷贈品補助 | Q159: (空白) | R159: GR-DBFL88ST.AGLBTST | S159: 1500 | T159: 1 | U159: 1500
A160: DEALER_DEPT | B160: DEALER_DEPT | C160: TT-NTSO-20231229-0011 | D160: KAPMREF2023122602-RF-Dept-GiftSOA-202401 | E160: 20240101 | F160: 20240131 | G160: NTSO | H160: 2024/01/01 | I160: 2024/01/31 | J160: 公司-冰箱-實銷贈品補助-01~01 | K160: DEALER_DEPT | L160: Dealer_Dept | M160: TW | O160: AMT | P160: 實銷贈品補助 | Q160: (空白) | R160: GR-QBFL87BS.ASBBTST | S160: 1500 | T160: 17 | U160: 25500
A161: DEALER_DEPT | B161: DEALER_DEPT | C161: TT-NTSO-20231229-0011 | D161: KAPMREF2023122602-RF-Dept-GiftSOA-202401 | E161: 20240101 | F161: 20240131 | G161: NTSO | H161: 2024/01/01 | I161: 2024/01/31 | J161: 公司-冰箱-實銷贈品補助-01~01 | K161: DEALER_DEPT | L161: Dealer_Dept | M161: TW | O161: AMT | P161: 實銷贈品補助 | Q161: (空白) | R161: GR-W570ST.AGRBTST | S161: 1500 | T161: 2 | U161: 3000
A162: DEALER_DEPT | B162: DEALER_DEPT | C162: TT-NTSO-20231229-0011 | D162: KAPMREF2023122602-RF-Dept-GiftSOA-202401 | E162: 20240101 | F162: 20240131 | G162: NTSO | H162: 2024/01/01 | I162: 2024/01/31 | J162: 公司-冰箱-實銷贈品補助-01~01 | K162: DEALER_DEPT | L162: Dealer_Dept | M162: TW | O162: AMT | P162: 實銷贈品補助 | Q162: (空白) | R162: GR-QPLC82BS.ASBBTST | S162: 1500 | T162: 190 | U162: 285000
A163: DEALER_DEPT | B163: DEALER_DEPT | C163: TT-NTSO-20231229-0011 | D163: KAPMREF2023122602-RF-Dept-GiftSOA-202401 | E163: 20240101 | F163: 20240131 | G163: NTSO | H163: 2024/01/01 | I163: 2024/01/31 | J163: 公司-冰箱-實銷贈品補助-01~01 | K163: DEALER_DEPT | L163: Dealer_Dept | M163: TW | O163: AMT | P163: 實銷贈品補助 | Q163: (空白) | R163: GR-QL62MB.AMCBTST | S163: 1500 | T163: 90 | U163: 135000
A164: DEALER_DEPT | B164: DEALER_DEPT | C164: TT-NTSO-20231229-0011 | D164: KAPMREF2023122602-RF-Dept-GiftSOA-202401 | E164: 20240101 | F164: 20240131 | G164: NTSO | H164: 2024/01/01 | I164: 2024/01/31 | J164: 公司-冰箱-實銷贈品補助-01~01 | K164: DEALER_DEPT | L164: Dealer_Dept | M164: TW | O164: AMT | P164: 實銷贈品補助 | Q164: (空白) | R164: GR-QLFC87GS.AGEBTST | S164: 1500 | T164: 10 | U164: 15000
A165: DEALER_DEPT | B165: DEALER_DEPT | C165: TT-NTSO-20231229-0011 | D165: KAPMREF2023122602-RF-Dept-GiftSOA-202401 | E165: 20240101 | F165: 20240131 | G165: NTSO | H165: 2024/01/01 | I165: 2024/01/31 | J165: 公司-冰箱-實銷贈品補助-01~01 | K165: DEALER_DEPT | L165: Dealer_Dept | M165: TW | O165: AMT | P165: 實銷贈品補助 | Q165: (空白) | R165: GR-BLF61BE.ABEBTST | S165: 1500 | T165: 30 | U165: 45000
A166: DEALER_DEPT | B166: DEALER_DEPT | C166: TT-NTSO-20231229-0011 | D166: KAPMREF2023122602-RF-Dept-GiftSOA-202401 | E166: 20240101 | F166: 20240131 | G166: NTSO | H166: 2024/01/01 | I166: 2024/01/31 | J166: 公司-冰箱-實銷贈品補助-01~01 | K166: DEALER_DEPT | L166: Dealer_Dept | M166: TW | O166: AMT | P166: 實銷贈品補助 | Q166: (空白) | R166: GR-QLF87GSP.AGEBTST | S166: 1500 | T166: 8 | U166: 12000
A167: DEALER_DEPT | B167: DEALER_DEPT | C167: TT-NTSO-20231229-0012 | D167: KAPMREF2023122602-RF-Dept-SOA-202401 | E167: 20240101 | F167: 20240131 | G167: NTSO | H167: 2024/01/01 | I167: 2024/01/31 | J167: 公司-冰箱-實銷促銷價差補助-01~01 | K167: DEALER_DEPT | L167: Dealer_Dept | M167: TW | O167: AMT | P167: 實銷促銷價差補助 | Q167: (空白) | R167: GN-HL567GB.ABMBTST | S167: 699 | T167: 4 | U167: 2796
A168: DEALER_DEPT | B168: DEALER_DEPT | C168: TT-NTSO-20231229-0012 | D168: KAPMREF2023122602-RF-Dept-SOA-202401 | E168: 20240101 | F168: 20240131 | G168: NTSO | H168: 2024/01/01 | I168: 2024/01/31 | J168: 公司-冰箱-實銷促銷價差補助-01~01 | K168: DEALER_DEPT | L168: Dealer_Dept | M168: TW | O168: AMT | P168: 實銷促銷價差補助 | Q168: (空白) | R168: GN-HL567SV.APZBTST | S168: 574 | T168: 8 | U168: 4592
A169: DEALER_DEPT | B169: DEALER_DEPT | C169: TT-NTSO-20231229-0012 | D169: KAPMREF2023122602-RF-Dept-SOA-202401 | E169: 20240101 | F169: 20240131 | G169: NTSO | H169: 2024/01/01 | I169: 2024/01/31 | J169: 公司-冰箱-實銷促銷價差補助-01~01 | K169: DEALER_DEPT | L169: Dealer_Dept | M169: TW | O169: AMT | P169: 實銷促銷價差補助 | Q169: (空白) | R169: GR-HL600MB.AMCBTST | S169: 1059 | T169: 3 | U169: 3177
A170: DEALER_DEPT | B170: DEALER_DEPT | C170: TT-NTSO-20231229-0040 | D170: HETV20231228-TV-DEPT-EOL(Display)-202307-202403 | E170: 20230701 | F170: 20240331 | G170: NTSO | H170: 2023/07/01 | I170: 2024/03/31 | J170: 公司-電視-出清補助(陳列機0627陳列數量為上限計算基準)簽呈HETV20230927延續-2023.07.01~2024.03.31 | K170: DEALER_DEPT | L170: Dealer_Dept | M170: TW | O170: AMT | P170: 出清補助(陳列機0627陳列數量為上限計算基準)簽呈HETV20230927延續 | Q170: (空白) | R170: 65QNED86SQA.ATT | S170: 4390 | T170: 13 | U170: 57070
A171: DEALER_DEPT | B171: DEALER_DEPT | C171: TT-NTSO-20231229-0040 | D171: HETV20231228-TV-DEPT-EOL(Display)-202307-202403 | E171: 20230701 | F171: 20240331 | G171: NTSO | H171: 2023/07/01 | I171: 2024/03/31 | J171: 公司-電視-出清補助(陳列機0627陳列數量為上限計算基準)簽呈HETV20230927延續-2023.07.01~2024.03.31 | K171: DEALER_DEPT | L171: Dealer_Dept | M171: TW | O171: AMT | P171: 出清補助(陳列機0627陳列數量為上限計算基準)簽呈HETV20230927延續 | Q171: (空白) | R171: 55QNED86SQA.ATT | S171: 3490 | T171: 5 | U171: 17450
A172: DEALER_DEPT | B172: DEALER_DEPT | C172: TT-NTSO-20231229-0040 | D172: HETV20231228-TV-DEPT-EOL(Display)-202307-202403 | E172: 20230701 | F172: 20240331 | G172: NTSO | H172: 2023/07/01 | I172: 2024/03/31 | J172: 公司-電視-出清補助(陳列機0627陳列數量為上限計算基準)簽呈HETV20230927延續-2023.07.01~2024.03.31 | K172: DEALER_DEPT | L172: Dealer_Dept | M172: TW | O172: AMT | P172: 出清補助(陳列機0627陳列數量為上限計算基準)簽呈HETV20230927延續 | Q172: (空白) | R172: 75QNED86SQA.ATT | S172: 7990 | T172: 1 | U172: 7990
A173: DEALER_DEPT | B173: DEALER_DEPT | C173: TT-NTSO-20231229-0041 | D173: HETV20231228-TV-DEPT-EOL(Display)-202310-202403 | E173: 20231001 | F173: 20240331 | G173: NTSO | H173: 2023/10/01 | I173: 2024/03/31 | J173: 公司-電視-出清補助(陳列機927陳列數量為上限計算基準)簽呈HETV20230926延續-2023.10.01~2024.03.31 | K173: DEALER_DEPT | L173: Dealer_Dept | M173: TW | O173: AMT | P173: 出清補助(陳列機927陳列數量為上限計算基準)簽呈HETV20230926延續 | Q173: (空白) | R173: OLED55C2PSC.ATT | S173: 4290 | T173: 16 | U173: 68640
A174: DEALER_DEPT | B174: DEALER_DEPT | C174: TT-NTSO-20231229-0041 | D174: HETV20231228-TV-DEPT-EOL(Display)-202310-202403 | E174: 20231001 | F174: 20240331 | G174: NTSO | H174: 2023/10/01 | I174: 2024/03/31 | J174: 公司-電視-出清補助(陳列機927陳列數量為上限計算基準)簽呈HETV20230926延續-2023.10.01~2024.03.31 | K174: DEALER_DEPT | L174: Dealer_Dept | M174: TW | O174: AMT | P174: 出清補助(陳列機927陳列數量為上限計算基準)簽呈HETV20230926延續 | Q174: (空白) | R174: OLED65C2PSC.ATT | S174: 9320 | T174: 26 | U174: 242320
A175: DEALER_DEPT | B175: DEALER_DEPT | C175: TT-NTSO-20231229-0064 | D175: DEPT2312D010-AC.SAC-Dept-InstallFee-202401 | E175: 20240101 | F175: 20240131 | G175: NTSO | H175: 2024/01/01 | I175: 2024/01/31 | J175: 公司-冷氣系統空調-安運補助-01~01 | K175: DEALER_DEPT | L175: Dealer_Dept | M175: TW | O175: AMT | P175: 安運補助 | Q175: (空白) | R175: LSN22DCO.AT2GTTL | S175: 537 | T175: 2 | U175: 1074
A176: DEALER_DEPT | B176: DEALER_DEPT | C176: TT-NTSO-20231229-0064 | D176: DEPT2312D010-AC.SAC-Dept-InstallFee-202401 | E176: 20240101 | F176: 20240131 | G176: NTSO | H176: 2024/01/01 | I176: 2024/01/31 | J176: 公司-冷氣系統空調-安運補助-01~01 | K176: DEALER_DEPT | L176: Dealer_Dept | M176: TW | O176: AMT | P176: 安運補助 | Q176: (空白) | R176: LSN22DHP.AT2GTTL | S176: 800 | T176: 1 | U176: 800
A177: DEALER_DEPT | B177: DEALER_DEPT | C177: TT-NTSO-20231229-0064 | D177: DEPT2312D010-AC.SAC-Dept-InstallFee-202401 | E177: 20240101 | F177: 20240131 | G177: NTSO | H177: 2024/01/01 | I177: 2024/01/31 | J177: 公司-冷氣系統空調-安運補助-01~01 | K177: DEALER_DEPT | L177: Dealer_Dept | M177: TW | O177: AMT | P177: 安運補助 | Q177: (空白) | R177: LSN28DCO.AT2GTTL | S177: 611 | T177: 3 | U177: 1833
A178: DEALER_DEPT | B178: DEALER_DEPT | C178: TT-NTSO-20231229-0064 | D178: DEPT2312D010-AC.SAC-Dept-InstallFee-202401 | E178: 20240101 | F178: 20240131 | G178: NTSO | H178: 2024/01/01 | I178: 2024/01/31 | J178: 公司-冷氣系統空調-安運補助-01~01 | K178: DEALER_DEPT | L178: Dealer_Dept | M178: TW | O178: AMT | P178: 安運補助 | Q178: (空白) | R178: LSN28DHP.AT2GTTL | S178: 863 | T178: 1 | U178: 863
A179: DEALER_DEPT | B179: DEALER_DEPT | C179: TT-NTSO-20231229-0064 | D179: DEPT2312D010-AC.SAC-Dept-InstallFee-202401 | E179: 20240101 | F179: 20240131 | G179: NTSO | H179: 2024/01/01 | I179: 2024/01/31 | J179: 公司-冷氣系統空調-安運補助-01~01 | K179: DEALER_DEPT | L179: Dealer_Dept | M179: TW | O179: AMT | P179: 安運補助 | Q179: (空白) | R179: LSN36DCO.AT2GTT1 | S179: 760 | T179: 3 | U179: 2280
A180: DEALER_DEPT | B180: DEALER_DEPT | C180: TT-NTSO-20231229-0064 | D180: DEPT2312D010-AC.SAC-Dept-InstallFee-202401 | E180: 20240101 | F180: 20240131 | G180: NTSO | H180: 2024/01/01 | I180: 2024/01/31 | J180: 公司-冷氣系統空調-安運補助-01~01 | K180: DEALER_DEPT | L180: Dealer_Dept | M180: TW | O180: AMT | P180: 安運補助 | Q180: (空白) | R180: LSN41DCO.AT2GTTL | S180: 846 | T180: 1 | U180: 846
A181: DEALER_DEPT | B181: DEALER_DEPT | C181: TT-NTSO-20231229-0064 | D181: DEPT2312D010-AC.SAC-Dept-InstallFee-202401 | E181: 20240101 | F181: 20240131 | G181: NTSO | H181: 2024/01/01 | I181: 2024/01/31 | J181: 公司-冷氣系統空調-安運補助-01~01 | K181: DEALER_DEPT | L181: Dealer_Dept | M181: TW | O181: AMT | P181: 安運補助 | Q181: (空白) | R181: LSN41DHP.AT2GTTL | S181: 1154 | T181: 1 | U181: 1154
A182: DEALER_DEPT | B182: DEALER_DEPT | C182: TT-NTSO-20231229-0064 | D182: DEPT2312D010-AC.SAC-Dept-InstallFee-202401 | E182: 20240101 | F182: 20240131 | G182: NTSO | H182: 2024/01/01 | I182: 2024/01/31 | J182: 公司-冷氣系統空調-安運補助-01~01 | K182: DEALER_DEPT | L182: Dealer_Dept | M182: TW | O182: AMT | P182: 安運補助 | Q182: (空白) | R182: LSN52DCO.AK2GTTL | S182: 977 | T182: 2 | U182: 1954
A183: DEALER_DEPT | B183: DEALER_DEPT | C183: TT-NTSO-20231229-0064 | D183: DEPT2312D010-AC.SAC-Dept-InstallFee-202401 | E183: 20240101 | F183: 20240131 | G183: NTSO | H183: 2024/01/01 | I183: 2024/01/31 | J183: 公司-冷氣系統空調-安運補助-01~01 | K183: DEALER_DEPT | L183: Dealer_Dept | M183: TW | O183: AMT | P183: 安運補助 | Q183: (空白) | R183: LSN63DCO2.AK2GTTL | S183: 1603 | T183: 1 | U183: 1603
A184: DEALER_DEPT | B184: DEALER_DEPT | C184: TT-NTSO-20231229-0064 | D184: DEPT2312D010-AC.SAC-Dept-InstallFee-202401 | E184: 20240101 | F184: 20240131 | G184: NTSO | H184: 2024/01/01 | I184: 2024/01/31 | J184: 公司-冷氣系統空調-安運補助-01~01 | K184: DEALER_DEPT | L184: Dealer_Dept | M184: TW | O184: AMT | P184: 安運補助 | Q184: (空白) | R184: LSN71DCO2.AK2GTTL | S184: 1760 | T184: 5 | U184: 8800
A185: DEALER_DEPT | B185: DEALER_DEPT | C185: TT-NTSO-20231229-0064 | D185: DEPT2312D010-AC.SAC-Dept-InstallFee-202401 | E185: 20240101 | F185: 20240131 | G185: NTSO | H185: 2024/01/01 | I185: 2024/01/31 | J185: 公司-冷氣系統空調-安運補助-01~01 | K185: DEALER_DEPT | L185: Dealer_Dept | M185: TW | O185: AMT | P185: 安運補助 | Q185: (空白) | R185: LSN71DHP2.AK2GTTL | S185: 2349 | T185: 2 | U185: 4698
A186: DEALER_DEPT | B186: DEALER_DEPT | C186: TT-NTSO-20231229-0064 | D186: DEPT2312D010-AC.SAC-Dept-InstallFee-202401 | E186: 20240101 | F186: 20240131 | G186: NTSO | H186: 2024/01/01 | I186: 2024/01/31 | J186: 公司-冷氣系統空調-安運補助-01~01 | K186: DEALER_DEPT | L186: Dealer_Dept | M186: TW | O186: AMT | P186: 安運補助 | Q186: (空白) | R186: LSN83DCO.AK2GTTL | S186: 1941 | T186: 1 | U186: 1941
A187: DEALER_DEPT | B187: DEALER_DEPT | C187: TT-NTSO-20231229-0064 | D187: DEPT2312D010-AC.SAC-Dept-InstallFee-202401 | E187: 20240101 | F187: 20240131 | G187: NTSO | H187: 2024/01/01 | I187: 2024/01/31 | J187: 公司-冷氣系統空調-安運補助-01~01 | K187: DEALER_DEPT | L187: Dealer_Dept | M187: TW | O187: AMT | P187: 安運補助 | Q187: (空白) | R187: LSN83DHP.AK2GTTL | S187: 2019 | T187: 2 | U187: 4038
A188: DEALER_DEPT | B188: DEALER_DEPT | C188: TT-NTSO-20231229-0064 | D188: DEPT2312D010-AC.SAC-Dept-InstallFee-202401 | E188: 20240101 | F188: 20240131 | G188: NTSO | H188: 2024/01/01 | I188: 2024/01/31 | J188: 公司-冷氣系統空調-安運補助-01~01 | K188: DEALER_DEPT | L188: Dealer_Dept | M188: TW | O188: AMT | P188: 安運補助 | Q188: (空白) | R188: LSN93DCO.AK2GTTL | S188: 2121 | T188: 2 | U188: 4242
A189: DEALER_DEPT | B189: DEALER_DEPT | C189: TT-NTSO-20231229-0064 | D189: DEPT2312D010-AC.SAC-Dept-InstallFee-202401 | E189: 20240101 | F189: 20240131 | G189: NTSO | H189: 2024/01/01 | I189: 2024/01/31 | J189: 公司-冷氣系統空調-安運補助-01~01 | K189: DEALER_DEPT | L189: Dealer_Dept | M189: TW | O189: AMT | P189: 安運補助 | Q189: (空白) | R189: LSN93DHP.AK2GTTL | S189: 2200 | T189: 3 | U189: 6600
A190: DEALER_DEPT | B190: DEALER_DEPT | C190: TT-NTSO-20231229-0064 | D190: DEPT2312D010-AC.SAC-Dept-InstallFee-202401 | E190: 20240101 | F190: 20240131 | G190: NTSO | H190: 2024/01/01 | I190: 2024/01/31 | J190: 公司-冷氣系統空調-安運補助-01~01 | K190: DEALER_DEPT | L190: Dealer_Dept | M190: TW | O190: AMT | P190: 安運補助 | Q190: (空白) | R190: LSU22DCO.AT2GTTL | S190: 1086 | T190: 2 | U190: 2172
A191: DEALER_DEPT | B191: DEALER_DEPT | C191: TT-NTSO-20231229-0064 | D191: DEPT2312D010-AC.SAC-Dept-InstallFee-202401 | E191: 20240101 | F191: 20240131 | G191: NTSO | H191: 2024/01/01 | I191: 2024/01/31 | J191: 公司-冷氣系統空調-安運補助-01~01 | K191: DEALER_DEPT | L191: Dealer_Dept | M191: TW | O191: AMT | P191: 安運補助 | Q191: (空白) | R191: LSU22DHP.AT2GTTL | S191: 937 | T191: 1 | U191: 937
A192: DEALER_DEPT | B192: DEALER_DEPT | C192: TT-NTSO-20231229-0064 | D192: DEPT2312D010-AC.SAC-Dept-InstallFee-202401 | E192: 20240101 | F192: 20240131 | G192: NTSO | H192: 2024/01/01 | I192: 2024/01/31 | J192: 公司-冷氣系統空調-安運補助-01~01 | K192: DEALER_DEPT | L192: Dealer_Dept | M192: TW | O192: AMT | P192: 安運補助 | Q192: (空白) | R192: LSU28DCO.AT2GTTL | S192: 1240 | T192: 3 | U192: 3720
A193: DEALER_DEPT | B193: DEALER_DEPT | C193: TT-NTSO-20231229-0064 | D193: DEPT2312D010-AC.SAC-Dept-InstallFee-202401 | E193: 20240101 | F193: 20240131 | G193: NTSO | H193: 2024/01/01 | I193: 2024/01/31 | J193: 公司-冷氣系統空調-安運補助-01~01 | K193: DEALER_DEPT | L193: Dealer_Dept | M193: TW | O193: AMT | P193: 安運補助 | Q193: (空白) | R193: LSU28DHP.AT2GTTL | S193: 1103 | T193: 1 | U193: 1103
A194: DEALER_DEPT | B194: DEALER_DEPT | C194: TT-NTSO-20231229-0064 | D194: DEPT2312D010-AC.SAC-Dept-InstallFee-202401 | E194: 20240101 | F194: 20240131 | G194: NTSO | H194: =IF(OR($G194="NTSI",$G194="TTSI"),$E194,LEFT($E194,4)&"/"&MID($E194,5,2)&"/"&RIGHT($E194,2)) -> 2024/01/01 | I194: =IF(OR($G194="NTSI",$G194="TTSI"),$F194,LEFT($F194,4)&"/"&MID($F194,5,2)&"/"&RIGHT($F194,2)) -> 2024/01/31 | J194: 公司-冷氣系統空調-安運補助-01~01 | K194: DEALER_DEPT | L194: Dealer_Dept | M194: TW | O194: AMT | P194: 安運補助 | Q194: (空白) | R194: LSU36DCO.AT2GTT1 | S194: 1549 | T194: 3 | U194: 4647
A195: DEALER_DEPT | B195: DEALER_DEPT | C195: TT-NTSO-20231229-0064 | D195: DEPT2312D010-AC.SAC-Dept-InstallFee-202401 | E195: 20240101 | F195: 20240131 | G195: =MID(C195,4,4) -> NTSO | H195: 2024/01/01 | I195: 2024/01/31 | J195: 公司-冷氣系統空調-安運補助-01~01 | K195: DEALER_DEPT | L195: Dealer_Dept | M195: TW | O195: AMT | P195: 安運補助 | Q195: (空白) | R195: LSU41DCO.AT2GTTL | S195: 1720 | T195: 1 | U195: 1720
A196: DEALER_DEPT | B196: DEALER_DEPT | C196: TT-NTSO-20231229-0064 | D196: DEPT2312D010-AC.SAC-Dept-InstallFee-202401 | E196: 20240101 | F196: 20240131 | G196: NTSO | H196: 2024/01/01 | I196: 2024/01/31 | J196: 公司-冷氣系統空調-安運補助-01~01 | K196: DEALER_DEPT | L196: Dealer_Dept | M196: TW | O196: AMT | P196: 安運補助 | Q196: (空白) | R196: LSU41DHP.AT2GTTL | S196: 1469 | T196: 1 | U196: 1469
A197: DEALER_DEPT | B197: DEALER_DEPT | C197: TT-NTSO-20231229-0064 | D197: DEPT2312D010-AC.SAC-Dept-InstallFee-202401 | E197: 20240101 | F197: 20240131 | G197: NTSO | H197: 2024/01/01 | I197: 2024/01/31 | J197: 公司-冷氣系統空調-安運補助-01~01 | K197: DEALER_DEPT | L197: Dealer_Dept | M197: TW | O197: AMT | P197: 安運補助 | Q197: (空白) | R197: LSU52DCO.AT2GTTL | S197: 1989 | T197: 2 | U197: 3978
A198: DEALER_DEPT | B198: DEALER_DEPT | C198: TT-NTSO-20231229-0064 | D198: DEPT2312D010-AC.SAC-Dept-InstallFee-202401 | E198: 20240101 | F198: 20240131 | G198: NTSO | H198: 2024/01/01 | I198: 2024/01/31 | J198: 公司-冷氣系統空調-安運補助-01~01 | K198: DEALER_DEPT | L198: Dealer_Dept | M198: TW | O198: AMT | P198: 安運補助 | Q198: (空白) | R198: LSU63DCO2.AT2GTTL | S198: 3261 | T198: 1 | U198: 3261
A199: DEALER_DEPT | B199: DEALER_DEPT | C199: TT-NTSO-20231229-0064 | D199: DEPT2312D010-AC.SAC-Dept-InstallFee-202401 | E199: 20240101 | F199: 20240131 | G199: NTSO | H199: 2024/01/01 | I199: 2024/01/31 | J199: 公司-冷氣系統空調-安運補助-01~01 | K199: DEALER_DEPT | L199: Dealer_Dept | M199: TW | O199: AMT | P199: 安運補助 | Q199: (空白) | R199: LSU71DCO2.AT2GTTL | S199: 3575 | T199: 5 | U199: 17875
A200: DEALER_DEPT | B200: DEALER_DEPT | C200: TT-NTSO-20231229-0064 | D200: DEPT2312D010-AC.SAC-Dept-InstallFee-202401 | E200: 20240101 | F200: 20240131 | G200: NTSO | H200: 2024/01/01 | I200: 2024/01/31 | J200: 公司-冷氣系統空調-安運補助-01~01 | K200: DEALER_DEPT | L200: Dealer_Dept | M200: TW | O200: AMT | P200: 安運補助 | Q200: (空白) | R200: LSU71DHP2.AT2GTTL | S200: 2986 | T200: 2 | U200: 5972
... 4300 more rows
